Workbook

Sheet SSCT -2526 checklist
A1: Schools Strategy & Corporate Team - SMER Checklist (TO BE COMPLETED BY SSCT ONLY) | E1: Do not delete to the right | F1: Y
F2: N
B3: DfE Number | C3: ='SMER Summary 25-26'!D11 -> 0 | F3: No but ok as Zero Balance on both codes
B4: School Name | C4: ='SMER Summary 25-26'!D13 ->  | F4: Yes Creditors report, Not received Debtors as Zero Balance
B5: Platform | C5: ='SMER Summary 25-26'!H13 ->  | F5: Not received Creditors report as Zero Balance, Yes to Debtors report
F6: Recorded
B7: Checklist Item | C7: Result of Check | D7: Description of check | F7: Not recorded
A8: Schools Email Submission | B8: Date School Submitted SMER | D8: Input the date which the school emailed School month end returns inbox. This is used to check schools submit their returns within the agreed timescales. | F8: Done
B9: Email & SMER Saved? | D9: Confirm the email has been saved in the SMER folder. | F9: Not Done
A10: SSCT Member | B10: Initials | D10: Input your initials to confirm who has completed the checks. | F10: Issue
B11: Date Checked | D11: Input the date when the return was checked | F11: OK
A12: Reports Included? | B12: Cumulative Expense Analysis (CEA) Report | D12: Has the CEA Report or equivalent included in the submission on its own tab?
B13: Trial Balance Report | D13: Has the Trial Balance or equivalent been included in the submission on its own tab?
B14: Fund Review | C14: N/A | D14: Has the Fund Review Report or equivalent been included in the submission on its own tab? (N/A for Access)
B15: VAT Submital reports | D15: Does the SMER include VAT Submittal reports for the correct periods on the VAT tabs? Does it include a Short Summary for a part complete period?
B16: Bank Statement & Unreconciled report | D16: Has school put report and statement on the tabs? If yes to both enter Y, if not please add details of whats not been seen
B17: Payroll EPM Report | D17: Has the EPM report been pasted in its own tab?
B18: Aged Creditors Report
B19: Aged Debtors Report
A20: Checks (SMERF) | B20: Download Funding Statement & add to tab | D20: Select Y when you have done so
B21: Is the Budget vs Actuals report on the SBS Budget vs Actuals report tab? | D21: This could be sent to us via email but in the main should be reviewed by school, updated and mentioned in section 6 of the SMER Summary. If as an attachment it will need to be downloaded checked the same and added to the SBS Budget vs Actual report please
D22: For YE Only: Leave in all year so that we don’t need to change school summary Have you copied and pasted columns A-N inclusive of the SBS Budget vs Actuals report into BVA Drop Table? This needs to be done please to create journals
B23: What is the Trial Balance - Balance sheet total? | D23: FMS Trial Balances - does not show a separate line for opening balances, so you can just take the Total Balance sheet tota from the Year to Date Balance column. Bromcom Only Note - Bromcom schools use various reports to show their Balance sheet position. The Trial Balance by IE Report includes the opening balances (Retained Earnings), so you will need to remove the opening balances figure from the total to compare with the below figure off SBS Budget vs Actuals report. But some reports do not include cfwds (on the Balances & Reserves report) so Assest minus liabilities already equals SBS Budget vs Actuals (BM) report. There is therefore no need to remove Cfwds from this figure. This will match the overall total on the SBS Budget vs Actuals report
B24: FOR FMS, SAGE,XERO & (ACCESS?) - What is the total Income & Spend figure on the SBS Budget VS actual report excluding cfwds? FOR BROMCOM -What is the total Income & Spend figure on the SBS Budget vs Actuals report? | D24: Include Revenue, Extended and Capital
B25: Difference between Trial Balance - Balance sheet total & Total Income & Spend Figures on SBS | C25: =C23+C24 -> 0 | D25: Should be zero
B26: Is the CEA Balanced (YTD Actuals)? | D26: When adding up all of the actuals in the actuals column, this should come to Zero, if it does, please select Y. If it doesn’t please select N & contact Sam to see what is needed to be done.
B27: CEA Balance Sheet total (Column XXX) | D27: Go to CEA tab, highlight all columns to select all, then go to insert, pivot table, select exisiting workbook, then click on the arrow to the right of the location field and click on a blank cell to the right of the report on the CEA tab, press return and then ok. The pivot table will hw on the cell you selected. The Pivot tables field will appear to the right. Select Exclude Balance sheet accounts and value. this will appear in the bottom half of the screen, drag the sum exclude balance sheet accounts to the rows section. then click on the spreadsheet. The pivot table will then show you a total for "0"'s and one for "1"s. The 0's are the income and spend totals, the 1's show the balance sheet total. Include the 1s total as the CEA balance sheet total to the left
B28: Difference (CEA Balance Sheet Codes minus Trial Balance Sheet Codes) | C28: =C27-C23 -> 0
A29: School Month End Reconciliation Form (SMERF) | B29: 1. School Information | D29: Has the school fully completed the School Information section of the SMER, if yes, put Y in the cell to the left. If no, please add details on what they have and havent completed.
B30: 2. VAT Owed Reconciliation | D30: Check VAT Submittal amounts completed & reports included and the balance sheet value entered correctly & fully reconciles to submittals. (Y or N) If N please include what the difference is and reason why if known
B31: 2. VAT Data Input Summary | D31: If the VAT submittals are correct, and the VAT reconciliation is ok (Variance = £0), check to see if the full VAT quarters have been recorded on the VAT Data Input Summary tab in the Contact List spreadseheet. If it hasn’t, and your happy we can pay it, please record it in the contact lists VAT Data Input Symmary tab. Mark as recorded or not recorded in the left
B32: 3. NatWest Reconciliation | D32: Check bank statement balance at period end & unreconciled items amount equals balance sheet amount (Y or N) If N please include whats different (amounts and any details you know)
B33: 4. Payrol Control Reconciliation | D33: Check all payroll related amounts e.g. HMRC, Pension. equal balance sheet total reconcile back to the balance sheet total. If they don’t, please add details. Mark Y if ok
B34: 5. Opening Balances | D34: Check to ensure opening balances are correct in SBS & CEA, refer to reports in the yellow section (Y or N) If N please include what reports say what and what the issue is
B35: 6. Correct Signage of Aged Creditors on CEA? | D35: This should be a Credit (negative figure). Please add Y if correct, N & details if incorrect
B36: Aged Creditors Report: Does report match CEA?
B37: Aged Creditors Report: Does report match Trial Balance/Balance Sheet/Balances & Reserves?
B38: NOT TO BE CHECKED UNTIL SAM/JONTY ASKS - Are there any Creditors over X months old?
B39: 7. Correct Signage of Aged Debtors on CEA? | D39: This should be a Debit (Positive figure). Please add Y if correct, N & details if incorrect
B40: Aged Debtors Report: Does report match CEA?
B41: Aged Debtors Report: Does report match Trial Balance/Balance Sheet/Balances & Reserves?
B42: NOT TO BE CHECKED UNTIL SAM/JONTY ASKS - Are there any Debtors over X months old?
B43: 8. Confirmation | D43: Check this section has been completed in full. If it has put a "Y", if it hasn’t then put a "N" and add details to this cell.
B44: Is the name of 'Locked' Budget showing latest Forecast/Projected Outturn in SBS at the time of completing this SMER listed in Section 6, Locked on SBS? | D44: If no enter details in the cell to the left
B45: Does the CEA show the Rates Journals required? If it doesn’t please add notes to the left. If ok add Y
B46: Are the Accruals & Prepayments codes Clear/Zero on the CEA? (Y = Yes, N=No) | D46: Pre year end. ACCRUE, PREPAY & ACCINT codes should all be zero (0.00). Entries should have been reversed in period 1 of 25/26 to the exact pence.
B47: Are these codes zero on the CEA? SUSPENSE-01, Contingency Fund - 47570750-01, 02 etc, Contribution to Reserves - 47570600-01, 02 etc, Unallocated - 47570700-01, 02 etc? | D47: Add details of the codes that aren't zero to the left or if all zero then, Y
B48: Has school been told they can close 24/25? | D48: If yes, add the date the school was told to. If been told in previous months, this will be shown on last months tab in the Contact List.
B49: Any additional notes relating to the SMER | D49: Add any additional findings or queries here
A50: SBS Online | B50: I01 - Formula Funding | D50: Using the funding statement tab check the CFR actual equals the total funded, is the SBS Budget vs Actuals report showing the same figure for this CFR on the funding statement? If its not, please add why in the cell to the left
B51: CI01 DFC Funding | D51: Using the funding statement tab check the CFR actual equals the total funded, is the SBS Budget vs Actuals report showing the same figure for this CFR on the funding statement? If its not, please add why in the cell to the left
B52: I02 - Sixth Form Funding | D52: Using the funding statement tab check the CFR actual equals the total funded, is the SBS Budget vs Actuals report showing the same figure for this CFR on the funding statement? If its not, please add why in the cell to the left
B53: I03 - SEN Funding | D53: Using the funding statement tab check the CFR actual equals the total funded, is the SBS Budget vs Actuals report showing the same figure for this CFR on the funding statement? If its not, please add why in the cell to the left
B54: I05 - Pupil Premium Funding | D54: Using the funding statement tab check the CFR actual equals the total funded, is the SBS Budget vs Actuals report showing the same figure for this CFR on the funding statement? If its not, please add why in the cell to the left
B55: I06 - Other Government Grants - Does SBS show more than the funding statement? | D55: If yes, this is ok. If less on SBS than Funding statement please add details to the left
B56: Is I16 showing correctly per the funding statement (This is income for extended) - This should be coded per the coding on the funding statement | D56: Using the funding statement tab check the CFR actual equals the total funded, is the SBS Budget vs Actuals report showing the same figure for this CFR on the funding statement? If its not, please add why in the cell to the left
B57: I18C - Income From Grants Provided in Relation To Coronavirus (COVID-19) Catch-up Activity - IsYTD Zero? | D57: I18C should be zero WEF 1.4.25. If it is add a Y to the left, if not please add details (discuss with Sam/Jonty if needed)
B58: I18D - Income From Other Additional Grants - Is YTD zero? | D58: I18D should be zero WEF 1.4.25. If it is add a Y to the left, if not please add details (discuss with Sam/Jonty if needed)
B59: Charges / Income - Capital | D59: Using the funding statement check the CFR actual equals the total funded, is the SBS Budget vs Actuals report showing the same figure for this on the funding statement? If its not, please add why in the cell to the left Has school got 888's & Opposite 999's in Fund 05?
B60: Check budget / ledger codes use the correct 'Fund' - is everything ok? | D60: Check that all budget / ledger codes are using the correct fund code e.g. -01, -04, check '888' and related '999' spend on Fund 05 etc.
B61: Check all Income CFR's | D61: Check all CFR totals are income entries. If ok enter Y, if not ok add details
B62: Check all Expenditure CFR's | D62: Check all expenditure CFR totals are expenditure entries. If ok enter Y, if not ok add details
B63: On the Budget vs Actuals download, is the Income in the YTD Actuals column and Projected YE Outturn column as a "+"? | D63: Income should be shown as Positive figures, if they are not, we will need to ask school to remove their CEA and re import (whilst importing they will need to deselect (untoggle) (make grey) Income as Positive)
B64: Any additional notes relating to SBS | D64: Add any additional findings or queries related to SBS should be entered here.
A65: Predicted YE position | B65: Fund 01 | D65: Surplus as Positives, Deficits as Negatives
B66: Fund 02 | D66: Surplus as Positives, Deficits as Negatives
B67: Fund 08 Nursery (Day Care) | D67: Surplus as Positives, Deficits as Negatives
B68: Fund 22 Childrens Centre | D68: Surplus as Positives, Deficits as Negatives
B69: Fund 24 Community Focused | D69: Surplus as Positives, Deficits as Negatives
B70: Fund 21 Extended Schools | D70: Surplus as Positives, Deficits as Negatives
B71: Fund 23 Cluster Activities | D71: Surplus as Positives, Deficits as Negatives
B72: Fund 04 DFC | D72: Surplus as Positives, Deficits as Negatives
B73: Fund 06 DFC | D73: Surplus as Positives, Deficits as Negatives
B74: Fund 05 Other Capital | D74: Surplus as Positives, Deficits as Negatives
B75: Non CFR F05 (Eddies transfers - should be net nil) | D75: Surplus as Positives, Deficits as Negatives
B76: Fund 18 Cap Revenue | D76: Surplus as Positives, Deficits as Negatives
B77: Total | C77: =SUM(C65:C76) -> 0 | D77: Surplus as Positives, Deficits as Negatives
D78: Check to Declaration: To be left in for 2526 year end May be different if schools have a balance on Fund 21, 23 or ZZZ. These will need to be discussed with Sam/Jonty to decide if school has accounted for these correctly. As these are not on the declaration tab or journal tabs
A79: YE Balances | D79: YE Balance on Credit Card To be left in for 2526 year End Per CEA / YE Balance Sheet Journal
D80: YE Balance on Cashflow Advance To be left in for 2526 year end Per CEA and the YE Balance Sheet Journal
A81: Tracking | B81: Were there issues highlighted last month, that have still not been resolved? | D81: Please add details if this is the case and date first raised
A82: Feedback | B82: Additional Feedback | D82: Note down any other queries, errors or anomalies.
B83: Copied in FA?
B84: Date Feedback Sent to school and FA | D84: Input the date which feedback was sent to school.
B85: Feedback Email Saved | D85: Feedback email to be saved in feedback folder
A86: YEAR END ONLY | B86: Does SSCT BVA report match what schools have added to SBS Budget vs Actuals report tab
B87: If school has coded anything to the 888's code or 999's, do both codes added together total £0.00? | D87: CCC pay school for works to be completed via the funding statement, income in school gets coded to 888's-05. At year end the 888's & 999's codes should total to zero, this is because the costs will be accounted for in the CCC accounts. If they don’t total zero, school will need to enter a year end journal to zero the code, if they are sure the spend is correcly coded/not coded at all as invoice hasn't been entered. If received income in 888's & either not spent or spent part & expenditure is correctly coded, they will need to do a Receipt in Advance for the balance
B88: Does SMER include Aged Debt & Creditors report that matches the Balance Sheet totals? | D88: Not needed if creditor control account or debtor control accounts are showing as £0.00 If we cant get a report, we shouldn’t hold up journal entry if this is the only thing wrong with the SMER
B89: Have schools completed the Accrue & Prepayments tabs ?
B90: Do the Accrue & Prepayment tab totals match the CEA/Balance Sheet Accrue & Prepay code? | D90: Check difference cell shows £0 on reserves tabs
B91: Do the accruals and prepayments look correct? Correct values, descriptions match type of year end adjustment etc
B92: Has the Y/E Declaration tab been completed?
B93: Is the check on the Y/E Declaraion tab to Balance Sheet showing a zero variance? | D93: This should be, if it doesn’t please let Sam know asap and don’t feedback to schools until this is zero
B94: Revenue Journal Template - Have you Changed name in Cell B1 to school SMER relates to?
B95: Revenue Journal Template - is income as positive?
B96: Revenue Journal Template checks - are they ok (zero) in cells J1&2 & E1? | D96: If they are not, please tell Sam ASAP
B97: Capital Journal Template checks - are they ok (zero) in cells J1&2 & E1? | D97: If they are not, please tell Sam ASAP
B98: Balance Sheet Journal Template - Have you copied and pasted values your CEA Balance sheet codes & amounts into the yellow cells B5 to 29 & C5 to C29?
B99: Balance sheet journal tab - Are checks in C48, C49, M1 & M2 zero? | D99: If they are not, please tell Sam ASAP
B100: Are all checks ok on the Journal Checks tab? Are they zero? | D100: If they are not, please tell Sam ASAP
B101: CFR Tab - are checks in column DB to DF zero? | D101: If they are not, please tell Sam ASAP
B102: Ok / Issue?
B103: Problems/Issues Details
B104: Where is feedback email? Ok or Issues folder
A106: If federated school (Kings, Queens & Trupington Fed) please do all of the checks, but when done please tell Sam before feeding back to school. She will need to change the Cost Centres and description of line to the correct school details on the journal tabs. She will also need to changeon the YE declaration tab the closing balance CFR B0X Code balances for committed spend if relating to federated schools that feeds the CFR tab.
A108: The items contained within this list is a guide and if anything else is identified when completing the review of the SMER, this should be queried with the schools and should be resolved.
B111: YEAR END CHECK ROWS HAVE BEEN HIDDEN - PLEASE COPY ALL TOGETHER AND PASTE INTO THE CONTACT LIST

Sheet SSCT - 2425 YECombinedChecklist (hidden)
A1: Schools Strategy & Corporate Team - SMER Checklist (TO BE COMPLETED BY SSCT ONLY) | E1: Do not delete to the right | F1: Y
F2: N
B3: DfE Number | C3: ='SMER Summary 25-26'!D11 -> 0 | F3: Recorded
B4: School Name | C4: ='SMER Summary 25-26'!D13 ->  | F4: Not recorded
B5: Platform | C5: ='SMER Summary 25-26'!H13 ->  | F5: Done
F6: Not Done
B7: Checklist Item | C7: Result of Check | D7: Description of check | F7: No but ok as Zero Balance on both codes
A8: Schools Email Submission | B8: Date School Submitted SMER | D8: Input the date which the school emailed School month end returns inbox. This is used to check schools submit their returns within the agreed timescales. | F8: Yes Creditors report, Not received Debtors as Zero Balance
B9: Email & SMER Saved? | D9: Confirm the email has been saved in the SMER folder. | F9: Not received Creditors report as Zero Balance, Yes to Debtors report
A10: SSCT Member | B10: Initials | D10: Input your initials to confirm who has completed the checks. | F10: Issue
B11: Date Checked | D11: Input the date when the return was checked | F11: OK
A12: Reports Included? | B12: Cumulative Expense Analysis (CEA) Report | D12: Has the CEA Report or equivalent included in the submission on its own tab?
B13: Trial Balance Report | D13: Has the Trial Balance or equivalent been included in the submission on its own tab?
B14: Fund Review | D14: Has the Fund Review Report or equivalent been included in the submission on its own tab?
B15: Bank Statement & Unreconciled report | D15: Has school put report and statement on the tabs? If yes to both enter Y, if not please add details of whats not been seen
B16: Payroll EPM Report | D16: Has the EPM report been pasted in its own tab?
B17: VAT Submital reports | D17: Does the SMER include VAT Submittal reports for the correct periods on the VAT tabs? Does it include a Short Summary for a part complete period?
A18: Checks (SMERF) | B18: Download Funding Statement & add to tab | D18: Select Done when you have done so
B19: Is the Budget vs Actuals report on the SBS Budget vs Actuals report tab? | D19: This could be sent to us via email but in the main should be reviewed by school, updated and mentioned in section 6 of the SMER Summary. If as an attachment it will need to be downloaded checked the same and added to the SBS Budget vs Actual report please
B20: Have you copied and pasted columns A-N inclusive of the SBS Budget vs Actuals report into BVA Drop Table? | D20: This needs to be done please to create journals
B21: What is the Trial Balance - Balance sheet total? | D21: FMS Trial Balances - does not show a separate line for opening balances, so you can just take the Total Balance sheet tota from the Year to Date Balance column. Bromcom Only Note - Bromcom schools use various reports to show their Balance sheet position. The Trial Balance by IE Report includes the opening balances (Retained Earnings), so you will need to remove the opening balances figure from the total to compare with the below figure off SBS Budget vs Actuals report. But some reports do not include cfwds (on the Balances & Reserves report) so Assest minus liabilities already equals SBS Budget vs Actuals (BM) report. There is therefore no need to remove Cfwds from this figure. This will match the overall total on the SBS Budget vs Actuals report
B22: FOR FMS, SAGE,XERO & (ACCESS?) - What is the total Income & Spend figure on the SBS Budget VS actual report excluding cfwds? FOR BROMCOM -What is the total Income & Spend figure on the SBS Budget vs Actuals report? | D22: Include Revenue, Extended and Capital
B23: Difference between Trial Balance - Balance sheet total & Total Income & Spend Figures on SBS | C23: =C21+C22 -> 0 | D23: Should be zero
B24: Is the CEA Balanced (YTD Actuals)? | D24: When adding up all of the actuals in the actuals column, this should come to Zero, if it does, please select Y. If it doesn’t please select N & contact Sam to see what is needed to be done.
B25: CEA Balance Sheet total (Column XXX) | D25: Go to CEA tab, highlight all columns to select all, then go to insert, pivot table, select exisiting workbook, then click on the arrow to the right of the location field and click on a blank cell to the right of the report on the CEA tab, press return and then ok. The pivot table will hw on the cell you selected. The Pivot tables field will appear to the right. Select Exclude Balance sheet accounts and value. this will appear in the bottom half of the screen, drag the sum exclude balance sheet accounts to the rows section. then click on the spreadsheet. The pivot table will then show you a total for "0"'s and one for "1"s. The 0's are the income and spend totals, the 1's show the balance sheet total. Include the 1s total as the CEA balance sheet total to the left
B26: Difference (CEA Balance Sheet Codes minus Trial Balance Sheet Codes) | C26: =C25-C21 -> 0
A27: School Month End Reconciliation Form (SMERF) | B27: 1. School Information | D27: Has the school fully completed the School Information section of the SMER, if yes, put Y in the cell to the left. If no, please add details on what they have and havent completed.
B28: 2. VAT Owed Reconciliation | D28: Check VAT Submittal amounts completed & reports included and the balance sheet value entered correctly & fully reconciles to submittals. (Y or N) If N please include what the difference is and reason why if known
B29: 2. VAT Submital reports | D29: Does the SMER Summary tab include VAT Submittal reports for the correct periods? Selecy Y or N
B30: 2. VAT Data Input Summary | D30: If the VAT submittals are correct, and the VAT reconciliation is ok (Variance = £0), check to see if the full VAT quarters have been recorded on the VAT Data Input Summary tab in the Contact List spreadseheet. If it hasn’t, and your happy we can pay it, please record it in the contact lists VAT Data Input Symmary tab. Mark as recorded or not recorded in the left
B31: 3. NatWest Reconciliation | D31: Check bank statement balance at period end & unreconciled items amount equals balance sheet amount (Y or N) If N please include whats different (amounts and any details you know)
B32: 4. Payrol Control Reconciliation | D32: Check all payroll related amounts e.g. HMRC, Pension. equal balance sheet total reconcile back to the balance sheet total. If they don’t, please add details. Mark Y if ok
B33: 5. Opening Balances | D33: Check to ensure opening balances are correct in SBS & CEA, refer to reports in the yellow section (Y or N) If N please include what reports say what and what the issue is
B34: 6. Confirmation | D34: Check this section has been completed in full. If it has put a "Y", if it hasn’t then put a "N" and add details to this cell.
B35: Is the name of 'Locked' Budget showing latest Forecast/Projected Outturn in SBS at the time of completing this SMER listed in Section 6, Locked on SBS? | D35: If no enter details in the cell to the left
B36: Does the CEA show the Rates Journals required? If it doesn’t please add notes to the left. If ok add Y | D36: Correspondance to schools are saved here (shows coding)
B37: Are the Accruals & Prepayments codes Clear/Zero on the CEA? (Y = Yes, N=No) | D37: Pre year end. ACCRUE, PREPAY & ACCINT codes should all be zero (0.00). Entries should have been reversed in period 1 of 24/25 to the exact pence.
B38: Are these codes zero on the CEA? SUSPENSE-01, Contingency Fund - 47570750-01, 02 etc, Contribution to Reserves - 47570600-01, 02 etc, Unallocated - 47570700-01, 02 etc? | D38: Add details of the codes that aren't zero to the left or if all zero then, Y
B39: Has school been told they can close 23/24? | D39: If yes, add the date the school was told to. If been told in previous months, this will be shown on last months tab in the Contact List. Eg Column BP on December 24 tab
B40: Any additional notes relating to the SMER | D40: Add any additional findings or queries here
A41: SBS Online | B41: I01 - Formula Funding | D41: Using the funding statement tab check the CFR actual equals the total funded, is the SBS Budget vs Actuals report showing the same figure for this CFR on the funding statement? If its not, please add why in the cell to the left
B42: I02 - Sixth Form Funding | D42: Using the funding statement tab check the CFR actual equals the total funded, is the SBS Budget vs Actuals report showing the same figure for this CFR on the funding statement? If its not, please add why in the cell to the left
B43: I03 - SEN Funding | D43: Using the funding statement tab check the CFR actual equals the total funded, is the SBS Budget vs Actuals report showing the same figure for this CFR on the funding statement? If its not, please add why in the cell to the left
B44: I05 - Pupil Premium Funding | D44: Using the funding statement tab check the CFR actual equals the total funded, is the SBS Budget vs Actuals report showing the same figure for this CFR on the funding statement? If its not, please add why in the cell to the left
B45: I18C - Income From Grants Provided in Relation To Coronavirus (COVID-19) Catch-up Activity | D45: Using the funding statement tab check the CFR actual equals the total funded, is the SBS Budget vs Actuals report showing the same figure for this CFR on the funding statement? If its not, please add why in the cell to the left
B46: I18D - Income From Other Additional Grants | D46: Using the funding statement tab check the CFR actual equals the total funded, is the SBS Budget vs Actuals report showing the same figure for this CFR on the funding statement? If its not, please add why in the cell to the left
B47: Charges / Income - Capital | D47: Using the funding statement check the CFR actual equals the total funded, is the SBS Budget vs Actuals report showing the same figure for this on the funding statement? If its not, please add why in the cell to the left Has school got 888's & Opposite 999's in Fund 05?
B48: Is I16 showing correctly per the funding statement (This is income for extended) - This should be coded per the coding on the funding statement | D48: Using the funding statement tab check the CFR actual equals the total funded, is the SBS Budget vs Actuals report showing the same figure for this CFR on the funding statement? If its not, please add why in the cell to the left
B49: CI01 DFC Funding | D49: Using the funding statement tab check the CFR actual equals the total funded, is the SBS Budget vs Actuals report showing the same figure for this CFR on the funding statement? If its not, please add why in the cell to the left
B50: Check budget / ledger codes use the correct 'Fund' - is everything ok? | D50: Check that all budget / ledger codes are using the correct fund code e.g. -01, -04, check '888' and related '999' spend on Fund 05 etc.
B51: Check all Income CFR's | D51: Check all CFR totals are income entries. If ok enter Y, if not ok add details
B52: Check all Expenditure CFR's | D52: Check all expenditure CFR totals are expenditure entries. If ok enter Y, if not ok add details
B53: On the CFR Budget Monitor download, is the Income as a "-"? | D53: Income should be shown as a minus, if its not, change this by clicking on the -/+ button within SBS and the report, then download
B54: Any additional notes relating to SBS | D54: Add any additional findings or queries related to SBS should be entered here.
A55: Projected YE position | B55: Fund 01 | C55: ='YE Declaration'!C33 -> 0 | D55: Linked to Declaration tab. This figure will only be correct if you have copied and pasted the SBS Budget vs actuals original report cells into the BVA Drop table tab. Surplus as Positives, Deficits as Negatives
B56: Fund 02 | C56: ='YE Declaration'!D33 -> 0 | D56: Linked to Declaration tab. This figure will only be correct if you have copied and pasted the SBS Budget vs actuals original report cells into the BVA Drop table tab. Surplus as Positives, Deficits as Negatives
B57: Fund 08 Nursery (Day Care) | C57: ='YE Declaration'!E33 -> 0 | D57: Linked to Declaration tab. This figure will only be correct if you have copied and pasted the SBS Budget vs actuals original report cells into the BVA Drop table tab. Surplus as Positives, Deficits as Negatives
B58: Fund 22 Childrens Centre | C58: ='YE Declaration'!F33 -> 0 | D58: Linked to Declaration tab. This figure will only be correct if you have copied and pasted the SBS Budget vs actuals original report cells into the BVA Drop table tab. Surplus as Positives, Deficits as Negatives
B59: Fund 24 Community Focused | C59: ='YE Declaration'!G33 -> 0 | D59: Linked to Declaration tab. This figure will only be correct if you have copied and pasted the SBS Budget vs actuals original report cells into the BVA Drop table tab. Surplus as Positives, Deficits as Negatives
B60: Fund 21 Extended Schools | D60: Please add balance if use this fund even if balance is £0.00, please leave blank if school doesn’t use this fund
B61: Fund 23 Cluster Activities | D61: Please add balance if use this fund even if balance is £0.00, please leave blank if school doesn’t use this fund
B62: Fund 04 DFC | C62: ='YE Declaration'!I33 -> 0 | D62: Linked to Declaration tab. This figure will only be correct if you have copied and pasted the SBS Budget vs actuals original report cells into the BVA Drop table tab. Surplus as Positives, Deficits as Negatives
B63: Fund 06 DFC | C63: ='YE Declaration'!J33 -> 0 | D63: Linked to Declaration tab. This figure will only be correct if you have copied and pasted the SBS Budget vs actuals original report cells into the BVA Drop table tab. Surplus as Positives, Deficits as Negatives
B64: Fund 05 Other Capital | C64: ='YE Declaration'!K33 -> 0 | D64: Linked to Declaration tab. This figure will only be correct if you have copied and pasted the SBS Budget vs actuals original report cells into the BVA Drop table tab. Surplus as Positives, Deficits as Negatives
B65: Non CFR F05 (Eddies transfers - should be net nil) | D65: Please add balance if have entries against CFR ZZZ even if balance is £0.00, please leave blank if school doesn’t have anything in this CFR code
B66: Fund 18 Cap Revenue | C66: ='YE Declaration'!L33 -> 0 | D66: Linked to Declaration tab. This figure will only be correct if you have copied and pasted the SBS Budget vs actuals original report cells into the BVA Drop table tab. Surplus as Positives, Deficits as Negatives
B67: Total | C67: =C66+C65+C64+C63+C62+C61+C60+C59+C58+C57+C56+C55 -> 0 | D67: Surplus as Positives, Deficits as Negatives
B68: Check to Declaration | C68: =C67-'YE Declaration'!M33 -> 0 | D68: May be different if schools have a balance on Fund 21, 23 or ZZZ. These will need to be discussed with Sam/Jonty to decide if school has accounted for these correctly. As these are not on the declaration tab or journal tabs
A69: YE Balances | B69: YE Balance on Credit Card | C69: ='Balance Sheet Journal Template'!C35 -> 0 | D69: Per CEA / YE Balance Sheet Journal
B70: YE Balance on Cashflow Advance | C70: ='Balance Sheet Journal Template'!C43 -> 0 | D70: Per CEA and the YE Balance Sheet Journal
A71: Feedback | B71: Additional Feedback | D71: Note down any other queries, errors or anomalies.
B72: Copied in FA?
B73: Date Feedback Sent to school and FA | D73: Input the date which feedback was sent to school.
B74: Feedback Email Saved | D74: Feedback email to be saved in feedback folder
A75: YEAR END ONLY | B75: Does SSCT BVA report match what schools have added to SBS Budget vs Actuals report tab
B76: If school has coded anything to the 888's code or 999's, do both codes added together total £0.00? | D76: CCC pay school for works to be completed via the funding statement, income in school gets coded to 888's-05. At year end the 888's & 999's codes should total to zero, this is because the costs will be accounted for in the CCC accounts. If they don’t total zero, school will need to enter a year end journal to zero the code, if they are sure the spend is correcly coded/not coded at all as invoice hasn't been entered. If received income in 888's & either not spent or spent part & expenditure is correctly coded, they will need to do a Receipt in Advance for the balance
B77: Does SMER include Aged Debt & Creditors report that matches the Balance Sheet totals? | D77: Not needed if creditor control account or debtor control accounts are showing as £0.00 If we cant get a report, we shouldn’t hold up journal entry if this is the only thing wrong with the SMER
B78: Have schools completed the Accrue & Prepayments tabs ?
B79: Do the Accrue & Prepayment tab totals match the CEA/Balance Sheet Accrue & Prepay code? | D79: Check difference cell shows £0 on reserves tabs
B80: Do the accruals and prepayments look correct? Correct values, descriptions match type of year end adjustment etc
B81: Has the Y/E Declaration tab been completed?
B82: Is the check on the Y/E Declaraion tab to Balance Sheet showing a zero variance? | D82: This should be, if it doesn’t please let Sam know asap and don’t feedback to schools until this is zero
B83: Revenue Journal Template - Have you Changed name in Cell B1 to school SMER relates to?
B84: Revenue Journal Template - is income as positive?
B85: Revenue Journal Template checks - are they ok (zero) in cells J1&2 & E1? | D85: If they are not, please tell Sam ASAP
B86: Capital Journal Template checks - are they ok (zero) in cells J1&2 & E1? | D86: If they are not, please tell Sam ASAP
B87: Balance Sheet Journal Template - Have you copied and pasted values your CEA Balance sheet codes & amounts into the yellow cells B5 to 29 & C5 to C29?
B88: Balance sheet journal tab - Are checks in C48, C49, M1 & M2 zero? | D88: If they are not, please tell Sam ASAP
B89: Are all checks ok on the Journal Checks tab? Are they zero? | D89: If they are not, please tell Sam ASAP
B90: CFR Tab - are checks in column DB to DF zero? | D90: If they are not, please tell Sam ASAP
B91: Ok / Issue?
B92: Problems/Issues Details
B93: Where is feedback email? Ok or Issues folder
A95: If federated school (Kings, Queens & Trupington Fed) please do all of the checks, but when done please tell Sam before feeding back to school. She will need to change the Cost Centres and description of line to the correct school details on the journal tabs. She will also need to changeon the YE declaration tab the closing balance CFR B0X Code balances for committed spend if relating to federated schools that feeds the CFR tab.
A97: The items contained within this list is a guide and if anything else is identified when completing the review of the SMER, this should be queried with the schools and should be resolved.

Sheet Year End Info (hidden)
A1: If there is missing reports, or report differences in rows 12-26, please return to school and ask them to re run all of the reports and complete a new SMER. We do not have time to check SMERs twice, so we need to send email to ask for new SMER and move on to the next
A2: If rows 12-26 inc are ok, continue to check the SMER. If we notice reconciliation differences, please do as you normally do, check all areas and feedback, but ask for these to be looked into and resolved as a matter of urgency please.
A4: Schools will need to import their latest YTD Actuals into SBS in the month of March (their Final YTD figures for the FY 25/26) They then need to run their Budget vs Actuals report, selecting Budget Month March They need to Export their Budget Vs Actuals report Copy and paste their final Budget Vs Actuals report showing their latest, final 25/26 YTD Actuals on to the SBS Budget vs Actuals report tab Then copy and paste columns A-N inclusive on the BVA drop tab
A5: You do not need to calculate the Fund Balances to record on the Checklist as you do normally.
A6: The YE declaration will do this for you using the formulas on the Summary tab… as long as the school has copied columns A-N inc of the SBS Budget vs Actuals report into the BVA Drop table tab.
A8: Journals to be entered at the end, once all schools have been checked please
A9: They can only be entered if all checks on the journals tabs and the journal check tab are ok
A13: If you are happy that the SMER is correct, and there are no issues please feedback:
A14: Thank you for submitting your year-end documents. I have reviewed your submission and I’m satisfied that your accounts are complete for 2025/26.
A15: You MUST NOT make any changes to your system.
A17: Below is the year-end balance statement of each fund for your school at the end of March 2026.
A19: Copying the Declaration tab rows 25 to 33 (table), & pasting and deleting the red highlighted rows shown below (including whats in columns A & M in the below):
B21: Fund 01 | C21: Fund 02 | D21: Fund 08 | E21: Fund 22 | F21: Fund 24 | G21: - | H21: Fund 04 | I21: Fund 06 | J21: Fund 05 | K21: Fund 18 | L21: 24/25 Total (All Funds) | M21: CHECK (Should be Zero)
B22: Formula / Revenue | C22: Formula / Revenue | D22: Nursery (Day Care) | E22: Childrens Centres | F22: Community Focused Activities | H22: DFC | I22: DFC | J22: External Capital
B23: +Surplus -Deficit | C23: +Surplus -Deficit | D23: +Surplus -Deficit | E23: +Surplus -Deficit | F23: +Surplus -Deficit | H23: +Surplus -Deficit | I23: +Surplus -Deficit | J23: +Surplus -Deficit | K23: +Surplus -Deficit | L23: +Surplus -Deficit
B24: FD-01 | C24: FD-02 | D24: FD-08 | E24: FD-22 | F24: FD-24 | G24: - | H24: FD-04 | I24: FD-06 | J24: FD-05 | K24: FD-18
A25: Opening Balance (+Surplus -Deficit) | B25: 0 | C25: 0 | D25: 0 | E25: 0 | F25: 0 | H25: 0 | I25: 0 | J25: 0 | K25: 0 | L25: 0 | M25: CORRECT
A26: In Year position (+Surplus -Deficit) | B26: 0 | C26: 0 | D26: 0 | E26: 0 | F26: 0 | H26: 0 | I26: 0 | J26: 0 | K26: 0 | L26: 0 | M26: 0
A27: Actual Cumulative Total (+Surplus -Deficit) | B27: 0 | C27: 0 | D27: 0 | E27: 0 | F27: 0 | H27: 0 | I27: 0 | J27: 0 | K27: 0 | L27: 0 | M27: 0
A28: Adjustment for FUND08 & 24 (FNDX-01) | B28: 0 | C28: 0 | D28: 0 | F28: 0 | L28: 0 | M28: 0
A29: Total Adjusted Fund Balances (Final figures) | B29: 0 | C29: 0 | D29: 0 | E29: 0 | F29: 0 | H29: 0 | I29: 0 | J29: 0 | K29: 0 | L29: 0 | M29: 0
A31: Showing it like this:
B33: Fund 01 | C33: Fund 02 | D33: Fund 08 | E33: Fund 22 | F33: Fund 24 | G33: - | H33: Fund 04 | I33: Fund 06 | J33: Fund 05 | K33: Fund 18 | L33: 24/25 Total (All Funds)
B34: +Surplus -Deficit | C34: +Surplus -Deficit | D34: +Surplus -Deficit | E34: +Surplus -Deficit | F34: +Surplus -Deficit | H34: +Surplus -Deficit | I34: +Surplus -Deficit | J34: +Surplus -Deficit | K34: +Surplus -Deficit | L34: +Surplus -Deficit
B35: 0 | C35: 0 | D35: 0 | E35: 0 | F35: 0 | H35: 0 | I35: 0 | J35: 0 | K35: 0 | L35: 0
A37: Please make sure these carry forwards are correctly entered into the budget prior to Governors approval.
A40: Your accounts must match these figures at the end of 31st March, and a PRELIMINARY close completed on 1st April please.
A43: If you have entered your Accruals and Prepayments on a Standard Journal, in the new financial year (in period 1 of 26/27) please remember to reverse your accruals and prepayments journals per the Accruals and Prepayments tabs instructions. If you have entered your Accruals and Prepayments on reversing journals, please check your period 1 balances on these codes are zero.
A45: If there are any problems or queries then please get in touch.

Sheet Funding Statement

Sheet SBS Budget vs Actuals report

Sheet Timetable 2025-26
B1: School Funding & Month End Reconciliation Timetable 2025-26
B3: Month / Period End | C3: Funding Date – Transfer to School’s Bank Account | D3: Deadline for schools to complete period end procedure on financial system and SBS
B4: 2025-04-01 | C4: Tuesday 22 April 2025 | D4: Monday 19 May 2025 (Optional)
B5: 2025-05-01 | C5: Wednesday 21 May 2025 | D5: Tuesday 10 June 2025
B6: 2025-06-01 | C6: Friday 20 June 2025 | D6: Friday 18 July 2025
B7: 2025-07-01 | C7: Friday 18 July 2025 | D7: Monday 11 August 2025 (Optional)
B8: 2025-08-01 | C8: Thursday 21 August 2025 | D8: Thursday 11 September 2025
B9: 2025-09-01 | C9: Friday 19 September 2025 | D9: Thursday 9 October 2025
B10: 2025-10-01 | C10: Tuesday 21 October 2025 | D10: Friday 7 November 2025
B11: 2025-11-01 | C11: Friday 21 November 2025 | D11: Thursday 11 December 2025
B12: 2025-12-01 | C12: Friday 19 December 2025 | D12: Friday 9 January 2026
B13: 2026-01-01 | C13: Friday 16 January 2026 | D13: Friday 6 February 2026
B14: 2026-02-01 | C14: Friday 20 February 2026 | D14: Wednesday 11 March 2026
B15: March 26 (Year End) | C15: Wednesday 18 March 2026 | D15: Tuesday 24 March 2026
B17: All schools need to have completed their month end procedures by the date published above. If a school thinks they may not be able to report by the relevant deadline, they will need to contact the Schools Strategy & Corporate Team at the earliest opportunity to discuss the situation, please email bank.account@cambridgeshire.gov.uk.
B19: *The deadline for schools to submit their Year End return is on the 24th March 2026. Finance staff and Head Teachers will need to plan resources and workload accordingly to meet the deadline. Please notify us before the 24th March 2026 if any of your staff are unable to answer any questions re their Year End returns over the Easter Holidays. SSCT need to know this to enable them to complete the year end checking in accordance with CCC's closedown timetable. Please note that the Easter holidays for 2025/26 are from 30th March 2026 to 10th April 2026 (inclusive).

Sheet Access Instructions
A1: Instructions - School Month End Reconciliation (SMER) Form 2025-26 For ACCESS | R1: Click here for 'SMER Summary 25-26' tab
A3: Please ensure you have posted all of your journals (including your Payroll Journals) before running any month end reports.
A5: Please also ensure you have entered your Opening Balance budgets on SBS before entering anything else into SBS by following this procedure:
A6: You will only need to enter the Opening Balances once.
A7: To add an Opening Balance in SBS, please go to: Budgeting > Overview > Opening Balances > Add
A9: 4
A10: Enter values into each field as required:
A11: · Type – select the type from the dropdown to determine the stream in which it will be shown (revenue, capital or extended).
A12: · Description – enter a description for the Opening Balance.
A13: · Value – enter the value. A deficit figure should be entered with a negative sign.
A14: The Value amount must equal the amount SSCT confirmed as your closing balances for each fund. These amounts also appear on your SMERs opening balances tab.
A15: This amount should also equal your actuals on your own finance system
A16: If they are not the same, please contact SSCT via the bank.account@cambridgeshire.gov.uk email address to discuss.
A17: At the moment, the Budget vs Actuals report isn't showing separate Opening Balances for each fund even if you add it in individually. So for now, please just add 3 entries in this screen; a total for revenue, one for capital and one for extended. Add a details saying Fund 04 £x, fund 05 £x Etc
A18: Click Save & Close.
A19: Note that Opening Balances are Budget-specific, meaning that the numbers you enter for each will be displayed in the Brought Forward section on reports in year 1 of the current Budget.
A21: There are 3 main steps when completing a standard School Month End Reconciliation (SMER) process:
A23: 1. | B23: Firstly, the below reports are to be downloaded from your school finance system for the period end:
B24: a. Cumulative Expense Analysis (CEA) – in CSV format
B25: - Create from BvAvC report using conversion spreadsheet, Instructions are within the spreadsheet but select period 0-13 and leave cost centre box empty (that way all cost centres and full year budget will be included)
B26: - This should be a report of all codes (including balance sheet codes) as at the relevant period
B29: b. Trial Balance– in excel format
B30: - This needs to be copied and pasted onto the yellow 'Trial Balance' tab within the SMER 25-26 excel file.
B31: - This should be a Trial Balance report showing the debit and credit sides of the balance sheet from your financial system
B33: c. Aged Creditors and Aged Debtors reports
B34: - Please copy and paste these reports into the Aged Creditors and Aged Debtors tabs & complete sections 6 & 7 of the SMER Summary tab.
A35: After running these reports, you will need to manually amend the CEA report.
A37: The minimum columns needed on your CEA report are:
A38: Column Headers | C38: What should be included in this column
A39: BudgetCode | C39: Budget Ledger Code
A40: CostCentre | C40: Cost Centre Code
A41: Type | C41: Type in the word “Actuals” on each row
C42: This is new for the upgraded SBS, it will not automatically appear from your system
C44: You will need to manually add a column header called “Type”.
A45: Value | C45: This shows your Year to Date (YTD) actual values
A46: Descriptions | C46: Budget Ledger Code Description
A47: BudgetCodeFilter | C47: Your schools 4 number DFE number typed in every row (last 4 numbers)
C48: This is new for the upgraded SBS, it will not automatically appear from your system
C49: You will need to manually add a column header called “School ID” & type in your DFE number against every row.
A51: You do not need to delete any of the other columns you have on your CEA report, they will just be ignored when the report is imported into SBS.
A52: Please make sure your report includes column headers – it will make it a lot easier for you later in the process.
B54: Now you need to prepare the file/report for import. To do this, please do the below:
B55: 1) Remove any subtotals or blank lines, it is recommended to keep a header row on the file (Column headers)
B56: 2) Add a column called Type. Please type in the word “Actuals” under this column header on all rows. An easy way of doing this, is type Actuals on the first row under the column header Type, then copy this and paste values in all the other rows.
B57: 3) In the School ID column, add the last 4 numbers of your DFE number on each row under this column. An easy way of doing this, is type it on the first row, then copy this and paste values in all the other rows. The same DFE number needs to appear on all rows under the column header “School ID”.
B58: 4) Save the file as a CSV. Comma Delimited
B60: - This needs to be copied and pasted onto the yellow 'CEA' tab within the SMER 25-26 excel file. *Save this file for the SBS upload process*
B61: - This should be a report of all codes (including Balance Sheet codes) as at the relevant period
A63: 2. | B63: School Month End Reconciliation (SMER) Form, enables you to confirm and check the following month end reconciliations have been completed:
B65: a. VAT Owed
B66: b. NatWest Bank
B67: c. Payroll Control
B68: d. Opening Balances
A70: 3. | B70: Completing the School Month End Reconciiation (SMER) Form
B72: Section 1 - School Information
B73: - Enter the month end you are checking and reconciling from the drop down in cell D9.
B74: - Enter the last 4 digits of your schools DfE number into cell D11 or select from the drop down box.
B76: Section 2 - VAT Owed - Reconciliation
B93: The VAT tabs should show copied data from the VAT reports for each quarter. When you submit your VAT within Access, copy the VAT Return Detail to Excel and populate the relevant VAT Quarter Tab
B94: Ensure you also produce a PDF Vat Return for signing
B95: You need to copy / paste the data from the relevant VAT report into the relevant Quarter tab (do this by "PASTE" rather than "PASTE SPECIAL")
B96: For the VAT Present Quarter tab you will use the current/present quarter VAT report - Reports: VAT: VAT Return Period 0-13, exclude zero balances, submit. When loaded choose ‘VAT Full Report’ to paste to VAT Present Quarter tab, the summary is at the bottom of the report
B97: On the summary page, we ask you to type in the VAT to reclaim for each complete Quarter or Present Quarter summary. Please do NOT copy/paste.
B98: The column on the reconciliations tab for “Outstanding” relates to whether each VAT period is outstanding for refund or not. This allows you to keep a record of them all, but only include the outstanding ones in the reconciliation of VAT due to your school.
B99: There is a yellow box in the VAT section to explain any differences left after the data has been entered.
B100: The VAT reports you run in Access are the reports of the completed quarters, and the “VAT Present quarter” is for the existing quarter
B101: (for example if you are doing month end work on the 3rd October, you will have VAT reports for Q1 and Q2, and a VAT Present Quarter report for the period October to December with only 3 days worth of VAT so far).
B102: Each months return should have a Present summary for the existing calendar quarter
B104: - Using the report saved onto the 'Trial Balance' tab, add the VAT Control figure in the yellow box under code "VAT".
B106: Section 3 - NatWest Bank - Reconciliation
B119: The NatWest Bank Reconcilaition allows you to check the bank statement against the bank balance within Access
B120: You need to enter the figure from the bank statement, and the total of the “Unreconciled items” that is a list of items on your system that have not yet been through the bank. Please add details of these transactions on the Bank Unreconciled Items tab
B121: This should all reconcile, but any difference can be explained in the yellow box.
B122: Please provide us with a copy of your Bank Statement showing the balance you have entered on your Bank Reconciliation section by adding a screen shot to the "Bank Statement" Tab
B123: Section 4 - Payroll Control - Reconciliation
B140: This is different to the SBS Payroll Reconciliation.
B141: This reconciliation is checking your Payroll Control journal in your accounting software is correct and that you have entered and are being charged the correct amount through the bank for Payroll charges
B142: The payroll control reconciliation allows you to check that the pay costs that you are still expecting, match against the Payroll Control code. The yellow cells are the most likely items that may or may not need to be included in the calculation, but use this in the best way for you.
B143: We suggest that to find any differences, you check on the transactions for each month within a transactions list of code PAYROLL
B144: The total transactions for each month should show £0.
B145: If they do not, then investigate what has been missed, and if necessary contact SSCT for advice.
B146: Please add a screen shot of the EPM Summary report on the "EPM Summary" tab. These figures should match what you have entered in the Payrol Reconciliation section of the Summary Tab (Unless you have any historical outstanding amounts)
B147: Section 5 - Opening Balances - Reconciliation
B163: Using your CEA Report, enter your opening fund balances in the yellow highlighted cells on the SMER summary.
B164: Any Variances need to be investigated.
B165: The Opening Balances tab should also match your Trial Balance, as this is what was reported at year end.
B166: Please contact SSCT if you have any concern or queries
B168: Now the Cumulative Expense Analysis (CEA) report (Created from BvAvC report using conversion spreadsheet in Step 1) needs to be uploaded into SBS
B170: You now need to upload the CEA downloaded and amended per the above instructions
B172: Go to Console > Monitoring > Actuals & Commitments
B174: It will bring up this screen:
B176: To the right, select the month and year as required, here:
I177: If you are importing the CEA that inlcludes the actuals for 1st April 25 to 31 January 26, please change this to January 26
B178: When importing your CEA please make sure you have selected the correct month in here before pressing Import:
B179: Once you are happy you have selected the correct month…..
B180: Click on Import, this will appear:
B183: Select the file by clicking in the paper clip box
B184: Then de-select the Income is Positive toggle (Make it grey) as our income figures on your CEA show as negative amounts, like this:
B186: Make sure you include Header rows (must be toggled blue)
B187: And when done this click continue
B188: If the header row matches the field required, it will be shown in bold, if not a ‘not mapped’ will show. Click on the fields to show a drop down and map accordingly.
B189: Click Import, a confirmation message will show the number of lines, check this is the number you were expecting, when happy, click import when ready.
B190: Message will show any errors or if import is successful, click done to close.
B192: Please Note Only approved Budget / Ledger Codes are available to use in SBS. If you are using a budget code not included on the Chart of Accounts, the upload will fail and you will need to select an available budget code, available codes are on the published Chart of Accounts or can be viewed on SBS (Budgeting>Overview >Coding Index). This will need to be corrected on the school finance system and the reports rerun.
B194: Once uploaded, you will now be able to view all your income and expenditure per CFR code either in the SBS system or by exporting into excel.
B195: Now review your forecasts
B196: When you have forecasted please complete the below
B198: Sections 6 & 7
B199: Please complete the SMER Summary tab and copy & paste the reports into the Aged Creditors & Aged Debtors tabs
B201: Section 8 - Checklist and Confirmation
J204: Fixed is now called Locked since the migration in August/September 24
J210: It is import you also complete this please
B218: You will need to do the following each month after entering the CEA into SBS & you are happy with the forecast in SBS:
B220: How to FIX/Lock a budget profile/planner
B221: In the legacy system you FIXED a budget profile/planner
B222: In the migrated SBS Fix is called LOCK.
B224: To lock a budget in the Migrated SBS, please go to: Console>Budgets>Management
B225: This will show all schools budgets. You can only view the ones for your school.
B226: In the search field, type your school name. This will just bring up the budgets you have access to.
B227: Select the budget you have just forecasted in and are happy with, by clicking on the square to the left of the name
B228: Now click on the 3 dots next to the search field
B229: Select Lock.
B230: You will then see a new budget appear, called the name you just locked plus (duplicate showing date and time). Click on this name.
B231: Click on Edit Budget shown to the right of the screen
B232: Click on the name field – delete name and rename.
B233: Then when happy with the new name, click on the blue save budget button on the right.
B234: We would like to see your budgets called: The Month & Year, the word “SMER” a “-“ & then your school name please.
B235: If you had just completed the forecast for August (eg in early September), you would be locking the budget called: August 25 SMER – name of your school, when you lock it, it would create an auto duplicate and you would be renaming it: Sept 25 SMER – school name.
B236: This would then be ready for you to upload the CEA into in early October 25 to show all income and spend for the period 1.4.25-30.9.25.
B237: Throughout the month of September 25 you can then amend any staff contracts, staff members etc in the budget called Sept 25 SMER – School name.
B240: Please do not archive/hide your last submitted SMER budget profile (the one you show in section 6)
B242: Complete all cells highlighted in yellow. Please note '6. Upload into SBS, checked and completed' is covered in the section above.
A246: 4. | B246: Then finally, submit your completed SMER form to Schools Strategy & Corporate Team

Sheet Opening Balance
B1: Opening Balances 2025/26 | E1: Click here to review 'SMER Summary 25-26' tab
B3: DfE Number | C3: School Name
B4: ='SMER Summary 25-26'!D11 -> 0 | C4: =IF(ISERROR(VLOOKUP(B4,'School Information'!A:B,2,FALSE)),"",VLOOKUP(B4,'School Information'!A:B,2,FALSE)) -> 
B5: ='SMER Summary 25-26'!H15 -> N/A | C5: =IF(ISERROR(VLOOKUP(B5,'School Information'!A:B,2,FALSE)),"",VLOOKUP(B5,'School Information'!A:B,2,FALSE)) -> 
B7: Fund | C7: Fund Description | D7: School | E7: SSCT Confirmed Opening Balance
B8: Fund 01 | C8: Formula / Revenue | D8: =C4 ->  | E8: =IF(ISNA(VLOOKUP($B$4,'School Information'!$A:$G,5,FALSE)),0,VLOOKUP($B$4,'School Information'!$A:$G,5,FALSE)) -> 0
B9: Fund 02 | C9: Formula / Revenue *Federated Schools Only* | D9: =C5 ->  | E9: =IF(ISNA(VLOOKUP($B$5,'School Information'!$A:$G,5,FALSE)),0,VLOOKUP($B$5,'School Information'!$A:$G,5,FALSE)) -> 0
B10: Fund 21 | C10: Extended Schools (Bankers only) | D10: =$C$4&" / "&$C$5 -> / | E10: =(IF(ISNA(VLOOKUP($B$4,'School Information'!$A:$G,7,FALSE)),0,VLOOKUP($B$4,'School Information'!$A:$G,7,FALSE)))+(IF(ISNA(VLOOKUP($B$5,'School Information'!$A:$G,7,FALSE)),0,VLOOKUP($B$5,'School Information'!$A:$G,7,FALSE))) -> 0
B11: Fund 23 | C11: Cluster Activities (Banker Schools) | D11: =$C$4&" / "&$C$5 -> / | E11: =(IF(ISNA(VLOOKUP($B$4,'School Information'!$A:$I,9,FALSE)),0,VLOOKUP($B$4,'School Information'!$A:$I,9,FALSE)))+(IF(ISNA(VLOOKUP($B$5,'School Information'!$A:$I,9,FALSE)),0,VLOOKUP($B$5,'School Information'!$A:$I,9,FALSE))) -> 0
B12: Total Revenue | E12: =SUM(E8:E11) -> 0
B13: Fund 08 | C13: Nursery (Day Care) | D13: =$C$4&" / "&$C$5 -> / | E13: =(IF(ISNA(VLOOKUP($B$4,'School Information'!$A:$J,6,FALSE)),0,VLOOKUP($B$4,'School Information'!$A:$J,6,FALSE)))+(IF(ISNA(VLOOKUP($B$5,'School Information'!$A:$J,6,FALSE)),0,VLOOKUP($B$5,'School Information'!$A:$J,6,FALSE))) -> 0
B14: Fund 22 | C14: Childrens Centres | D14: / | E14: =(IF(ISNA(VLOOKUP($B$4,'School Information'!$A:$J,8,FALSE)),0,VLOOKUP($B$4,'School Information'!$A:$J,8,FALSE)))+(IF(ISNA(VLOOKUP($B$5,'School Information'!$A:$J,8,FALSE)),0,VLOOKUP($B$5,'School Information'!$A:$J,8,FALSE))) -> 0
B15: Fund 24 | C15: Community Focused Activities | D15: / | E15: =(IF(ISNA(VLOOKUP($B$4,'School Information'!$A:$J,10,FALSE)),0,VLOOKUP($B$4,'School Information'!$A:$J,10,FALSE)))+(IF(ISNA(VLOOKUP($B$5,'School Information'!$A:$J,10,FALSE)),0,VLOOKUP($B$5,'School Information'!$A:$J,10,FALSE))) -> 0
B16: Total Community / Extended | E16: =SUM(E13:E15) -> 0
B17: Fund 04 | C17: Devolved Formula Capital | D17: =C4 ->  | E17: =IF(ISNA(VLOOKUP($B$4,'School Information'!$A:$N,12,FALSE)),0,VLOOKUP($B$4,'School Information'!$A:$N,12,FALSE)) -> 0
B18: Fund 06 | C18: Devolved Formula Capital *Federated Schools Only* | D18: =C5 ->  | E18: =IF(ISNA(VLOOKUP($B$5,'School Information'!$A:$N,12,FALSE)),0,VLOOKUP($B$5,'School Information'!$A:$N,12,FALSE)) -> 0
B19: Fund 05 | C19: Other Capital | D19: =$C$4&" / "&$C$5 -> / | E19: =(IF(ISNA(VLOOKUP($B$4,'School Information'!$A:$N,13,FALSE)),0,VLOOKUP($B$4,'School Information'!$A:$N,13,FALSE)))+(IF(ISNA(VLOOKUP($B$5,'School Information'!$A:$N,13,FALSE)),0,VLOOKUP($B$5,'School Information'!$A:$N,13,FALSE))) -> 0
B20: Fund 18 | C20: Capitalised Revenue | D20: / | E20: =(IF(ISNA(VLOOKUP($B$4,'School Information'!$A:$N,14,FALSE)),0,VLOOKUP($B$4,'School Information'!$A:$N,14,FALSE)))+(IF(ISNA(VLOOKUP($B$5,'School Information'!$A:$N,14,FALSE)),0,VLOOKUP($B$5,'School Information'!$A:$N,14,FALSE))) -> 0
B21: Total Capital | E21: =SUM(E17:E20) -> 0
B22: Total (Revenue + Community + Capital) | E22: =SUM(E12,E16,E21) -> 0

Sheet ISB (hidden)
A1: Budget Code | C1: FUND-01 | D1: FUND-02 | F1: FY 23/24
A2: Description | C2: Funding Installment (Revenue) | D2: 1.Trumpington - Basic Entitlement (AWPU)
A3: Cambridgeshire County Council | C3: 0 | D3: 0 | H3: Committed
A4: Abbots Ripton CofE Primary Schoo... | B4: 3373 | C4: 532704 | D4: 0 | H4: Properly Assigned
A5: Alconbury CofE Primary School (C... | B5: 3061 | C5: 952849 | D5: 0
A6: Alderman Payne Primary School (C... | B6: 2083 | C6: 611425 | D6: 0
A7: Arbury Primary School (Cambridge... | B7: 2118 | C7: 1824937 | D7: 0
A8: Barnabas Oley CofE Primary Schoo... | B8: 3067 | C8: 701347 | D8: 0
A9: Barrington CofE VC Primary Schoo... | B9: 3001 | C9: 676941 | D9: 0
A10: Barton CofE VA Primary School (C... | B10: 3301 | C10: 539717 | D10: 0
A11: Bassingbourn Primary School (Cam... | B11: 2002 | C11: 1733401 | D11: 0
A12: Beaupre Community Primary School... | B12: 2082 | C12: 934013 | D12: 0
A13: Benwick Primary School (Cambridg... | B13: 2060 | C13: 628210 | D13: 0
A14: Bewick Bridge Community Primary ... | B14: 2312 | C14: 902724 | D14: 0
A15: Brampton Village Primary School ... | B15: 3942 | C15: 2703156 | D15: 0
A16: Brington CofE Primary School (Ca... | B16: 3081 | C16: 575300 | D16: 0
A17: Brunswick Nursery School (Cambri... | B17: 1005 | C17: 419156 | D17: 0
A18: Burrough Green CofE Primary Scho... | B18: 3004 | C18: 523120 | D18: 0
A19: Burwell Village College (Cambrid... | B19: 2327 | C19: 1788941 | D19: 0
A20: Bushmead Primary School (Cambrid... | B20: 2452 | C20: 1694990 | D20: 0
A21: Caldecote Primary School (Cambri... | B21: 2004 | C21: 899805 | D21: 0
A22: Castle Camps CofE Primary School... | B22: 3008 | C22: 645043 | D22: 0
A23: Castle School (Cambridgeshire) | B23: 7026 | C23: 2437356 | D23: 0
A24: Cherry Hinton CofE Primary Schoo... | B24: 3050 | C24: 1017916 | D24: 0
A25: Cheveley CofE Primary School (Ca... | B25: 3009 | C25: 679769 | D25: 0
A26: Clarkson Infants School (Cambrid... | B26: 2091 | C26: 988546 | D26: 0
A27: Coates Primary School (Cambridge... | B27: 2065 | C27: 914637 | D27: 0
A28: Colleges Nursery School (Cambrid... | B28: 1006 | C28: 561193 | D28: 0
A29: Colville Primary School (Cambrid... | B29: 2119 | C29: 1107120 | D29: 0
A30: Coton CofE Primary School (Cambr... | B30: 3011 | C30: 612414 | D30: 0
A31: Cottenham Primary School (Cambri... | B31: 2006 | C31: 2179295 | D31: 0
A32: Dry Drayton CofE (C) Primary Sch... | B32: 3012 | C32: 454276 | D32: 0
A33: Duxford CofE Community Primary S... | B33: 3041 | C33: 863661 | D33: 0
A34: Eastfield Infant and Nursery Sch... | B34: 2246 | C34: 942276 | D34: 0
A35: Elsworth CofE VA Primary School ... | B35: 3308 | C35: 641240 | D35: 0
A36: Ely St John's Community Primary ... | B36: 2444 | C36: 1679139 | D36: 0
A37: Eynesbury CofE C Primary School ... | B37: 3074 | C37: 922550 | D37: 0
A38: Fen Drayton Primary School (Camb... | B38: 2010 | C38: 585587 | D38: 0
A39: Fenstanton and Hilton Primary Sc... | B39: 2208 | C39: 969108 | D39: 0
A40: Folksworth CofE Primary School (... | B40: 3065 | C40: 507261 | D40: 0
A41: Fordham CofE Primary School (Cam... | B41: 3014 | C41: 1856101 | D41: 0
A42: Fourfields Community Primary Sch... | B42: 2321 | C42: 2020607 | D42: 0
A43: Fowlmere Primary School (Cambrid... | B43: 2011 | C43: 476068 | D43: 0
A44: Foxton Primary School (Cambridge... | B44: 2012 | C44: 581833 | D44: 0
A45: Friday Bridge Community Primary ... | B45: 2068 | C45: 520146 | D45: 0
A46: Fulbourn Primary School (Cambrid... | B46: 2328 | C46: 1296800 | D46: 0
A47: Granta School (Cambridgeshire) | B47: 7025 | C47: 1825821 | D47: 0
A48: Great Abington Primary School (C... | B48: 2016 | C48: 686249 | D48: 0
A49: Great Paxton CofE Primary School... | B49: 3068 | C49: 589333 | D49: 0
A50: Great Wilbraham CofE Primary Sch... | B50: 3017 | C50: 525315 | D50: 0
A51: Great and Little Shelford CofE (... | B51: 3310 | C51: 917685 | D51: 0
A52: Hardwick and Cambourne Community... | B52: 2315 | C52: 2299643 | D52: 0
A53: Harston and Newton Community Pri... | B53: 2018 | C53: 623885 | D53: 0
A54: Haslingfield Endowed Primary Sch... | B54: 3035 | C54: 688701.46 | D54: 0
A55: Hauxton Primary School (Cambridg... | B55: 2205 | C55: 520624 | D55: 0
A56: Hemingford Grey Primary School (... | B56: 2211 | C56: 1255859 | D56: 0
A57: Histon Early Years Centre (Cambr... | B57: 1003 | C57: 447820.51 | D57: 0
A58: Holywell CofE Primary School (Ca... | B58: 3071 | C58: 917996 | D58: 0
A59: Homerton Early Years Centre (Cam... | B59: 1002 | C59: 489018 | D59: 0
A60: Houghton Primary School (Cambrid... | B60: 2212 | C60: 822607 | D60: 0
A61: Huntingdon Nursery School (Cambr... | B61: 1007 | C61: 478848 | D61: 0
A62: Huntingdon Primary School (Cambr... | B62: 3945 | C62: 1897316 | D62: 0
A63: Isleham Church of England Primar... | B63: 3022 | C63: 945920 | D63: 0
A64: Kettlefields Primary School (Cam... | B64: 2442 | C64: 587459 | D64: 0
A65: Kinderley Primary School (Cambri... | B65: 2331 | C65: 559768 | D65: 0
A66: King’s Hedges Educational Fede... | B66: 2446 | C66: =1985307+D66 -> 2331550 | D66: 346243
A67: Linton CofE Infant School (Cambr... | B67: 3317 | C67: 756943 | D67: 0
A68: Lionel Walden Primary School (Ca... | B68: 2066 | C68: 936317 | D68: 0
A69: Little Paxton Primary School (Ca... | B69: 2293 | C69: 1482396.96 | D69: 0
A70: Little Thetford CofE Primary Sch... | B70: 3053 | C70: 524670 | D70: 0
A71: Littleport Community Primary Sch... | B71: 2074 | C71: 1863966 | D71: 0
A72: Manea Community Primary School (... | B72: 2075 | C72: 1177928 | D72: 0
A73: Mayfield Primary School (Cambrid... | B73: 2121 | C73: 1838517 | D73: 0
A74: Melbourn Primary School (Cambrid... | B74: 2028 | C74: 1794187 | D74: 0
A75: Meldreth Primary School (Cambrid... | B75: 2029 | C75: 947852 | D75: 0
A76: Meridian Primary School (Cambrid... | B76: 2059 | C76: 955066 | D76: 0
A77: Milton Road Primary School (Camb... | B77: 3386 | C77: 1906614 | D77: 0
A78: Monkfield Park Primary School (C... | B78: 2449 | C78: 1870550 | D78: 0
A79: Morley Memorial Primary School (... | B79: 2107 | C79: 1791510 | D79: 0
A80: Newnham Croft Primary School (Ca... | B80: 2109 | C80: 1058317 | D80: 0
A81: Orchard Park Community Primary S... | B81: 3390 | C81: 940576 | D81: 0
A82: Over Primary School (Cambridgesh... | B82: 2031 | C82: 964519.4 | D82: 0
A83: Park Street CofE Primary School ... | B83: 3350 | C83: 606442 | D83: 0
A84: Pendragon Community Primary Scho... | B84: 2033 | C84: 1644947 | D84: 0
A85: Petersfield CofE Aided Primary S... | B85: 3331 | C85: 654004 | D85: 0
A86: Priory Junior School (Cambridges... | B86: 2239 | C86: 1475426 | D86: 0
A87: Priory Park Infant School and Pl... | B87: 2219 | C87: 1130139 | D87: 0
A88: Queens’ Federation (Cambridge... | B88: 2333 | C88: =2221990.76+D88 -> 3758144 | D88: 1536153.24
A89: Ridgefield Primary School (Cambr... | B89: 2453 | C89: 1096062 | D89: 0
A90: Robert Arkenstall Primary School... | B90: 2070 | C90: 1278724 | D90: 0
A91: Samuel Pepys School (Cambridgesh... | B91: 7023 | C91: 1155539 | D91: 0
A92: Sawtry Infants' School (Cambridg... | B92: 2255 | C92: 892890 | D92: 0
A93: Shirley Community Primary School... | B93: 2115 | C93: 1962070 | D93: 0
A94: Spring Meadow Infant School (Cam... | B94: 2329 | C94: 807300 | D94: 0
A95: St Alban's Catholic Primary Scho... | B95: 3360 | C95: 959900 | D95: 0
A96: St Anne's CofE Primary School (C... | B96: 3384 | C96: 946248 | D96: 0
A97: St Helen's Primary School (Cambr... | B97: 5200 | C97: 823475 | D97: 0
A98: St Matthew's Primary School (Cam... | B98: 2317 | C98: 2816534 | D98: 0
A99: St Pauls CofE VA Primary School ... | B99: 3356 | C99: 824179 | D99: 0
A100: St Philip's CofE Aided Primary S... | B100: 3358 | C100: 1233859 | D100: 0
A101: Steeple Morden CofE VC Primary S... | B101: 3029 | C101: 837452 | D101: 0
A102: Stretham Community Primary Schoo... | B102: 2084 | C102: 874693 | D102: 0
A103: Stukeley Meadows Primary School ... | B103: 2443 | C103: 1806862 | D103: 0
A104: Sutton CofE VC Primary School (C... | B104: 3052 | C104: 1213916 | D104: 0
A105: Swavesey Primary School (Cambrid... | B105: 2046 | C105: 1361022 | D105: 0
A106: Teversham CofE VA Primary School... | B106: 3325 | C106: 919627 | D106: 0
A107: The Ashbeach Primary School (Cam... | B107: 2217 | C107: 666729 | D107: 0
A108: The Bellbird Primary School (Cam... | B108: 3943 | C108: 1904295 | D108: 0
A109: The Elton CofE Primary School | B109: 3368 | C109: 669468 | D109: 0
A110: The Fields Nursery School (Cambr... | B110: 1001 | C110: 430822 | D110: 0
A111: The Grove Primary School (Cambri... | B111: 2123 | C111: 1189869 | D111: 0
A112: The Newton Community Primary Sch... | B112: 2260 | C112: 411894 | D112: 0
A113: The Rackham Church of England Pr... | B113: 3058 | C113: 1320699 | D113: 0
A114: The Spinney Primary School (Camb... | B114: 2335 | C114: 960820 | D114: 0
A115: The Trumpington Federation (Camb... | B115: 2000 | C115: =1741155.16+D115 -> 3096202.16 | D115: 1355047
A116: The Vine Inter-Church Primary Sc... | B116: 3389 | C116: 1783646 | D116: 0
A117: Thorndown Primary School (Cambri... | B117: 2001 | C117: 2323715 | D117: 0
A118: Townley Primary School (Cambridg... | B118: 2064 | C118: 600116 | D118: 0
A119: Waterbeach Community Primary Sch... | B119: 2048 | C119: 2075173.07 | D119: 127831.93
A120: Westfield Junior School (Cambrid... | B120: 2232 | C120: 1222923 | D120: 0
A121: Wheatfields Primary School (Camb... | B121: 3392 | C121: 1473466.82 | D121: 0
A122: Wilburton CofE Primary School (C... | B122: 3054 | C122: 640882 | D122: 0
A123: William Westley Church of Englan... | B123: 3032 | C123: 920147 | D123: 0
A124: Willingham Primary School (Cambr... | B124: 2054 | C124: 1594398 | D124: 0
A125: Wyton on the Hill Community Prim... | B125: 2240 | C125: 811171 | D125: 0
A126: Yaxley Infant School (Cambridges... | B126: 2254 | C126: 671808 | D126: 0
A127: Total | C127: 137101471.2 | D127: 3365275.17
C129: =SUM(C3:C126) -> 140171723.4

Sheet Sheet3 (hidden)
A1: 0 | B1: ='Trial Balance'!A1 -> 0 | C1: ='Trial Balance'!E1 -> 0
A2: =IF($B2="Balance Sheet",1,IF($A1>0,IF($B2="Subtotal",0,1),0)) -> 0 | B2: ='Trial Balance'!A2 -> 0 | C2: ='Trial Balance'!E2 -> 0 | G2: TB | H2: =SUMIF(A2:A832,1,C2:C832) -> 0 | K2: Committed
A3: =IF($B3="Balance Sheet",1,IF($A2>0,IF($B3="Subtotal",0,1),0)) -> 0 | B3: ='Trial Balance'!A3 -> 0 | C3: ='Trial Balance'!E3 -> 0 | G3: FD01 | H3: =IF(ISNA(VLOOKUP(G3,B$2:C$832,2,FALSE)),0,VLOOKUP(G3,B$2:C$832,2,FALSE)) -> 0 | K3: Properly Assigned
A4: 0 | B4: ='Trial Balance'!A4 -> 0 | C4: ='Trial Balance'!E4 -> 0 | G4: FD02 | H4: =IF(ISNA(VLOOKUP(G4,B$2:C$832,2,FALSE)),0,VLOOKUP(G4,B$2:C$832,2,FALSE)) -> 0
A5: 0 | B5: ='Trial Balance'!A5 -> 0 | C5: ='Trial Balance'!E5 -> 0 | G5: FD04 | H5: 0
A6: 0 | B6: ='Trial Balance'!A6 -> 0 | C6: ='Trial Balance'!E6 -> 0 | G6: FD05 | H6: 0
A7: 0 | B7: ='Trial Balance'!A7 -> 0 | C7: ='Trial Balance'!E7 -> 0 | G7: FD18 | H7: 0
A8: 0 | B8: ='Trial Balance'!A8 -> 0 | C8: ='Trial Balance'!E8 -> 0 | G8: FD08 | H8: 0
A9: 0 | B9: ='Trial Balance'!A9 -> 0 | C9: ='Trial Balance'!E9 -> 0 | G9: FD22 | H9: 0
A10: 0 | B10: ='Trial Balance'!A10 -> 0 | C10: ='Trial Balance'!E10 -> 0 | G10: FD24 | H10: 0
A11: 0 | B11: ='Trial Balance'!A11 -> 0 | C11: ='Trial Balance'!E11 -> 0 | G11: FD21 | H11: 0
A12: 0 | B12: ='Trial Balance'!A12 -> 0 | C12: ='Trial Balance'!E12 -> 0 | G12: FD23 | H12: 0
A13: 0 | B13: ='Trial Balance'!A13 -> 0 | C13: ='Trial Balance'!E13 -> 0
A14: 0 | B14: ='Trial Balance'!A14 -> 0 | C14: ='Trial Balance'!E14 -> 0 | H14: =-H2+SUM(H3:H12) -> 0
A15: 0 | B15: ='Trial Balance'!A15 -> 0 | C15: ='Trial Balance'!E15 -> 0
A16: 0 | B16: ='Trial Balance'!A16 -> 0 | C16: ='Trial Balance'!E16 -> 0
A17: 0 | B17: ='Trial Balance'!A17 -> 0 | C17: ='Trial Balance'!E17 -> 0
A18: 0 | B18: ='Trial Balance'!A18 -> 0 | C18: ='Trial Balance'!E18 -> 0
A19: 0 | B19: ='Trial Balance'!A19 -> 0 | C19: ='Trial Balance'!E19 -> 0
A20: 0 | B20: ='Trial Balance'!A20 -> 0 | C20: ='Trial Balance'!E20 -> 0
A21: 0 | B21: ='Trial Balance'!A21 -> 0 | C21: ='Trial Balance'!E21 -> 0
A22: 0 | B22: ='Trial Balance'!A22 -> 0 | C22: ='Trial Balance'!E22 -> 0
A23: 0 | B23: ='Trial Balance'!A23 -> 0 | C23: ='Trial Balance'!E23 -> 0
A24: 0 | B24: ='Trial Balance'!A24 -> 0 | C24: ='Trial Balance'!E24 -> 0
A25: 0 | B25: ='Trial Balance'!A25 -> 0 | C25: ='Trial Balance'!E25 -> 0
A26: 0 | B26: ='Trial Balance'!A26 -> 0 | C26: ='Trial Balance'!E26 -> 0
A27: 0 | B27: ='Trial Balance'!A27 -> 0 | C27: ='Trial Balance'!E27 -> 0
A28: 0 | B28: ='Trial Balance'!A28 -> 0 | C28: ='Trial Balance'!E28 -> 0
A29: 0 | B29: ='Trial Balance'!A29 -> 0 | C29: ='Trial Balance'!E29 -> 0
A30: 0 | B30: ='Trial Balance'!A30 -> 0 | C30: ='Trial Balance'!E30 -> 0
A31: 0 | B31: ='Trial Balance'!A31 -> 0 | C31: ='Trial Balance'!E31 -> 0
A32: 0 | B32: ='Trial Balance'!A32 -> 0 | C32: ='Trial Balance'!E32 -> 0
A33: 0 | B33: ='Trial Balance'!A33 -> 0 | C33: ='Trial Balance'!E33 -> 0
A34: 0 | B34: ='Trial Balance'!A34 -> 0 | C34: ='Trial Balance'!E34 -> 0
A35: 0 | B35: ='Trial Balance'!A35 -> 0 | C35: ='Trial Balance'!E35 -> 0
A36: 0 | B36: ='Trial Balance'!A36 -> 0 | C36: ='Trial Balance'!E36 -> 0
A37: 0 | B37: ='Trial Balance'!A37 -> 0 | C37: ='Trial Balance'!E37 -> 0
A38: 0 | B38: ='Trial Balance'!A38 -> 0 | C38: ='Trial Balance'!E38 -> 0
A39: 0 | B39: ='Trial Balance'!A39 -> 0 | C39: ='Trial Balance'!E39 -> 0
A40: 0 | B40: ='Trial Balance'!A40 -> 0 | C40: ='Trial Balance'!E40 -> 0
A41: 0 | B41: ='Trial Balance'!A41 -> 0 | C41: ='Trial Balance'!E41 -> 0
A42: 0 | B42: ='Trial Balance'!A42 -> 0 | C42: ='Trial Balance'!E42 -> 0
A43: 0 | B43: ='Trial Balance'!A43 -> 0 | C43: ='Trial Balance'!E43 -> 0
A44: 0 | B44: ='Trial Balance'!A44 -> 0 | C44: ='Trial Balance'!E44 -> 0
A45: 0 | B45: ='Trial Balance'!A45 -> 0 | C45: ='Trial Balance'!E45 -> 0
A46: 0 | B46: ='Trial Balance'!A46 -> 0 | C46: ='Trial Balance'!E46 -> 0
A47: 0 | B47: ='Trial Balance'!A47 -> 0 | C47: ='Trial Balance'!E47 -> 0
A48: 0 | B48: ='Trial Balance'!A48 -> 0 | C48: ='Trial Balance'!E48 -> 0
A49: 0 | B49: ='Trial Balance'!A49 -> 0 | C49: ='Trial Balance'!E49 -> 0
A50: 0 | B50: ='Trial Balance'!A50 -> 0 | C50: ='Trial Balance'!E50 -> 0
A51: 0 | B51: ='Trial Balance'!A51 -> 0 | C51: ='Trial Balance'!E51 -> 0
A52: 0 | B52: ='Trial Balance'!A52 -> 0 | C52: ='Trial Balance'!E52 -> 0
A53: 0 | B53: ='Trial Balance'!A53 -> 0 | C53: ='Trial Balance'!E53 -> 0
A54: 0 | B54: ='Trial Balance'!A54 -> 0 | C54: ='Trial Balance'!E54 -> 0
A55: 0 | B55: ='Trial Balance'!A55 -> 0 | C55: ='Trial Balance'!E55 -> 0
A56: 0 | B56: ='Trial Balance'!A56 -> 0 | C56: ='Trial Balance'!E56 -> 0
A57: 0 | B57: ='Trial Balance'!A57 -> 0 | C57: ='Trial Balance'!E57 -> 0
A58: 0 | B58: ='Trial Balance'!A58 -> 0 | C58: ='Trial Balance'!E58 -> 0
A59: 0 | B59: ='Trial Balance'!A59 -> 0 | C59: ='Trial Balance'!E59 -> 0
A60: 0 | B60: ='Trial Balance'!A60 -> 0 | C60: ='Trial Balance'!E60 -> 0
A61: 0 | B61: ='Trial Balance'!A61 -> 0 | C61: ='Trial Balance'!E61 -> 0
A62: 0 | B62: ='Trial Balance'!A62 -> 0 | C62: ='Trial Balance'!E62 -> 0
A63: 0 | B63: ='Trial Balance'!A63 -> 0 | C63: ='Trial Balance'!E63 -> 0
A64: 0 | B64: ='Trial Balance'!A64 -> 0 | C64: ='Trial Balance'!E64 -> 0
A65: 0 | B65: ='Trial Balance'!A65 -> 0 | C65: ='Trial Balance'!E65 -> 0
A66: 0 | B66: ='Trial Balance'!A66 -> 0 | C66: ='Trial Balance'!E66 -> 0
A67: =IF($B67="Balance Sheet",1,IF($A66>0,IF($B67="Subtotal",0,1),0)) -> 0 | B67: ='Trial Balance'!A67 -> 0 | C67: ='Trial Balance'!E67 -> 0
A68: 0 | B68: ='Trial Balance'!A68 -> 0 | C68: ='Trial Balance'!E68 -> 0
A69: 0 | B69: ='Trial Balance'!A69 -> 0 | C69: ='Trial Balance'!E69 -> 0
A70: 0 | B70: ='Trial Balance'!A70 -> 0 | C70: ='Trial Balance'!E70 -> 0
A71: 0 | B71: ='Trial Balance'!A71 -> 0 | C71: ='Trial Balance'!E71 -> 0
A72: 0 | B72: ='Trial Balance'!A72 -> 0 | C72: ='Trial Balance'!E72 -> 0
A73: 0 | B73: ='Trial Balance'!A73 -> 0 | C73: ='Trial Balance'!E73 -> 0
A74: 0 | B74: ='Trial Balance'!A74 -> 0 | C74: ='Trial Balance'!E74 -> 0
A75: 0 | B75: ='Trial Balance'!A75 -> 0 | C75: ='Trial Balance'!E75 -> 0
A76: 0 | B76: ='Trial Balance'!A76 -> 0 | C76: ='Trial Balance'!E76 -> 0
A77: 0 | B77: ='Trial Balance'!A77 -> 0 | C77: ='Trial Balance'!E77 -> 0
A78: 0 | B78: ='Trial Balance'!A78 -> 0 | C78: ='Trial Balance'!E78 -> 0
A79: 0 | B79: ='Trial Balance'!A79 -> 0 | C79: ='Trial Balance'!E79 -> 0
A80: 0 | B80: ='Trial Balance'!A80 -> 0 | C80: ='Trial Balance'!E80 -> 0
A81: 0 | B81: ='Trial Balance'!A81 -> 0 | C81: ='Trial Balance'!E81 -> 0
A82: 0 | B82: ='Trial Balance'!A82 -> 0 | C82: ='Trial Balance'!E82 -> 0
A83: 0 | B83: ='Trial Balance'!A83 -> 0 | C83: ='Trial Balance'!E83 -> 0
A84: 0 | B84: ='Trial Balance'!A84 -> 0 | C84: ='Trial Balance'!E84 -> 0
A85: 0 | B85: ='Trial Balance'!A85 -> 0 | C85: ='Trial Balance'!E85 -> 0
A86: 0 | B86: ='Trial Balance'!A86 -> 0 | C86: ='Trial Balance'!E86 -> 0
A87: 0 | B87: ='Trial Balance'!A87 -> 0 | C87: ='Trial Balance'!E87 -> 0
A88: 0 | B88: ='Trial Balance'!A88 -> 0 | C88: ='Trial Balance'!E88 -> 0
A89: 0 | B89: ='Trial Balance'!A89 -> 0 | C89: ='Trial Balance'!E89 -> 0
A90: 0 | B90: ='Trial Balance'!A90 -> 0 | C90: ='Trial Balance'!E90 -> 0
A91: 0 | B91: ='Trial Balance'!A91 -> 0 | C91: ='Trial Balance'!E91 -> 0
A92: 0 | B92: ='Trial Balance'!A92 -> 0 | C92: ='Trial Balance'!E92 -> 0
A93: 0 | B93: ='Trial Balance'!A93 -> 0 | C93: ='Trial Balance'!E93 -> 0
A94: 0 | B94: ='Trial Balance'!A94 -> 0 | C94: ='Trial Balance'!E94 -> 0
A95: 0 | B95: ='Trial Balance'!A95 -> 0 | C95: ='Trial Balance'!E95 -> 0
A96: 0 | B96: ='Trial Balance'!A96 -> 0 | C96: ='Trial Balance'!E96 -> 0
A97: 0 | B97: ='Trial Balance'!A97 -> 0 | C97: ='Trial Balance'!E97 -> 0
A98: 0 | B98: ='Trial Balance'!A98 -> 0 | C98: ='Trial Balance'!E98 -> 0
A99: 0 | B99: ='Trial Balance'!A99 -> 0 | C99: ='Trial Balance'!E99 -> 0
A100: 0 | B100: ='Trial Balance'!A100 -> 0 | C100: ='Trial Balance'!E100 -> 0
A101: 0 | B101: ='Trial Balance'!A101 -> 0 | C101: ='Trial Balance'!E101 -> 0
A102: 0 | B102: ='Trial Balance'!A102 -> 0 | C102: ='Trial Balance'!E102 -> 0
A103: 0 | B103: ='Trial Balance'!A103 -> 0 | C103: ='Trial Balance'!E103 -> 0
A104: 0 | B104: ='Trial Balance'!A104 -> 0 | C104: ='Trial Balance'!E104 -> 0
A105: 0 | B105: ='Trial Balance'!A105 -> 0 | C105: ='Trial Balance'!E105 -> 0
A106: 0 | B106: ='Trial Balance'!A106 -> 0 | C106: ='Trial Balance'!E106 -> 0
A107: 0 | B107: ='Trial Balance'!A107 -> 0 | C107: ='Trial Balance'!E107 -> 0
A108: 0 | B108: ='Trial Balance'!A108 -> 0 | C108: ='Trial Balance'!E108 -> 0
A109: 0 | B109: ='Trial Balance'!A109 -> 0 | C109: ='Trial Balance'!E109 -> 0
A110: 0 | B110: ='Trial Balance'!A110 -> 0 | C110: ='Trial Balance'!E110 -> 0
A111: 0 | B111: ='Trial Balance'!A111 -> 0 | C111: ='Trial Balance'!E111 -> 0
A112: 0 | B112: ='Trial Balance'!A112 -> 0 | C112: ='Trial Balance'!E112 -> 0
A113: 0 | B113: ='Trial Balance'!A113 -> 0 | C113: ='Trial Balance'!E113 -> 0
A114: 0 | B114: ='Trial Balance'!A114 -> 0 | C114: ='Trial Balance'!E114 -> 0
A115: 0 | B115: ='Trial Balance'!A115 -> 0 | C115: ='Trial Balance'!E115 -> 0
A116: 0 | B116: ='Trial Balance'!A116 -> 0 | C116: ='Trial Balance'!E116 -> 0
A117: 0 | B117: ='Trial Balance'!A117 -> 0 | C117: ='Trial Balance'!E117 -> 0
A118: 0 | B118: ='Trial Balance'!A118 -> 0 | C118: ='Trial Balance'!E118 -> 0
A119: 0 | B119: ='Trial Balance'!A119 -> 0 | C119: ='Trial Balance'!E119 -> 0
A120: 0 | B120: ='Trial Balance'!A120 -> 0 | C120: ='Trial Balance'!E120 -> 0
A121: 0 | B121: ='Trial Balance'!A121 -> 0 | C121: ='Trial Balance'!E121 -> 0
A122: 0 | B122: ='Trial Balance'!A122 -> 0 | C122: ='Trial Balance'!E122 -> 0
A123: 0 | B123: ='Trial Balance'!A123 -> 0 | C123: ='Trial Balance'!E123 -> 0
A124: 0 | B124: ='Trial Balance'!A124 -> 0 | C124: ='Trial Balance'!E124 -> 0
A125: 0 | B125: ='Trial Balance'!A125 -> 0 | C125: ='Trial Balance'!E125 -> 0
A126: 0 | B126: ='Trial Balance'!A126 -> 0 | C126: ='Trial Balance'!E126 -> 0
A127: 0 | B127: ='Trial Balance'!A127 -> 0 | C127: ='Trial Balance'!E127 -> 0
A128: 0 | B128: ='Trial Balance'!A128 -> 0 | C128: ='Trial Balance'!E128 -> 0
A129: 0 | B129: ='Trial Balance'!A129 -> 0 | C129: ='Trial Balance'!E129 -> 0
A130: 0 | B130: ='Trial Balance'!A130 -> 0 | C130: ='Trial Balance'!E130 -> 0
A131: =IF($B131="Balance Sheet",1,IF($A130>0,IF($B131="Subtotal",0,1),0)) -> 0 | B131: ='Trial Balance'!A131 -> 0 | C131: ='Trial Balance'!E131 -> 0
A132: 0 | B132: ='Trial Balance'!A132 -> 0 | C132: ='Trial Balance'!E132 -> 0
A133: 0 | B133: ='Trial Balance'!A133 -> 0 | C133: ='Trial Balance'!E133 -> 0
A134: 0 | B134: ='Trial Balance'!A134 -> 0 | C134: ='Trial Balance'!E134 -> 0
A135: 0 | B135: ='Trial Balance'!A135 -> 0 | C135: ='Trial Balance'!E135 -> 0
A136: 0 | B136: ='Trial Balance'!A136 -> 0 | C136: ='Trial Balance'!E136 -> 0
A137: 0 | B137: ='Trial Balance'!A137 -> 0 | C137: ='Trial Balance'!E137 -> 0
A138: 0 | B138: ='Trial Balance'!A138 -> 0 | C138: ='Trial Balance'!E138 -> 0
A139: 0 | B139: ='Trial Balance'!A139 -> 0 | C139: ='Trial Balance'!E139 -> 0
A140: 0 | B140: ='Trial Balance'!A140 -> 0 | C140: ='Trial Balance'!E140 -> 0
A141: 0 | B141: ='Trial Balance'!A141 -> 0 | C141: ='Trial Balance'!E141 -> 0
A142: 0 | B142: ='Trial Balance'!A142 -> 0 | C142: ='Trial Balance'!E142 -> 0
A143: 0 | B143: ='Trial Balance'!A143 -> 0 | C143: ='Trial Balance'!E143 -> 0
A144: 0 | B144: ='Trial Balance'!A144 -> 0 | C144: ='Trial Balance'!E144 -> 0
A145: 0 | B145: ='Trial Balance'!A145 -> 0 | C145: ='Trial Balance'!E145 -> 0
A146: 0 | B146: ='Trial Balance'!A146 -> 0 | C146: ='Trial Balance'!E146 -> 0
A147: 0 | B147: ='Trial Balance'!A147 -> 0 | C147: ='Trial Balance'!E147 -> 0
A148: 0 | B148: ='Trial Balance'!A148 -> 0 | C148: ='Trial Balance'!E148 -> 0
A149: 0 | B149: ='Trial Balance'!A149 -> 0 | C149: ='Trial Balance'!E149 -> 0
A150: 0 | B150: ='Trial Balance'!A150 -> 0 | C150: ='Trial Balance'!E150 -> 0
A151: 0 | B151: ='Trial Balance'!A151 -> 0 | C151: ='Trial Balance'!E151 -> 0
A152: 0 | B152: ='Trial Balance'!A152 -> 0 | C152: ='Trial Balance'!E152 -> 0
A153: 0 | B153: ='Trial Balance'!A153 -> 0 | C153: ='Trial Balance'!E153 -> 0
A154: 0 | B154: ='Trial Balance'!A154 -> 0 | C154: ='Trial Balance'!E154 -> 0
A155: 0 | B155: ='Trial Balance'!A155 -> 0 | C155: ='Trial Balance'!E155 -> 0
A156: 0 | B156: ='Trial Balance'!A156 -> 0 | C156: ='Trial Balance'!E156 -> 0
A157: 0 | B157: ='Trial Balance'!A157 -> 0 | C157: ='Trial Balance'!E157 -> 0
A158: 0 | B158: ='Trial Balance'!A158 -> 0 | C158: ='Trial Balance'!E158 -> 0
A159: 0 | B159: ='Trial Balance'!A159 -> 0 | C159: ='Trial Balance'!E159 -> 0
A160: 0 | B160: ='Trial Balance'!A160 -> 0 | C160: ='Trial Balance'!E160 -> 0
A161: 0 | B161: ='Trial Balance'!A161 -> 0 | C161: ='Trial Balance'!E161 -> 0
A162: 0 | B162: ='Trial Balance'!A162 -> 0 | C162: ='Trial Balance'!E162 -> 0
A163: 0 | B163: ='Trial Balance'!A163 -> 0 | C163: ='Trial Balance'!E163 -> 0
A164: 0 | B164: ='Trial Balance'!A164 -> 0 | C164: ='Trial Balance'!E164 -> 0
A165: 0 | B165: ='Trial Balance'!A165 -> 0 | C165: ='Trial Balance'!E165 -> 0
A166: 0 | B166: ='Trial Balance'!A166 -> 0 | C166: ='Trial Balance'!E166 -> 0
A167: 0 | B167: ='Trial Balance'!A167 -> 0 | C167: ='Trial Balance'!E167 -> 0
A168: 0 | B168: ='Trial Balance'!A168 -> 0 | C168: ='Trial Balance'!E168 -> 0
A169: 0 | B169: ='Trial Balance'!A169 -> 0 | C169: ='Trial Balance'!E169 -> 0
A170: 0 | B170: ='Trial Balance'!A170 -> 0 | C170: ='Trial Balance'!E170 -> 0
A171: 0 | B171: ='Trial Balance'!A171 -> 0 | C171: ='Trial Balance'!E171 -> 0
A172: 0 | B172: ='Trial Balance'!A172 -> 0 | C172: ='Trial Balance'!E172 -> 0
A173: 0 | B173: ='Trial Balance'!A173 -> 0 | C173: ='Trial Balance'!E173 -> 0
A174: 0 | B174: ='Trial Balance'!A174 -> 0 | C174: ='Trial Balance'!E174 -> 0
A175: 0 | B175: ='Trial Balance'!A175 -> 0 | C175: ='Trial Balance'!E175 -> 0
A176: 0 | B176: ='Trial Balance'!A176 -> 0 | C176: ='Trial Balance'!E176 -> 0
A177: 0 | B177: ='Trial Balance'!A177 -> 0 | C177: ='Trial Balance'!E177 -> 0
A178: 0 | B178: ='Trial Balance'!A178 -> 0 | C178: ='Trial Balance'!E178 -> 0
A179: 0 | B179: ='Trial Balance'!A179 -> 0 | C179: ='Trial Balance'!E179 -> 0
A180: 0 | B180: ='Trial Balance'!A180 -> 0 | C180: ='Trial Balance'!E180 -> 0
A181: 0 | B181: ='Trial Balance'!A181 -> 0 | C181: ='Trial Balance'!E181 -> 0
A182: 0 | B182: ='Trial Balance'!A182 -> 0 | C182: ='Trial Balance'!E182 -> 0
A183: 0 | B183: ='Trial Balance'!A183 -> 0 | C183: ='Trial Balance'!E183 -> 0
A184: 0 | B184: ='Trial Balance'!A184 -> 0 | C184: ='Trial Balance'!E184 -> 0
A185: 0 | B185: ='Trial Balance'!A185 -> 0 | C185: ='Trial Balance'!E185 -> 0
A186: 0 | B186: ='Trial Balance'!A186 -> 0 | C186: ='Trial Balance'!E186 -> 0
A187: 0 | B187: ='Trial Balance'!A187 -> 0 | C187: ='Trial Balance'!E187 -> 0
A188: 0 | B188: ='Trial Balance'!A188 -> 0 | C188: ='Trial Balance'!E188 -> 0
A189: 0 | B189: ='Trial Balance'!A189 -> 0 | C189: ='Trial Balance'!E189 -> 0
A190: 0 | B190: ='Trial Balance'!A190 -> 0 | C190: ='Trial Balance'!E190 -> 0
A191: 0 | B191: ='Trial Balance'!A191 -> 0 | C191: ='Trial Balance'!E191 -> 0
A192: 0 | B192: ='Trial Balance'!A192 -> 0 | C192: ='Trial Balance'!E192 -> 0
A193: 0 | B193: ='Trial Balance'!A193 -> 0 | C193: ='Trial Balance'!E193 -> 0
A194: 0 | B194: ='Trial Balance'!A194 -> 0 | C194: ='Trial Balance'!E194 -> 0
A195: =IF($B195="Balance Sheet",1,IF($A194>0,IF($B195="Subtotal",0,1),0)) -> 0 | B195: ='Trial Balance'!A195 -> 0 | C195: ='Trial Balance'!E195 -> 0
A196: 0 | B196: ='Trial Balance'!A196 -> 0 | C196: ='Trial Balance'!E196 -> 0
A197: 0 | B197: ='Trial Balance'!A197 -> 0 | C197: ='Trial Balance'!E197 -> 0
A198: 0 | B198: ='Trial Balance'!A198 -> 0 | C198: ='Trial Balance'!E198 -> 0
A199: 0 | B199: ='Trial Balance'!A199 -> 0 | C199: ='Trial Balance'!E199 -> 0
A200: 0 | B200: ='Trial Balance'!A200 -> 0 | C200: ='Trial Balance'!E200 -> 0
... 632 more rows

Sheet SMER Summary 25-26
A1: SSCT5.8.25ACCESS
B2: School Month End Reconciliation (SMER) Form 2025-26
C3: All sections and cells highlighted in yellow need to be completed | G3: Click here for 'Instructions' tab
C4: Only enter data into yellow cells, please do NOT do this by copying/pasting cells
B7: 1. School Information
C9: Month End Reconciliation | D9: 2025-06-01
C11: DfE Number (last 4 digits only)
C13: School Name | D13: =IF(ISERROR(VLOOKUP(D11,'School Information'!A:B,2,FALSE)),"",VLOOKUP(D11,'School Information'!A:B,2,FALSE)) ->  | G13: School Finance System | H13: =IF(ISERROR(VLOOKUP(D11,'School Information'!A:H,4,FALSE)),"",VLOOKUP(D11,'School Information'!A:H,4,FALSE)) -> 
C15: Federated with | D15: =IF(ISERROR(VLOOKUP(H15,'School Information'!A:B,2,FALSE)),"N/A",VLOOKUP(H15,'School Information'!A:B,2,FALSE)) -> N/A | G15: DfE Number | H15: =IF(ISERROR(VLOOKUP(D11,'School Information'!A:H,3,FALSE)),"N/A",VLOOKUP(D11,'School Information'!A:H,3,FALSE)) -> N/A
B18: 2. VAT Owed - Reconciliation
C20: Please include the submittal / short summary reports on the yellow tabs provided
C22: VAT Submittals / Short Summary Reports | F22: Value from Submittal tab | G22: Outstanding Y/N | H22: To be refunded
C24: Quarter 1 - VAT - April to June | H24: =IF(G24="N",0,F24) -> 0
C25: Quarter 2 - VAT - July to September | H25: 0
C26: Quarter 3 - VAT - October to December | H26: 0
C27: Quarter 4 - VAT - January to March | H27: 0
C28: VAT Present Summary - present / incomplete quarter | H28: 0
F29: Total VAT Owed to School | H29: =SUM(H24:H28) -> 0
C31: Please include the Trial Balance report on the yellow tab provided
C33: VAT on School Balance Sheet Codes | E33: Balance Sheet Code | F33: Description | G33: Balance | H33: Total
C34: VAT codes used by School | F34: VAT | H34: =G34 -> 0
C35: (do not include VFLOAT) | H35: =G35 -> 0
H36: 0
C37: (do not include VFLOAT) | H37: 0
F39: VAT on School Balance Sheet Codes | H39: =SUM(H34:H38) -> 0
D41: Variance between VAT Quarterly Reports and Balance Sheet Codes | H41: =H29-H39 -> 0
B43: Explain VAT Owed variance below
B46: 3. NatWest Bank - Reconciliation
C48: NatWest Balance from Bank Statement as at last day of period | F48: (enter as positive - unless overdrawn) | J48: Z Please take a screen shot of your Bank Statement showing balance and then paste into the Bank Statement Tab
C50: Balance Sheet Bank Account Balance - code BANKNW | J50: Z Please enter the total on your Balance Sheet (Trial Balance)
C52: Unreconciled Items (Please provide a listing of these on the Bank Unreconciled Items tab) | F52: (normally entered as positive)
D54: Total Should = £0.00 (Bank Statement = Balance Sheet + Unreconciled) | H54: =ROUND((H48-SUM(H50:H52)),2) -> 0
B56: Explain NatWest Bank variance below
B59: 4. Payroll Control - Reconciliation
C61: Payroll Control total from Balance Sheet - code PAYROL (negative on TB to enter as positive) | J61: Z Please enter the total on your balance sheet (Trial Balance)
C63: Explained as follows:
C64: Due to Inland Revenue (HMRC) | E64: ( enter as positive ) | J64: Z Please copy and paste your EPM report in the EPM report showing the figure entered in here
C65: Due to Pension Scheme | E65: ( enter as positive ) | J65: Z Please copy and paste your EPM report in the EPM report showing the figure entered in here
C66: Due to Third Party Payments | E66: ( enter as positive ) | J66: Z Please copy and paste your EPM report in the EPM report showing the figure entered in here
C67: Due to Other | E67: ( enter as positive ) | J67: Z Please copy and paste your EPM report in the EPM report showing the figure entered in here
C68: Total Payroll Control Liabilities (should match total on code PAYROL) | H68: =SUM(H64:H67) -> 0
G70: Variance | H70: =IF(ISERROR(H61-H68),"",(H61-H68)) -> 0
B72: Explain Payroll Control variance below. If £0 please say why. Eg all payroll, NI & pension costs have been entered and paid before the month end, therefore it is correct not to show a balance against PAYROL.
B75: 5. Opening Balances - Reconciliation | F75: Click here to review 'Opening Balance' tab
C77: Fund & Description | F77: Balance on School Finance System - CEA report figures. Please type as you see it on your CEA (same signage) | G77: SSCT Confirmed Opening Balance Surplus shown as a Positive Figure Deficit shown as a Negative Figure | H77: Variance
C79: 01 - Formula / Revenue | G79: ='Opening Balance'!E8 -> 0 | H79: =F79+G79 -> 0
C80: 02 - Formula / Revenue *Federated Schools Only* | G80: ='Opening Balance'!E9 -> 0 | H80: =F80+G80 -> 0
C81: 04 - Devolved Formula Capital | G81: ='Opening Balance'!E17 -> 0 | H81: 0
C82: 05 - Other Capital | G82: ='Opening Balance'!E19 -> 0 | H82: 0
C83: 06 - Devolved Formula Capital *Federated Schools Only* | G83: ='Opening Balance'!E18 -> 0 | H83: 0
C84: 08 - Nursery (Day Care) | G84: ='Opening Balance'!E13 -> 0 | H84: 0
C85: 18 - Capitalised Revenue | G85: ='Opening Balance'!E20 -> 0 | H85: 0
C86: 21 - Extended Schools (Bankers only) | G86: ='Opening Balance'!E10 -> 0 | H86: 0
C87: 23 - Cluster Activities (Banker Schools) | G87: ='Opening Balance'!E11 -> 0 | H87: 0
C88: 22 - Childrens Centres | G88: ='Opening Balance'!E14 -> 0 | H88: 0
C89: 24 - Community Focused Activities | G89: ='Opening Balance'!E15 -> 0 | H89: =F89+G89 -> 0
B93: 6. Aged Creditors check
C94: Have you included your Aged Creditors report on the Aged Creditors tab? If you haven't could you please do so now | J94: Yes | K94: No
C95: Aged Creditors report total
C96: Aged Creditors CEA total
C97: Aged Creditors Trial Balance Total
C98: Does your Aged Creditors report match your CEA/Trial Balance figure? If no, please add reason why below
B101: 7. Aged Debtors check
C102: Have you included your Aged Debtors report on the Aged Debtors tab? If you haven't could you please do so now
C103: Aged Debtors report total
C104: Aged Debtors CEA total
C105: Aged Debtors Trial Balance Total
C106: Does your Aged Debtors report match your CEA/Trial Balance figure? If no, please add reason why below
B110: 8. Checklist and Confirmation
C112: Action in SBS | E112: Name of 'Fixed (Locked)' Budget showing latest Forecast/Projected Outturn in SBS at the time of completing this SMER
C113: Please check your Budget vs Actuals forecast (Projected YE) figures
C114: Please check row 9's month has been selected correctly, then name the budget you have forecasted against as | E114: =D9 -> 2025-06-01 | F114: =CONCATENATE("SMER ",D13) -> SMER
C115: When happy with the forecast set the budget working profile to Locked, to show us your latest Projected Outturn
C117: I confirm all sections of this form are completed in full and all information provided is true and accurate.
C119: Completed Y / N | D119: Action | F119: Name
D120: 1. School Information
D121: 2. VAT Owed - Reconciliation
D122: 3. NatWest Bank - Reconciliation | F122: Position e.g. Finance Officer | H122: Date
D123: 4. Payroll Control - Reconciliation
D124: 5. Opening Balances - Reconciliation
D125: 6. Upload into SBS checked and completed
C129: When all sections of this form have been completed (including requested reports) and you've completed the upload into SBS, please save this file in your records with the school name and period name in the file title, then submit to Schools Strategy & Corporate Team (SSCT) using the below email address:
C130: schoolmonthendreturns@cambridgeshire.gov.uk

Sheet CEA

Sheet Trial Balance

Sheet VAT Present Quarter

Sheet Q1

Sheet Q2

Sheet Q3

Sheet Q4

Sheet Bank Statement

Sheet Bank Unreconciled Items

Sheet EPM Summary Report

Sheet AGED CREDITORS
A1: Please copy and paste your report into here. If you don’t have a balance on your Balance Sheet please add a note on here saying Zero Balance

Sheet AGED DEBTORS
A1: Please copy and paste your report into here. If you don’t have a balance on your Balance Sheet please add a note on here saying Zero Balance

Sheet Fund Review (hidden)

Sheet ISB Figs (hidden)
A1: LAESTAB | D1: 19/20 | E1: 20/21 | F1: 21/22 | I1: 20/21 Post De-delegation and Education functions budget | K1: LAESTAB | L1: 20/21 Post De-delegation and Education functions budget
I2: 366953994.3 | L2: 366953994.3
A3: 8732000 | B3: Trumpington Meadows Primary School | C3: 978847.8796 | D3: =ROUND(C3,2) -> 978847.88 | E3: =VLOOKUP(A3,$K$3:$M$246,3,FALSE) -> 1064710.31 | F3: 1145878.66 | I3: 1064710.307 | K3: 8732000 | L3: 1064710.307 | M3: =ROUND(L3,2) -> 1064710.31 | O3: =VLOOKUP(K3,$A$3:$D$246,4,FALSE) -> 978847.88
A4: 8732001 | B4: Thorndown Primary School | C4: 1818240.136 | D4: =ROUND(C4,2) -> 1818240.14 | E4: =VLOOKUP(A4,$K$3:$M$246,3,FALSE) -> 2013608.91 | F4: 2274325 | I4: 2013608.913 | K4: 8732001 | L4: 2013608.913 | M4: =ROUND(L4,2) -> 2013608.91 | O4: =VLOOKUP(K4,$A$3:$D$246,4,FALSE) -> 1818240.14
A5: 8732002 | B5: Bassingbourn Primary School | C5: 1190283.758 | D5: 1190283.76 | E5: 1306842.33 | F5: 1536242.05 | I5: 1306842.33 | K5: 8732002 | L5: 1306842.33 | M5: 1306842.33 | O5: 1190283.76
A6: 8732004 | B6: Caldecote Primary School | C6: 723573.6796 | D6: 723573.68 | E6: 746884.6 | F6: 810873.64 | I6: 746884.5975 | K6: 8732004 | L6: 746884.5975 | M6: 746884.6 | O6: 723573.68
A7: 8732006 | B7: Cottenham Primary School | C7: 1887890.289 | D7: 1887890.29 | E7: 2032257.17 | F7: 2160130.32 | I7: 2032257.17 | K7: 8732006 | L7: 2032257.17 | M7: 2032257.17 | O7: 1887890.29
A8: 8732010 | B8: Fen Drayton Primary School | C8: 450494.8755 | D8: 450494.88 | E8: 433536.31 | F8: 439852.69 | I8: 433536.306 | K8: 8732010 | L8: 433536.306 | M8: 433536.31 | O8: 450494.88
A9: 8732011 | B9: Fowlmere Primary School | C9: 456680.4998 | D9: 456680.5 | E9: 427488.1 | F9: 484674.03 | I9: 427488.0958 | K9: 8732011 | L9: 427488.0958 | M9: 427488.1 | O9: 456680.5
A10: 8732012 | B10: Foxton Primary School | C10: 479011.393 | D10: 479011.39 | E10: 477243.43 | F10: 477469.86 | I10: 477243.4282 | K10: 8732012 | L10: 477243.4282 | M10: 477243.43 | O10: 479011.39
A11: 8732015 | B11: Girton Glebe Primary School | C11: 697153.972 | D11: 697153.97 | E11: 732153.69 | I11: 732153.689 | K11: 8732015 | L11: 732153.689 | M11: 732153.69 | O11: 697153.97
A12: 8732016 | B12: Great Abington Primary School | C12: 540593.43 | D12: 540593.43 | E12: 563054.42 | F12: 608034.78 | I12: 563054.4192 | K12: 8732016 | L12: 563054.4192 | M12: 563054.42 | O12: 540593.43
A13: 8732018 | B13: Harston and Newton Community Primary School | C13: 625023.6823 | D13: 625023.68 | E13: 591757.11 | F13: 618463.21 | I13: 591757.1082 | K13: 8732018 | L13: 591757.1082 | M13: 591757.11 | O13: 625023.68
A14: 8732028 | B14: Melbourn Primary School | C14: 1240949.082 | D14: 1240949.08 | E14: 1403898.75 | F14: 1544743.75 | I14: 1403898.75 | K14: 8732028 | L14: 1403898.75 | M14: 1403898.75 | O14: 1240949.08
A15: 8732029 | B15: Meldreth Primary School | C15: 695195.7401 | D15: 695195.74 | E15: 751289.45 | F15: 856709.87 | I15: 751289.4471 | K15: 8732029 | L15: 751289.4471 | M15: 751289.45 | O15: 695195.74
A16: 8732031 | B16: Over Primary School | C16: 913004.2212 | D16: 913004.22 | E16: 869532.57 | F16: 948726.25 | I16: 869532.57 | K16: 8732031 | L16: 869532.57 | M16: 869532.57 | O16: 913004.22
A17: 8732033 | B17: Pendragon Community Primary School | C17: 1321364.678 | D17: 1321364.68 | E17: 1427949.87 | F17: 1640266.2 | I17: 1427949.87 | K17: 8732033 | L17: 1427949.87 | M17: 1427949.87 | O17: 1321364.68
A18: 8732046 | B18: Swavesey Primary School | C18: 1064960.055 | D18: 1064960.06 | E18: 1102704.19 | F18: 1241047.7 | I18: 1102704.19 | K18: 8732046 | L18: 1102704.19 | M18: 1102704.19 | O18: 1064960.06
A19: 8732048 | B19: Waterbeach Community Primary School | C19: 1378670.383 | D19: 1378670.38 | E19: 1523322.89 | F19: 1806539.55 | I19: 1523322.89 | K19: 8732048 | L19: 1523322.89 | M19: 1523322.89 | O19: 1378670.38
A20: 8732054 | B20: Willingham Primary School | C20: 1138520.349 | D20: 1138520.35 | E20: 1169175.49 | F20: 1382707.5 | I20: 1169175.494 | K20: 8732054 | L20: 1169175.494 | M20: 1169175.49 | O20: 1138520.35
A21: 8732059 | B21: Meridian Primary School | C21: 716007.793 | D21: 716007.79 | E21: 721742.4 | F21: 816600.8 | I21: 721742.3981 | K21: 8732059 | L21: 721742.3981 | M21: 721742.4 | O21: 716007.79
A22: 8732060 | B22: Benwick Primary School | C22: 583261.5447 | D22: 583261.54 | E22: 525019.57 | F22: 561024.16 | I22: 525019.572 | K22: 8732060 | L22: 525019.572 | M22: 525019.57 | O22: 583261.54
A23: 8732064 | B23: Townley Primary School | C23: 469462.6952 | D23: 469462.7 | E23: 495481.77 | F23: 505260.99 | I23: 495481.7663 | K23: 8732064 | L23: 495481.7663 | M23: 495481.77 | O23: 469462.7
A24: 8732065 | B24: Coates Primary School | C24: 728167.4972 | D24: 728167.5 | E24: 742986.4 | F24: 786829.79 | I24: 742986.3978 | K24: 8732065 | L24: 742986.3978 | M24: 742986.4 | O24: 728167.5
A25: 8732066 | B25: Lionel Walden Primary School | C25: 834868.0859 | D25: 834868.09 | E25: 851411.11 | F25: 905042.65 | I25: 851411.1149 | K25: 8732066 | L25: 851411.1149 | M25: 851411.11 | O25: 834868.09
A26: 8732068 | B26: Friday Bridge Community Primary School | C26: 489320.4631 | D26: 489320.46 | E26: 516252.63 | F26: 530925.3 | I26: 516252.6334 | K26: 8732068 | L26: 516252.6334 | M26: 516252.63 | O26: 489320.46
A27: 8732070 | B27: Robert Arkenstall Primary School | C27: 1010391.185 | D27: 1010391.19 | E27: 1040653.79 | F27: 1151541.05 | I27: 1040653.79 | K27: 8732070 | L27: 1040653.79 | M27: 1040653.79 | O27: 1010391.19
A28: 8732074 | B28: Littleport Community Primary School | C28: 1633679.672 | D28: 1633679.67 | E28: 1689263.44 | F28: 1813474.88 | I28: 1689263.436 | K28: 8732074 | L28: 1689263.436 | M28: 1689263.44 | O28: 1633679.67
A29: 8732075 | B29: Manea Community Primary School | C29: 774140.4916 | D29: 774140.49 | E29: 845016.04 | F29: 1000262.91 | I29: 845016.037 | K29: 8732075 | L29: 845016.037 | M29: 845016.04 | O29: 774140.49
A30: 8732082 | B30: Beaupre Community Primary School | C30: 799809.5186 | D30: 799809.52 | E30: 804454.3 | F30: 839738.36 | I30: 804454.3022 | K30: 8732082 | L30: 804454.3022 | M30: 804454.3 | O30: 799809.52
A31: 8732083 | B31: Alderman Payne Primary School | C31: 481696.3469 | D31: 481696.35 | E31: 505758.98 | F31: 545176.15 | I31: 505758.9791 | K31: 8732083 | L31: 505758.9791 | M31: 505758.98 | O31: 481696.35
A32: 8732084 | B32: Stretham Community Primary School | C32: 697771.2267 | D32: 697771.23 | E32: 671109 | F32: 718626.1 | I32: 671108.9996 | K32: 8732084 | L32: 671108.9996 | M32: 671109 | O32: 697771.23
A33: 8732091 | B33: Clarkson Infants School | C33: 757897.2961 | D33: 757897.3 | E33: 819142.64 | F33: 884649.68 | I33: 819142.6391 | K33: 8732091 | L33: 819142.6391 | M33: 819142.64 | O33: 757897.3
A34: 8732107 | B34: Morley Memorial Primary School | C34: 1450824.737 | D34: 1450824.74 | E34: 1560526.8 | F34: 1696847 | I34: 1560526.8 | K34: 8732107 | L34: 1560526.8 | M34: 1560526.8 | O34: 1450824.74
A35: 8732109 | B35: Newnham Croft Primary School | C35: 872689.4729 | D35: 872689.47 | E35: 872982.04 | F35: 950902.6 | I35: 872982.0426 | K35: 8732109 | L35: 872982.0426 | M35: 872982.04 | O35: 872689.47
A36: 8732115 | B36: Shirley Community Primary School | C36: 1724964.586 | D36: 1724964.59 | E36: 1782021.26 | F36: 1819825.39 | I36: 1782021.259 | K36: 8732115 | L36: 1782021.259 | M36: 1782021.26 | O36: 1724964.59
A37: 8732118 | B37: Arbury Primary School | C37: 1627687.925 | D37: 1627687.92 | E37: 1728011.76 | F37: 1791250.02 | I37: 1728011.764 | K37: 8732118 | L37: 1728011.764 | M37: 1728011.76 | O37: 1627687.92
A38: 8732119 | B38: Colville Primary School | C38: 1116888.882 | D38: 1116888.88 | E38: 1125955.46 | F38: 1135567.51 | I38: 1125955.463 | K38: 8732119 | L38: 1125955.463 | M38: 1125955.46 | O38: 1116888.88
A39: 8732121 | B39: Mayfield Primary School | C39: 1514785.457 | D39: 1514785.46 | E39: 1563583.15 | F39: 1644122.35 | I39: 1563583.152 | K39: 8732121 | L39: 1563583.152 | M39: 1563583.15 | O39: 1514785.46
A40: 8732123 | B40: The Grove Primary School | C40: 1186674.182 | D40: 1186674.18 | E40: 1143968.96 | F40: 1123518.77 | I40: 1143968.956 | K40: 8732123 | L40: 1143968.956 | M40: 1143968.96 | O40: 1186674.18
A41: 8732202 | B41: The Icknield Primary School | C41: 653416.1748 | D41: 653416.17 | E41: 729509.95 | I41: 729509.9459 | K41: 8732202 | L41: 729509.9459 | M41: 729509.95 | O41: 653416.17
A42: 8732205 | B42: Hauxton Primary School | C42: 422107.9868 | D42: 422107.99 | E42: 433066.57 | F42: 487880.48 | I42: 433066.5685 | K42: 8732205 | L42: 433066.5685 | M42: 433066.57 | O42: 422107.99
A43: 8732208 | B43: Fenstanton and Hilton Primary School | C43: 902515.9672 | D43: 902515.97 | E43: 934849.96 | F43: 982053.53 | I43: 934849.9589 | K43: 8732208 | L43: 934849.9589 | M43: 934849.96 | O43: 902515.97
A44: 8732211 | B44: Hemingford Grey Primary School | C44: 1043392.624 | D44: 1043392.62 | E44: 1111389.42 | F44: 1256052.5 | I44: 1111389.42 | K44: 8732211 | L44: 1111389.42 | M44: 1111389.42 | O44: 1043392.62
A45: 8732212 | B45: Houghton Primary School | C45: 754150.4346 | D45: 754150.43 | E45: 751509.99 | F45: 780623.75 | I45: 751509.9878 | K45: 8732212 | L45: 751509.9878 | M45: 751509.99 | O45: 754150.43
A46: 8732214 | B46: Offord Primary School | C46: 456162.2409 | D46: 456162.24 | I46: 589218.903 | K46: 8732217 | L46: 589218.903 | M46: 589218.9 | O46: 561092.53
A47: 8732217 | B47: The Ashbeach Primary School | C47: 561092.5303 | D47: 561092.53 | E47: 589218.9 | F47: 599918.29 | I47: 1032910.622 | K47: 8732219 | L47: 1032910.622 | M47: 1032910.62 | O47: 981525.23
A48: 8732219 | B48: Priory Park Infant School & Playgroup | C48: 981525.2259 | D48: 981525.23 | E48: 1032910.62 | F48: 1045210.49 | I48: 479621.8077 | K48: 8732222 | L48: 479621.8077 | M48: 479621.81 | O48: 539804.56
A49: 8732221 | B49: Somersham Primary School | C49: 1005000.04 | D49: 1005000.04 | I49: 1298561.583 | K49: 8732232 | L49: 1298561.583 | M49: 1298561.58 | O49: 1228408.65
A50: 8732222 | B50: Spaldwick Community Primary School | C50: 539804.5645 | D50: 539804.56 | E50: 479621.81 | F50: 499150.24 | I50: 1313792.475 | K50: 8732239 | L50: 1313792.475 | M50: 1313792.47 | O50: 1216883.51
A51: 8732232 | B51: Westfield Junior School | C51: 1228408.655 | D51: 1228408.65 | E51: 1298561.58 | F51: 1345343.05 | I51: 708409.3496 | K51: 8732240 | L51: 708409.3496 | M51: 708409.35 | O51: 682660.25
A52: 8732239 | B52: Priory Junior School | C52: 1216883.514 | D52: 1216883.51 | E52: 1313792.47 | F52: 1443228.16 | I52: 753277.4043 | K52: 8732246 | L52: 753277.4043 | M52: 753277.4 | O52: 810082.36
A53: 8732240 | B53: Wyton on the Hill Community Primary School | C53: 682660.2468 | D53: 682660.25 | E53: 708409.35 | F53: 777623.6 | I53: 711152.0479 | K53: 8732254 | L53: 711152.0479 | M53: 711152.05 | O53: 675089.81
A54: 8732246 | B54: Eastfield Infant and Nursery School | C54: 810082.3569 | D54: 810082.36 | E54: 753277.4 | F54: 738091.18 | I54: 722500.5306 | K54: 8732255 | L54: 722500.5306 | M54: 722500.53 | O54: 673997.78
A55: 8732254 | B55: Yaxley Infant School | C55: 675089.8103 | D55: 675089.81 | E55: 711152.05 | F55: 713384.76 | I55: 430734.781 | K55: 8732260 | L55: 430734.781 | M55: 430734.78 | O55: 389750.9
A56: 8732255 | B56: Sawtry Infants' School | C56: 673997.7822 | D56: 673997.78 | E56: 722500.53 | F56: 737679.37 | I56: 1380863.02 | K56: 8732293 | L56: 1380863.02 | M56: 1380863.02 | O56: 1310690.81
A57: 8732256 | B57: Warboys Community Primary School | C57: 1034177.822 | D57: 1034177.82 | E57: 1070786.68 | I57: 968233.9754 | K57: 8732312 | L57: 968233.9754 | M57: 968233.98 | O57: 1006035.14
A58: 8732260 | B58: The Newton Community Primary School | C58: 389750.8971 | D58: 389750.9 | E58: 430734.78 | F58: 431445.49 | I58: 2149150.7 | K58: 8732315 | L58: 2149150.7 | M58: 2149150.7 | O58: 2120415.74
A59: 8732293 | B59: Little Paxton Primary School | C59: 1310690.815 | D59: 1310690.81 | E59: 1380863.02 | F59: 1556136.75 | I59: 2401355.89 | K59: 8732317 | L59: 2401355.89 | M59: 2401355.89 | O59: 2145603.9
A60: 8732312 | B60: Bewick Bridge Community Primary School | C60: 1006035.139 | D60: 1006035.14 | E60: 968233.98 | F60: 940358.79 | I60: 1695821.35 | K60: 8732321 | L60: 1695821.35 | M60: 1695821.35 | O60: 1519268.18
A61: 8732315 | B61: Hardwick and Cambourne Community Primary School | C61: 2120415.74 | D61: 2120415.74 | E61: 2149150.7 | F61: 2370131 | I61: 1739368.2 | K61: 8732327 | L61: 1739368.2 | M61: 1739368.2 | O61: 1660397.64
A62: 8732317 | B62: St Matthew's Primary School | C62: 2145603.904 | D62: 2145603.9 | E62: 2401355.89 | F62: 2597627.66 | I62: 1115772.52 | K62: 8732328 | L62: 1115772.52 | M62: 1115772.52 | O62: 1121265.33
A63: 8732321 | B63: Fourfields Community Primary School | C63: 1519268.178 | D63: 1519268.18 | E63: 1695821.35 | F63: 1899490.2 | I63: 902809.0753 | K63: 8732329 | L63: 902809.0753 | M63: 902809.08 | O63: 979894.69
A64: 8732327 | B64: Burwell Village College (Primary) | C64: 1660397.636 | D64: 1660397.64 | E64: 1739368.2 | F64: 1861784.55 | I64: 374728.1034 | K64: 8732331 | L64: 374728.1034 | M64: 374728.1 | O64: 360608.59
A65: 8732328 | B65: Fulbourn Primary School | C65: 1121265.334 | D65: 1121265.33 | E65: 1115772.52 | F65: 1281491.86 | I65: 1537854.413 | K65: 8732333 | L65: 1537854.413 | M65: 1537854.41 | O65: 1458599.06
A66: 8732329 | B66: Spring Meadow Infant School | C66: 979894.6934 | D66: 979894.69 | E66: 902809.08 | F66: 913411.49 | I66: 841045.3978 | K66: 8732335 | L66: 841045.3978 | M66: 841045.4 | O66: 822811.79
A67: 8732331 | B67: Kinderley Primary School | C67: 360608.5926 | D67: 360608.59 | E67: 374728.1 | F67: 411920.59 | I67: 1516565.142 | K67: 8732336 | L67: 1516565.142 | M67: 1516565.14 | O67: 1370441.48
A68: 8732333 | B68: Queen Edith Primary School | C68: 1458599.063 | D68: =ROUND(C68,2) -> 1458599.06 | E68: =VLOOKUP(A68,$K$3:$M$246,3,FALSE) -> 1537854.41 | F68: 1660131 | I68: 505348.8566 | K68: 8732442 | L68: 505348.8566 | M68: =ROUND(L68,2) -> 505348.86 | O68: =VLOOKUP(K68,$A$3:$D$246,4,FALSE) -> 474180.6
A69: 8732335 | B69: The Spinney Primary School | C69: 822811.7889 | D69: 822811.79 | E69: 841045.4 | F69: 888292.17 | I69: 1544904.3 | K69: 8732443 | L69: 1544904.3 | M69: 1544904.3 | O69: 1476895.9
A70: 8732336 | B70: Fawcett Primary School | C70: 1370441.476 | D70: 1370441.48 | E70: 1516565.14 | F70: 1576451.9 | I70: 1668067.56 | K70: 8732444 | L70: 1668067.56 | M70: 1668067.56 | O70: 1596973.02
A71: 8732442 | B71: Kettlefields Primary School | C71: 474180.5987 | D71: 474180.6 | E71: 505348.86 | F71: 560037.38 | I71: 1814447.934 | K71: 8732446 | L71: 1814447.934 | M71: 1814447.93 | O71: 1752192.64
A72: 8732443 | B72: Stukeley Meadows Primary School | C72: 1476895.898 | D72: 1476895.9 | E72: 1544904.3 | F72: 1734217.15 | I72: 1457018.281 | K72: 8732449 | L72: 1457018.281 | M72: 1457018.28 | O72: 1398416.07
A73: 8732444 | B73: Ely St John's Community Primary School | C73: 1596973.018 | D73: 1596973.02 | E73: 1668067.56 | F73: 1685108.6 | I73: 1323353.143 | K73: 8732452 | L73: 1323353.143 | M73: 1323353.14 | O73: 1284618.08
A74: 8732446 | B74: Kings Hedges Primary School | C74: 1752192.637 | D74: 1752192.64 | E74: 1814447.93 | F74: 1961239.76 | I74: 842405.726 | K74: 8732453 | L74: 842405.726 | M74: 842405.73 | O74: 798141.29
A75: 8732449 | B75: Monkfield Park Primary School | C75: 1398416.074 | D75: 1398416.07 | E75: 1457018.28 | F75: 1666605.1 | I75: 473034.8844 | K75: 8733001 | L75: 473034.8844 | M75: 473034.88 | O75: 442060.17
A76: 8732450 | B76: Abbey Meadows Primary School | C76: 1690858.6 | D76: 1690858.6 | I76: 466765.6003 | K76: 8733004 | L76: 466765.6003 | M76: 466765.6 | O76: 482372.41
A77: 8732452 | B77: Bushmead Primary School | C77: 1284618.076 | D77: 1284618.08 | E77: 1323353.14 | F77: 1458522.63 | I77: 556922.1978 | K77: 8733008 | L77: 556922.1978 | M77: 556922.2 | O77: 524920.63
A78: 8732453 | B78: Ridgefield Primary School | C78: 798141.2863 | D78: 798141.29 | E78: 842405.73 | F78: 896308.41 | I78: 574309.2209 | K78: 8733009 | L78: 574309.2209 | M78: 574309.22 | O78: 564052.58
A79: 8733001 | B79: Barrington CofE VC Primary School | C79: 442060.1715 | D79: 442060.17 | E79: 473034.88 | F79: 519765.1 | I79: 526562.7143 | K79: 8733011 | L79: 526562.7143 | M79: 526562.71 | O79: 533862.12
A80: 8733004 | B80: Burrough Green CofE Primary School | C80: 482372.4075 | D80: 482372.41 | E80: 466765.6 | F80: 500151.29 | I80: 264492.0111 | K80: 8733012 | L80: 264492.0111 | M80: 264492.01 | O80: 278499.19
A81: 8733008 | B81: Castle Camps Church of England (Controlled) Primary School | C81: 524920.6299 | D81: 524920.63 | E81: 556922.2 | F81: 594518.04 | I81: 1342071.4 | K81: 8733014 | L81: 1342071.4 | M81: 1342071.4 | O81: 1152936.02
A82: 8733009 | B82: Cheveley CofE Primary School | C82: 564052.577 | D82: 564052.58 | E82: 574309.22 | F82: 600494.76 | I82: 440661.526 | K82: 8733017 | L82: 440661.526 | M82: 440661.53 | O82: 437604.28
A83: 8733011 | B83: Coton Church of England (Voluntary Controlled) Primary School | C83: 533862.1243 | D83: 533862.12 | E83: 526562.71 | F83: 546745.56 | I83: 799929.1101 | K83: 8733022 | L83: 799929.1101 | M83: 799929.11 | O83: 769333.13
A84: 8733012 | B84: Dry Drayton CofE (C) Primary School | C84: 278499.1916 | D84: 278499.19 | E84: 264492.01 | F84: 361395.22 | I84: 705028.3436 | K84: 8733029 | L84: 705028.3436 | M84: 705028.34 | O84: 692582.73
A85: 8733014 | B85: Fordham CofE Primary School | C85: 1152936.016 | D85: 1152936.02 | E85: 1342071.4 | F85: 1631737.15 | I85: 797181.5774 | K85: 8733032 | L85: 797181.5774 | M85: 797181.58 | O85: 782729.39
A86: 8733017 | B86: Great Wilbraham CofE Primary School | C86: 437604.2815 | D86: 437604.28 | E86: 440661.53 | F86: 462480.48 | I86: 649973.5456 | K86: 8733035 | L86: 649973.5456 | M86: 649973.55 | O86: 620866.12
A87: 8733022 | B87: Isleham Church of England Primary School | C87: 769333.1256 | D87: 769333.13 | E87: 799929.11 | F87: 858337.9 | I87: 827758.3696 | K87: 8733041 | L87: 827758.3696 | M87: 827758.37 | O87: 783771.02
A88: 8733029 | B88: Steeple Morden CofE VC Primary School | C88: 692582.727 | D88: 692582.73 | E88: 705028.34 | F88: 787251.63 | I88: 801952.9121 | K88: 8733050 | L88: 801952.9121 | M88: 801952.91 | O88: 799372.02
A89: 8733032 | B89: William Westley Church of England VC Primary School | C89: 782729.3932 | D89: 782729.39 | E89: 797181.58 | F89: 896679.55 | I89: 1115124.66 | K89: 8733052 | L89: 1115124.66 | M89: 1115124.66 | O89: 1120958.56
A90: 8733035 | B90: Haslingfield Endowed Primary School | C90: 620866.1219 | D90: 620866.12 | E90: 649973.55 | F90: 682817.7 | I90: 448544.7824 | K90: 8733053 | L90: 448544.7824 | M90: 448544.78 | O90: 462041.47
A91: 8733041 | B91: Duxford Church of England Community Primary School | C91: 783771.0237 | D91: 783771.02 | E91: 827758.37 | F91: 857238.57 | I91: 521591.3579 | K91: 8733054 | L91: 521591.3579 | M91: 521591.36 | O91: 466914.3
A92: 8733050 | B92: Cherry Hinton Church of England Voluntary Controlled Primary School | C92: 799372.0191 | D92: 799372.02 | E92: 801952.91 | F92: 865228.44 | I92: 1148705.96 | K92: 8733058 | L92: 1148705.96 | M92: 1148705.96 | O92: 1086063.52
A93: 8733052 | B93: Sutton CofE VC Primary School | C93: 1120958.561 | D93: 1120958.56 | E93: 1115124.66 | F93: 1130949.25 | I93: 762960.8118 | K93: 8733061 | L93: 762960.8118 | M93: 762960.81 | O93: 751466.08
A94: 8733053 | B94: Little Thetford CofE VC Primary School | C94: 462041.4686 | D94: 462041.47 | E94: 448544.78 | F94: 467970.26 | I94: 459257.923 | K94: 8733065 | L94: 459257.923 | M94: 459257.92 | O94: 424221.07
A95: 8733054 | B95: Wilburton CofE Primary School | C95: 466914.2985 | D95: 466914.3 | E95: 521591.36 | F95: 579285.72 | I95: 298425.8422 | K95: 8733066 | L95: 298425.8422 | M95: 298425.84 | O95: 290121.14
A96: 8733058 | B96: The Rackham Church of England Primary School | C96: 1086063.515 | D96: 1086063.52 | E96: 1148705.96 | F96: 1181121.05 | I96: 584150.8623 | K96: 8733067 | L96: 584150.8623 | M96: 584150.86 | O96: 541482.99
A97: 8733061 | B97: Alconbury CofE Primary School | C97: 751466.0818 | D97: 751466.08 | E97: 762960.81 | F97: 835657.15 | I97: 528102.77 | K97: 8733068 | L97: 528102.77 | M97: 528102.77 | O97: 539381.82
A98: 8733065 | B98: Folksworth CofE Primary School | C98: 424221.0734 | D98: 424221.07 | E98: 459257.92 | F98: 485908.27 | I98: 773611.2355 | K98: 8733071 | L98: 773611.2355 | M98: 773611.24 | O98: 766290.2
A99: 8733066 | B99: Great Gidding CofE Primary School | C99: 290121.1403 | D99: 290121.14 | E99: 298425.84 | F99: 329805.92 | I99: 756412.0416 | K99: 8733074 | L99: 756412.0416 | M99: 756412.04 | O99: 743010.59
A100: 8733067 | B100: Barnabas Oley CofE Primary School | C100: 541482.9926 | D100: 541482.99 | E100: 584150.86 | F100: 639891.96 | I100: 359490.7153 | K100: 8733081 | L100: 359490.7153 | M100: 359490.72 | O100: 342955.36
A101: 8733068 | B101: Great Paxton CofE Primary School | C101: 539381.8183 | D101: 539381.82 | E101: 528102.77 | F101: 518020.98 | I101: 450709.5969 | K101: 8733301 | L101: 450709.5969 | M101: 450709.6 | O101: 420522.13
A102: 8733070 | B102: Holme CofE Primary School | C102: 461742.3908 | D102: 461742.39 | E102: 476349.6 | I102: 954386.4573 | K102: 8733302 | L102: 954386.4573 | M102: 954386.46 | O102: 746138.83
A103: 8733071 | B103: Holywell CofE Primary School | C103: 766290.2023 | D103: 766290.2 | E103: 773611.24 | F103: 810234.4 | I103: 528830.8694 | K103: 8733308 | L103: 528830.8694 | M103: 528830.87 | O103: 508156
A104: 8733074 | B104: Eynesbury CofE C Primary School | C104: 743010.5875 | D104: 743010.59 | E104: 756412.04 | F104: 743836.09 | I104: 783848.3284 | K104: 8733310 | L104: 783848.3284 | M104: 783848.33 | O104: 741567.08
A105: 8733081 | B105: Brington CofE Primary School | C105: 342955.3602 | D105: 342955.36 | E105: 359490.72 | F105: 480987.22 | I105: 674911.8134 | K105: 8733317 | L105: 674911.8134 | M105: 674911.81 | O105: 625024.21
A106: 8733301 | B106: Barton CofE VA Primary School | C106: 420522.1322 | D106: 420522.13 | E106: 450709.6 | F106: 474870.66 | I106: 756081.3757 | K106: 8733325 | L106: 756081.3757 | M106: 756081.38 | O106: 666566.15
A107: 8733302 | B107: Pathfinder Primary School | C107: 746138.8283 | D107: 746138.83 | E107: 954386.46 | I107: 480166.1046 | K107: 8733331 | L107: 480166.1046 | M107: 480166.1 | O107: 480264.14
A108: 8733308 | B108: Elsworth CofE VA Primary School | C108: 508156.0031 | D108: 508156 | E108: 528830.87 | F108: 550259.57 | I108: 484220.8925 | K108: 8733350 | L108: 484220.8925 | M108: 484220.89 | O108: 485457.29
A109: 8733310 | B109: Great and Little Shelford CofE (Aided) Primary School | C109: 741567.0797 | D109: 741567.08 | E109: 783848.33 | F109: 860947.1 | I109: 749981.1862 | K109: 8733356 | L109: 749981.1862 | M109: 749981.19 | O109: 771560.01
A110: 8733317 | B110: Linton CofE Infant School | C110: 625024.2126 | D110: 625024.21 | E110: 674911.81 | F110: 695661.25 | I110: 1126515.999 | K110: 8733358 | L110: 1126515.999 | M110: 1126516 | O110: 1151292.64
A111: 8733321 | B111: Oakington CofE VA Primary School | C111: 534142.5111 | D111: 534142.51 | I111: 833397.004 | K111: 8733360 | L111: 833397.004 | M111: 833397 | O111: 799352.54
A112: 8733325 | B112: Teversham CofE VA Primary School | C112: 666566.1519 | D112: 666566.15 | E112: 756081.38 | F112: 840451.4 | I112: 581687.4045 | K112: 8733368 | L112: 581687.4045 | M112: 581687.4 | O112: 539489.71
A113: 8733331 | B113: Petersfield CofE Aided Primary School | C113: 480264.1399 | D113: 480264.14 | E113: 480166.1 | F113: 532595.5 | I113: 443894.7173 | K113: 8733373 | L113: 443894.7173 | M113: 443894.72 | O113: 457146.29
A114: 8733350 | B114: Park Street CofE Primary School | C114: 485457.291 | D114: 485457.29 | E114: 484220.89 | F114: 470710.78 | I114: 790308.323 | K114: 8733384 | L114: 790308.323 | M114: 790308.32 | O114: 738448.67
A115: 8733352 | B115: St Luke's CofE Primary School | C115: 765755.1678 | D115: 765755.17 | I115: 1613248.32 | K115: 8733386 | L115: 1613248.32 | M115: 1613248.32 | O115: 1508392.03
A116: 8733356 | B116: St Pauls CofE VA Primary School | C116: 771560.0107 | D116: 771560.01 | E116: 749981.19 | F116: 726271.77 | I116: 1541156.02 | K116: 8733389 | L116: 1541156.02 | M116: 1541156.02 | O116: 1444329.6
A117: 8733358 | B117: St Philip's CofE Aided Primary School | C117: 1151292.636 | D117: 1151292.64 | E117: 1126516 | F117: 1207941.51 | I117: 878594.0765 | K117: 8733390 | L117: 878594.0765 | M117: 878594.08 | O117: 866920.46
A118: 8733360 | B118: St Alban's Catholic Primary School | C118: 799352.5359 | D118: 799352.54 | E118: 833397 | F118: 886513.73 | I118: 1393278.12 | K118: 8733392 | L118: 1393278.12 | M118: 1393278.12 | O118: 1346830.42
A119: 8733366 | B119: St Laurence's Catholic Primary School | C119: 1119289.438 | D119: 1119289.44 | E119: 1176607.4 | I119: 1797785.74 | K119: 8733942 | L119: 1797785.74 | M119: 1797785.74 | O119: 1563649.04
A120: 8733368 | B120: The Elton CofE Primary School of the Foundation of Frances and Jane Proby | C120: 539489.7116 | D120: 539489.71 | E120: 581687.4 | F120: 614451.28 | I120: 1384071.49 | K120: 8733943 | L120: 1384071.49 | M120: 1384071.49 | O120: 1249301.75
A121: 8733373 | B121: Abbots Ripton CofE Primary School | C121: 457146.2851 | D121: 457146.29 | E121: 443894.72 | F121: 490487.71 | I121: 1933539.538 | K121: 8733945 | L121: 1933539.538 | M121: 1933539.54 | O121: 1855433.77
A122: 8733384 | B122: St Anne's CofE Primary School | C122: 738448.6743 | D122: 738448.67 | E122: 790308.32 | F122: 872104.48 | I122: 1489742.414 | K122: 8733946 | L122: 1489742.414 | M122: 1489742.41 | O122: 1492263.19
A123: 8733386 | B123: Milton Road Primary School | C123: 1508392.025 | D123: 1508392.03 | E123: 1613248.32 | F123: 1792562.35 | I123: 632495.2471 | K123: 8735200 | L123: 632495.2471 | M123: 632495.25 | O123: 616381.76
A124: 8733389 | B124: The Vine Inter-Church Primary School | C124: 1444329.599 | D124: 1444329.6 | E124: 1541156.02 | F124: 1692664.25 | I124: 1073861.498 | K124: 8734028 | L124: 1073861.498 | M124: 1073861.5 | O124: 440374.25
A125: 8733390 | B125: Orchard Park Community Primary School | C125: 866920.4609 | D125: 866920.46 | E125: 878594.08 | F125: 936701.94 | I125: 1027670.294 | K125: 8732005 | L125: 1027670.294 | M125: 1027670.29 | O125: 950994.87
A126: 8733392 | B126: Wheatfields Primary School | C126: 1346830.416 | D126: 1346830.42 | E126: 1393278.12 | F126: 1460393.9 | I126: 1204089 | K126: 8732007 | L126: 1204089 | M126: 1204089 | O126: 1043299.37
A127: 8733942 | B127: Brampton Village Primary School | C127: 1563649.042 | D127: 1563649.04 | E127: 1797785.74 | F127: 2230173.4 | I127: 871131 | K127: 8732008 | L127: 871131 | M127: 871131 | O127: 820489.92
A128: 8733943 | B128: The Bellbird Primary School | C128: 1249301.748 | D128: 1249301.75 | E128: 1384071.49 | F128: 1675047.2 | I128: 755541.4321 | K128: 8732009 | L128: 755541.4321 | M128: 755541.43 | O128: 743622.11
A129: 8733945 | B129: Huntingdon Primary School | C129: 1855433.773 | D129: 1855433.77 | E129: 1933539.54 | F129: 1922388.82 | I129: 776793.4381 | K129: 8732013 | L129: 776793.4381 | M129: 776793.44 | O129: 834899.82
A130: 8733946 | B130: Queen Emma Primary School | C130: 1492263.19 | D130: 1492263.19 | E130: 1489742.41 | F130: 1669061.04 | I130: 1185490 | K130: 8732014 | L130: 1185490 | M130: 1185490 | O130: 1057123.85
A131: 8735200 | B131: St Helen's Primary School | C131: 616381.7573 | D131: 616381.76 | E131: 632495.25 | F131: 715496.4 | I131: 1637762.712 | K131: 8732019 | L131: 1637762.712 | M131: 1637762.71 | O131: 1580473.23
A132: 8732005 | B132: Winhills Primary Academy | C132: 950994.8714 | D132: =ROUND(C132,2) -> 950994.87 | E132: =VLOOKUP(A132,$K$3:$M$246,3,FALSE) -> 1027670.29 | I132: 1170034.462 | K132: 8732020 | L132: 1170034.462 | M132: =ROUND(L132,2) -> 1170034.46 | O132: =VLOOKUP(K132,$A$3:$D$246,4,FALSE) -> 1111822.57
A133: 8732007 | B133: Hatton Park Primary School | C133: 1043299.365 | D133: 1043299.37 | E133: 1204089 | I133: 431675.3321 | K133: 8732021 | L133: 431675.3321 | M133: 431675.33 | O133: 432526.4
A134: 8732008 | B134: The Shade Primary School | C134: 820489.9241 | D134: 820489.92 | E134: 871131 | I134: 1110999.255 | K134: 8732022 | L134: 1110999.255 | M134: 1110999.26 | O134: 1133381.21
A135: 8732009 | B135: Fen Ditton Primary School | C135: 743622.1082 | D135: 743622.11 | E135: 755541.43 | I135: 369581.2235 | K135: 8732023 | L135: 369581.2235 | M135: 369581.22 | O135: 321615.72
A136: 8732013 | B136: Chesterton Primary School | C136: 834899.8193 | D136: 834899.82 | E136: 776793.44 | I136: 1487363 | K136: 8732024 | L136: 1487363 | M136: 1487363 | O136: 1165993.6
A137: 8732014 | B137: Gamlingay First School | C137: 1057123.85 | D137: 1057123.85 | E137: 1185490 | I137: 773564.7244 | K137: 8732025 | L137: 773564.7244 | M137: 773564.72 | O137: 799384.88
A138: 8732019 | B138: The Round House Primary Academy | C138: 1580473.234 | D138: 1580473.23 | E138: 1637762.71 | I138: 1577009.05 | K138: 8732026 | L138: 1577009.05 | M138: 1577009.05 | O138: 1554272
A139: 8732020 | B139: Ramnoth Junior School | C139: 1111822.567 | D139: 1111822.57 | E139: 1170034.46 | I139: 830844.0196 | K139: 8732027 | L139: 830844.0196 | M139: 830844.02 | O139: 783657.77
A140: 8732021 | B140: Kennett Primary School | C140: 432526.402 | D140: 432526.4 | E140: 431675.33 | I140: 439315.5624 | K140: 8732030 | L140: 439315.5624 | M140: 439315.56 | O140: 405995.46
A141: 8732022 | B141: The Nene Infant & Nursery School | C141: 1133381.207 | D141: 1133381.21 | E141: 1110999.26 | I141: 1079625.415 | K141: 8732032 | L141: 1079625.415 | M141: 1079625.42 | O141: 998178.62
A142: 8732023 | B142: Kimbolton Primary Academy | C142: 321615.7168 | D142: 321615.72 | E142: 369581.22 | I142: 1767874 | K142: 8732034 | L142: 1767874 | M142: 1767874 | O142: 1554042.56
A143: 8732024 | B143: Isle of Ely Primary School | C143: 1165993.599 | D143: 1165993.6 | E143: 1487363 | I143: 753039.5256 | K143: 8732036 | L143: 753039.5256 | M143: 753039.53 | O143: 629968.98
A144: 8732025 | B144: Meadow Primary School | C144: 799384.8817 | D144: 799384.88 | E144: 773564.72 | I144: 808279.4854 | K144: 8732037 | L144: 808279.4854 | M144: 808279.49 | O144: 579074.51
A145: 8732026 | B145: Kingsfield Primary School | C145: 1554272.003 | D145: 1554272 | E145: 1577009.05 | I145: 586675.7088 | K145: 8732038 | L145: 586675.7088 | M145: 586675.71 | O145: 636928.24
A146: 8732027 | B146: William de Yaxley Church of England Academy | C146: 783657.7728 | D146: 783657.77 | E146: 830844.02 | I146: 787206.2629 | K146: 8732040 | L146: 787206.2629 | M146: 787206.26 | O146: 756694.49
A147: 8732030 | B147: Mepal and Witcham Church of England Primary School | C147: 405995.4552 | D147: 405995.46 | E147: 439315.56 | I147: 749688.4534 | K147: 8732041 | L147: 749688.4534 | M147: 749688.45 | O147: 727144.78
A148: 8732032 | B148: St Peter's CofE Aided Junior School | C148: 998178.6226 | D148: 998178.62 | E148: 1079625.42 | I148: 291105.8994 | K148: 8732042 | L148: 291105.8994 | M148: 291105.9 | O148: 284765.48
A149: 8732034 | B149: University of Cambridge Primary School | C149: 1554042.559 | D149: 1554042.56 | E149: 1767874 | I149: 1809462.468 | K149: 8732044 | L149: 1809462.468 | M149: 1809462.47 | O149: 1921878.29
A150: 8732036 | B150: Godmanchester Bridge Academy | C150: 629968.9833 | D150: 629968.98 | E150: 753039.53 | I150: 976508.4288 | K150: 8732045 | L150: 976508.4288 | M150: 976508.43 | O150: 910043.55
A151: 8732037 | B151: Ermine Street Church Academy | C151: 579074.5108 | D151: 579074.51 | E151: 808279.49 | I151: 1970272 | K151: 8732049 | L151: 1970272 | M151: 1970272 | O151: 1842176.37
A152: 8732038 | B152: St Mary's Church of England Primary School St Neots | C152: 636928.2389 | D152: 636928.24 | E152: 586675.71 | I152: 582883.5041 | K152: 8732050 | L152: 582883.5041 | M152: 582883.5 | O152: 556974.76
A153: 8732040 | B153: Wisbech St Mary CofE Academy | C153: 756694.4853 | D153: 756694.49 | E153: 787206.26 | I153: 1059932.581 | K153: 8732051 | L153: 1059932.581 | M153: 1059932.58 | O153: 813493.28
A154: 8732041 | B154: Stapleford Community Primary School | C154: 727144.78 | D154: 727144.78 | E154: 749688.45 | I154: 701386.2764 | K154: 8732052 | L154: 701386.2764 | M154: 701386.28 | O154: 677391.38
A155: 8732042 | B155: Guilden Morden CofE Primary Academy | C155: 284765.4777 | D155: 284765.48 | E155: 291105.9 | I155: 541641.999 | K155: 8732053 | L155: 541641.999 | M155: 541642 | O155: 508221.35
A156: 8732044 | B156: Orchards Church of England Primary School | C156: 1921878.292 | D156: 1921878.29 | E156: 1809462.47 | I156: 556805.9921 | K156: 8732055 | L156: 556805.9921 | M156: 556805.99 | O156: 528021.1
A157: 8732045 | B157: Hartford Junior School | C157: 910043.5475 | D157: 910043.55 | E157: 976508.43 | I157: 788603.3775 | K157: 8732057 | L157: 788603.3775 | M157: 788603.38 | O157: 751389.86
A158: 8732049 | B158: The Weatheralls Primary School | C158: 1842176.375 | D158: 1842176.37 | E158: 1970272 | I158: 1058983 | K158: 8732058 | L158: 1058983 | M158: 1058983 | O158: 1073443.45
A159: 8732050 | B159: Thomas Eaton Primary Academy | C159: 556974.7646 | D159: 556974.76 | E159: 582883.5 | I159: 383416.5584 | K159: 8732061 | L159: 383416.5584 | M159: 383416.56 | O159: 377626.73
A160: 8732051 | B160: Trumpington Park Primary School | C160: 813493.2764 | D160: 813493.28 | E160: 1059932.58 | I160: 485142.2318 | K160: 8732067 | L160: 485142.2318 | M160: 485142.23 | O160: 501254.47
A161: 8732052 | B161: Downham Feoffees Primary Academy | C161: 677391.3797 | D161: 677391.38 | E161: 701386.28 | I161: 728489.2668 | K161: 8732071 | L161: 728489.2668 | M161: 728489.27 | O161: 731828.14
A162: 8732053 | B162: Murrow Primary Academy | C162: 508221.3547 | D162: 508221.35 | E162: 541642 | I162: 865968.268 | K162: 8732072 | L162: 865968.268 | M162: 865968.27 | O162: 837196.17
A163: 8732055 | B163: Farcet CofE (C) Primary School | C163: 528021.1019 | D163: 528021.1 | E163: 556805.99 | I163: 427340.4443 | K163: 8732073 | L163: 427340.4443 | M163: 427340.44 | O163: 421803.21
A164: 8732057 | B164: Ditton Lodge Primary School | C164: 751389.8564 | D164: 751389.86 | E164: 788603.38 | I164: 1559689.255 | K164: 8732076 | L164: 1559689.255 | M164: 1559689.25 | O164: 1473454.64
A165: 8732058 | B165: Bar Hill Community Primary School | C165: 1073443.447 | D165: 1073443.45 | E165: 1058983 | I165: 1175570.521 | K165: 8732078 | L165: 1175570.521 | M165: 1175570.52 | O165: 1175675.38
A166: 8732061 | B166: Earith Primary School | C166: 377626.7309 | D166: 377626.73 | E166: 383416.56 | I166: 3006092.818 | K166: 8732079 | L166: 3006092.818 | M166: 3006092.82 | O166: 2719105.45
A167: 8732067 | B167: Gorefield Primary School | C167: 501254.4713 | D167: 501254.47 | E167: 485142.23 | I167: 480069.4119 | K167: 8732081 | L167: 480069.4119 | M167: 480069.41 | O167: 463474.77
A168: 8732071 | B168: Stilton Church of England Primary Academy | C168: 731828.1419 | D168: 731828.14 | E168: 728489.27 | I168: 702295.4673 | K168: 8732086 | L168: 702295.4673 | M168: 702295.47 | P168: St Lukes | Q168: 2019-03-01 | R168: was 3352 | S168: 8732086
A169: 8732072 | B169: Leverington Primary Academy | C169: 837196.175 | D169: 837196.17 | E169: 865968.27 | I169: 2346664.155 | K169: 8732087 | L169: 2346664.155 | M169: 2346664.15 | O169: 2148270.08
A170: 8732073 | B170: Wintringham Primary Academy | C170: 421803.2108 | D170: 421803.21 | E170: 427340.44 | I170: 638166.7486 | K170: 8732088 | L170: 638166.7486 | M170: 638166.75 | O170: 563898.25
A171: 8732076 | B171: Burrowmoor Primary School | C171: 1473454.635 | D171: 1473454.64 | E171: 1559689.25 | I171: 946174.855 | K171: 8732089 | L171: 946174.855 | M171: 946174.85 | P171: Somersham | Q171: 2019-04-01 | R171: was 2221 | S171: 8732089
A172: 8732078 | B172: Thongsley Fields Primary and Nursery School | C172: 1175675.382 | D172: 1175675.38 | E172: 1175570.52 | I172: 952576.1726 | K172: 8732092 | L172: 952576.1726 | M172: 952576.17 | O172: 1000726.96
A173: 8732079 | B173: Westwood Primary School | C173: 2719105.451 | D173: 2719105.45 | E173: 3006092.82 | I173: 1594865.749 | K173: 8732094 | L173: 1594865.749 | M173: 1594865.75 | O173: 1522644.6
A174: 8732081 | B174: Swaffham Prior Church of England Academy | C174: 463474.7711 | D174: 463474.77 | E174: 480069.41 | I174: 534696.7409 | K174: 8732096 | L174: 534696.7409 | M174: 534696.74 | P174: Oakington | Q174: 2019-05-01 | R174: was 3321 | S174: 8732096
A175: 8732087 | B175: Alderman Jacobs School | C175: 2148270.085 | D175: 2148270.08 | E175: 2346664.15 | I175: 411324.6985 | K175: 8732098 | L175: 411324.6985 | M175: 411324.7 | P175: Offord | Q175: 2019-09-01 | R175: was 2214 | S175: 8732098
A176: 8732088 | B176: New Road Primary School | C176: 563898.2473 | D176: 563898.25 | E176: 638166.75 | I176: 1027259 | K176: 8732200 | L176: 1027259 | M176: 1027259 | O176: 978136.82
A177: 8732092 | B177: Elm Road Primary School | C177: 1000726.961 | D177: 1000726.96 | E177: 952576.17 | I177: 938553.1557 | K177: 8732204 | L177: 938553.1557 | M177: 938553.16 | O177: 863146.72
A178: 8732094 | B178: Peckover Primary School | C178: 1522644.604 | D178: 1522644.6 | E178: 1594865.75 | I178: 1683341.736 | K178: 8732206 | L178: 1683341.736 | M178: 1683341.74 | O178: 1593676.85
A179: 8732200 | B179: Bottisham Community Primary School | C179: 978136.8243 | D179: 978136.82 | E179: 1027259 | I179: 1468216 | K179: 8732209 | L179: 1468216 | M179: 1468216 | O179: 1366315.91
A180: 8732204 | B180: Linton Heights Junior School | C180: 863146.7186 | D180: 863146.72 | E180: 938553.16 | I180: 404191.357 | K180: 8732210 | L180: 404191.357 | M180: 404191.36 | O180: 375633.38
A181: 8732206 | B181: Cavalry Primary School | C181: 1593676.846 | D181: 1593676.85 | E181: 1683341.74 | I181: 849328.3228 | K181: 8732216 | L181: 849328.3228 | M181: 849328.32 | O181: 703587.99
A182: 8732209 | B182: Godmanchester Community Academy | C182: 1366315.912 | D182: 1366315.91 | E182: 1468216 | I182: 971650.234 | K182: 8732218 | L182: 971650.234 | M182: 971650.23 | O182: 912654.5
A183: 8732210 | B183: Great Staughton Primary School | C183: 375633.3848 | D183: 375633.38 | E183: 404191.36 | I183: 853008.7369 | K183: 8732220 | L183: 853008.7369 | M183: 853008.74 | O183: 791389.51
A184: 8732216 | B184: Ramsey Spinning Infant School | C184: 703587.9898 | D184: 703587.99 | E184: 849328.32 | I184: 730279.5681 | K184: 8732226 | L184: 730279.5681 | M184: 730279.57 | O184: 710823.34
A185: 8732218 | B185: Ramsey Junior School | C185: 912654.4979 | D185: 912654.5 | E185: 971650.23 | I185: 766014.4882 | K185: 8732252 | L185: 766014.4882 | M185: 766014.49 | O185: 721546.07
A186: 8732220 | B186: Sawtry Junior Academy | C186: 791389.5135 | D186: 791389.51 | E186: 853008.74 | I186: 1070786.677 | K186: 8732256 | L186: 1070786.677 | M186: 1070786.68 | O186: 1034177.82
A187: 8732226 | B187: Upwood Primary Academy | C187: 710823.3376 | D187: 710823.34 | E187: 730279.57 | I187: 811812.4986 | K187: 8732257 | L187: 811812.4986 | M187: 811812.5 | O187: 770754.3
A188: 8732252 | B188: Hartford Infant School | C188: 721546.0732 | D188: 721546.07 | E188: 766014.49 | I188: 1562610 | K188: 8732318 | L188: 1562610 | M188: 1562610 | O188: 1308177.41
A189: 8732257 | B189: Middlefield Primary Academy | C189: 770754.2971 | D189: 770754.3 | E189: 811812.5 | I189: 1242677 | K189: 8732319 | L189: 1242677 | M189: 1242677 | O189: 1119788.46
A190: 8732318 | B190: Histon and Impington Junior School | C190: 1308177.408 | D190: 1308177.41 | E190: 1562610 | I190: 1266210.254 | K190: 8732447 | L190: 1266210.254 | M190: 1266210.25 | O190: 1076613.2
A191: 8732319 | B191: Histon and Impington Infant School | C191: 1119788.457 | D191: 1119788.46 | E191: 1242677 | I191: 1553220.141 | K191: 8732448 | L191: 1553220.141 | M191: 1553220.14 | O191: 1526760.5
A192: 8732447 | B192: Millfield Primary School | C192: 1076613.201 | D192: 1076613.2 | E192: 1266210.25 | I192: 735507.0634 | K192: 8732451 | L192: 735507.0634 | M192: 735507.06 | O192: 741363.12
A193: 8732448 | B193: Glebelands Primary Academy | C193: 1526760.499 | D193: 1526760.5 | E193: 1553220.14 | I193: 424134.8897 | K193: 8733000 | L193: 424134.8897 | M193: 424134.89 | O193: 409354.22
A194: 8732451 | B194: Cromwell Academy | C194: 741363.1192 | D194: 741363.12 | E194: 735507.06 | I194: 780391 | K194: 8733002 | L194: 780391 | M194: 780391 | O194: 756246.09
A195: 8733000 | B195: Babraham CofE (VC) Primary School | C195: 409354.2174 | D195: 409354.22 | E195: 424134.89 | I195: 1428793 | K195: 8733026 | L195: 1428793 | M195: 1428793 | O195: 1342025.09
A196: 8733002 | B196: Bourn CofE Primary Academy | C196: 756246.0885 | D196: =ROUND(C196,2) -> 756246.09 | E196: =VLOOKUP(A196,$K$3:$M$246,3,FALSE) -> 780391 | I196: 442785.477 | K196: 8733037 | L196: 442785.477 | M196: =ROUND(L196,2) -> 442785.48 | O196: =VLOOKUP(K196,$A$3:$D$246,4,FALSE) -> 418749.3
A197: 8733026 | B197: Milton Church of England Primary School | C197: 1342025.091 | D197: 1342025.09 | E197: 1428793 | I197: 873720.9083 | K197: 8733046 | L197: 873720.9083 | M197: 873720.91 | O197: 852577.34
A198: 8733046 | B198: Elm CofE Primary School | C198: 852577.3421 | D198: 852577.34 | E198: 873720.91 | I198: 401861.1632 | K198: 8733056 | L198: 401861.1632 | M198: 401861.16 | O198: 396417
A199: 8733056 | B199: Guyhirn CofE VC Primary School | C199: 396417.0013 | D199: 396417 | E199: 401861.16 | I199: 1159116 | K199: 8733063 | L199: 1159116 | M199: 1159116 | O199: 998099.67
A200: 8733063 | B200: Buckden CofE Primary School | C200: 998099.6705 | D200: 998099.67 | E200: 1159116 | I200: 476349.6012 | K200: 8733070 | L200: 476349.6012 | M200: 476349.6 | O200: 461742.39
... 46 more rows

Sheet Unreconciled Items (hidden)

Sheet Accruals - Liabilities (hidden)
A1: School: | H1: Notes on completion of form (completed during calendar month March)
H2: Please enter all of your 25/26 Accruals journals as a "Normal Journal" in period 12 of 25/26 in the format shown in grey in this form.
A3: Total of all Accruals below | D3: =SUM(D11:D26)+SUM(D32:D47) -> 0 | H3: Enter figures on this sheet as positives
A4: Accruals on balance sheet | F4: This MUST be a credit figure on balance sheet (Againts code ACCRUE) | H4: You will then need to reverse them by entering the opposite journal entries into period 1 of 26/27 as a "Normal Journal". After entering the journal into period 1 of 26/27, please check your ACCRUE code is zero.
A5: Difference | D5: =D3+D4 -> 0 | F5: The breakdown below must match the total accruals journals (ACCRUE on balance sheet)
A6: =IF(D5>0,"CHECK ENTRIES BELOW MATCH EXAMPLE AND INSTRUCTIONS TO THE RIGHT. THE DETAILS ON THIS TAB SHOULD MATCH WHAT HAS BEEN ENTERED ON YOUR JOURNAL ",IF(D5<0,"CHECK ENTRIES BELOW MATCH EXAMPLE AND INSTRUCTIONS TO THE RIGHT.THE DETAILS ON THIS TAB SHOULD MATCH WHAT HAS BEEN ENTERED ON YOUR JOURNAL","")) ->  | H6: PLEASE DO NOT ACCRUE FOR CCC TRANSACTIONS
A7: YEAR END RESERVE - ACCRUALS (PAYABLES) 2025/26 (ALSO KNOWN AS CREDITORS)
F8: PURPOSE: TO PUT THE EXPENSE INTO THE CORRECT FINANCIAL YEAR
A9: Ledger Code (inc. Fund number) | B9: Is Ledger Code Correct? | C9: Cost Centre | D9: Amount £/p Excluding VAT | E9: Has the Purchase invoice/Expense already been entered in the Financial Year 25/26? Please add Yes or No to the below | F9: Supplier name and description of goods/services and invoice number where known | H9: Form to be used for EXPENDITURE only eg: an order has been raised and goods received but the school has not yet been invoiced.
A10: eg 14013500-01 | B10: If No, please discuss with SSCT | C10: cc 111GEN | D10: eg 2,510.53 | E10: If the answer is Yes - this should not be included in this section | F10: eg ESPO - Furniture for classroom received 28th March 2026 - inv 1234, invoice not entered in Financial Year 2025/26 (will be entered in FY 26/27)
B11: =_xlfn.IFNA(VLOOKUP(A11,'SBS Codes'!A:E,5,FALSE),"NO") -> . | H11: 25/26 Journal format
B12: =_xlfn.IFNA(VLOOKUP(A12,'SBS Codes'!A:E,5,FALSE),"NO") -> . | H12: Debit - Expenditure code
B13: =_xlfn.IFNA(VLOOKUP(A13,'SBS Codes'!A:E,5,FALSE),"NO") -> . | H13: Credit - Accruals (code ACCRUE)
B14: =_xlfn.IFNA(VLOOKUP(A14,'SBS Codes'!A:E,5,FALSE),"NO") -> .
B15: =_xlfn.IFNA(VLOOKUP(A15,'SBS Codes'!A:E,5,FALSE),"NO") -> . | H15: All goods must have been received by 31st March
B16: =_xlfn.IFNA(VLOOKUP(A16,'SBS Codes'!A:E,5,FALSE),"NO") -> . | H16: All of the columns should be completed, and figure must exactly match figure being reserved in the journal
B17: =_xlfn.IFNA(VLOOKUP(A17,'SBS Codes'!A:E,5,FALSE),"NO") -> .
B18: =_xlfn.IFNA(VLOOKUP(A18,'SBS Codes'!A:E,5,FALSE),"NO") -> . | H18: All year end Accruals and Prepayment manual journals need to be ‘reversed’ in period 1 of the new financial year, in this case 2026/27. You need to enter an opposing journal into period 1 of 2026/27 to do this, please do not delete your original journal. When entering into your financial system, please match the format examples shown in grey on this tab
B19: =_xlfn.IFNA(VLOOKUP(A19,'SBS Codes'!A:E,5,FALSE),"NO") -> .
B20: =_xlfn.IFNA(VLOOKUP(A20,'SBS Codes'!A:E,5,FALSE),"NO") -> .
B21: =_xlfn.IFNA(VLOOKUP(A21,'SBS Codes'!A:E,5,FALSE),"NO") -> .
B22: =_xlfn.IFNA(VLOOKUP(A22,'SBS Codes'!A:E,5,FALSE),"NO") -> . | H22: Journals to be completed in period 1 of the financial year 26/27:
B23: =_xlfn.IFNA(VLOOKUP(A23,'SBS Codes'!A:E,5,FALSE),"NO") -> . | H23: Credit - Expenditure Code
B24: =_xlfn.IFNA(VLOOKUP(A24,'SBS Codes'!A:E,5,FALSE),"NO") -> . | H24: Debit - Accruals (Code ACCRUE)
B25: =_xlfn.IFNA(VLOOKUP(A25,'SBS Codes'!A:E,5,FALSE),"NO") -> . | H25: PLEASE DO NOT ACCRUE FOR CCC TRANSACTIONS
B26: =_xlfn.IFNA(VLOOKUP(A26,'SBS Codes'!A:E,5,FALSE),"NO") -> .
A27: School:
A28: YEAR END RESERVE - ACCRUALS (RECEIPTS IN ADVANCE) 2025/26 (ALSO KNOWN AS DEFERRED INCOME) | H28: Form to be used for RECEIPTS IN ADVANCE only eg: Income has been received for an event which relates to the following financial year.
F29: PURPOSE : TO PUT INCOME INTO THE CORRECT FINANCIAL YEAR | H29: Income ALREADY RECEIVED, BUT relating to a service that won't take place until after 31st March (eg school trips)
A30: Ledger Code (inc. Fund number) | B30: Is Ledger Code Correct? | C30: Cost Centre | D30: Amount £/p Excluding VAT | E30: Received Income/Entered Sales Invoice in FY 25/26 in Advance? Please answer: Yes or No | F30: Customer name and description of goods/services and inv/ref number where known | H30: 25/26 Journal format
A31: eg 65086238-01 | B31: If No, please discuss with SSCT | C31: cc 111GEN | D31: eg 2,754.23 | E31: Have you Received Income/Entered Sales Invoice in FY 25/26 in advance (for Activity in the next financial year)? | F31: eg- Income for School Trip (Entered in Financial Year 25/26), relating to Trip to Upware in July 2026 - Class 2B (26 pupils) | H31: Debit - Income code Credit - Accruals (Code ACCRUE)
B32: =_xlfn.IFNA(VLOOKUP(A32,'SBS Codes'!G:K,5,FALSE),"NO") -> .
B33: =_xlfn.IFNA(VLOOKUP(A33,'SBS Codes'!G:K,5,FALSE),"NO") -> . | H33: All of the columns should be completed, and figure must exactly match figure being reserved in the journal
B34: =_xlfn.IFNA(VLOOKUP(A34,'SBS Codes'!G:K,5,FALSE),"NO") -> .
B35: =_xlfn.IFNA(VLOOKUP(A35,'SBS Codes'!G:K,5,FALSE),"NO") -> . | H35: All year end Accruals and Prepayment manual journals need to be ‘reversed’ in period 1 of the new financial year, in this case 2026/27. You need to enter an opposing journal into period 1 of 2026/27 to do this, please do not delete your original journal. When entering into your financial system, please match the format examples shown in grey on this tab
B36: =_xlfn.IFNA(VLOOKUP(A36,'SBS Codes'!G:K,5,FALSE),"NO") -> .
B37: =_xlfn.IFNA(VLOOKUP(A37,'SBS Codes'!G:K,5,FALSE),"NO") -> .
B38: =_xlfn.IFNA(VLOOKUP(A38,'SBS Codes'!G:K,5,FALSE),"NO") -> .
B39: =_xlfn.IFNA(VLOOKUP(A39,'SBS Codes'!G:K,5,FALSE),"NO") -> . | H39: Journals to be completed in period 1 of the financial year 26/27:
B40: =_xlfn.IFNA(VLOOKUP(A40,'SBS Codes'!G:K,5,FALSE),"NO") -> . | H40: Credit - Income Code
B41: =_xlfn.IFNA(VLOOKUP(A41,'SBS Codes'!G:K,5,FALSE),"NO") -> . | H41: Debit - Accruals (Code ACCRUE)
B42: =_xlfn.IFNA(VLOOKUP(A42,'SBS Codes'!G:K,5,FALSE),"NO") -> . | H42: PLEASE DO NOT ACCRUE FOR CCC TRANSACTIONS
B43: =_xlfn.IFNA(VLOOKUP(A43,'SBS Codes'!G:K,5,FALSE),"NO") -> .
B44: =_xlfn.IFNA(VLOOKUP(A44,'SBS Codes'!G:K,5,FALSE),"NO") -> .
B45: =_xlfn.IFNA(VLOOKUP(A45,'SBS Codes'!G:K,5,FALSE),"NO") -> .
B46: =_xlfn.IFNA(VLOOKUP(A46,'SBS Codes'!G:K,5,FALSE),"NO") -> .
B47: =_xlfn.IFNA(VLOOKUP(A47,'SBS Codes'!G:K,5,FALSE),"NO") -> .
H48: After entering the journals into 26/27, please check your ACCRUE code is zero.

Sheet Prepayments - Assets (hidden)
A1: School: | H1: Notes on completion of form (completed during calendar month March)
H2: Please enter all of your 25/26 Prepayment journals as a "Normal Journal" in period 12 of 25/26 in the format shown in grey in this form.
A3: Total of all Prepayments below | D3: =SUM(D11:D29)+SUM(D36:D51) -> 0 | H3: Enter figures on this sheet as positives
A4: Prepayments on balance sheet | F4: This MUST be a debit figure on balance sheet (Against code PREPAY) | H4: You will then need to reverse them by entering the opposite journal entries into period 1 of 26/27 as a "Normal Journal". After entering the journal into period 1 of 26/27, please check your PREPAY code is zero.
A5: Difference | D5: =D3-D4 -> 0 | F5: The breakdown below must match the total prepayments journals (PREPAY on balance sheet)
A6: =IF(D5>0,"CHECK ENTRIES BELOW MATCH EXAMPLE AND INSTRUCTIONS TO THE RIGHT. THE DETAILS ON THIS TAB SHOULD MATCH WHAT HAS BEEN ENTERED ON YOUR JOURNAL ",IF(D5<0,"CHECK ENTRIES BELOW MATCH EXAMPLE AND INSTRUCTIONS TO THE RIGHT.THE DETAILS ON THIS TAB SHOULD MATCH WHAT HAS BEEN ENTERED ON YOUR JOURNAL","")) ->  | H6: PLEASE DO NOT ACCRUE FOR CCC TRANSACTIONS
A7: YEAR END RESERVE - PREPAYMENTS (RECEIVABLES) 2025/26 (ALSO KNOWN AS DEBTORS OR ACCRUED INCOME)
A8: PURPOSE :TO PUT INCOME INTO THE CORRECT FINANCIAL YEAR
A9: Ledger Code (inc. Fund number) | B9: Is Ledger Code Correct? | C9: Cost Centre | D9: Amount £/p Excluding VAT | E9: Has the Sales invoice/Income already been entered in the Financial Year 25/26? Please add Yes or No to the below | F9: Customer name and description of goods/services and inv/ref number where known | H9: Form to be used for INCOME DUE BUT NOT YET RECEIVED eg:
A10: eg 63586700-01 | B10: If No, please discuss with SSCT | C10: eg cc 111GEN | D10: eg £2,800.50 | E10: If the answer is Yes - this should not be included on here | F10: eg Faraway Tennis Club - Hire of hall - Oct 25 - Mar 26 (20 sessions) inv 456 - invoice entered in Financial Year 26/27 | H10: outstanding lettings / any other amounts usually received directly
B11: =_xlfn.IFNA(VLOOKUP(A11,'SBS Codes'!G:K,5,FALSE),"NO") -> .
B12: =_xlfn.IFNA(VLOOKUP(A12,'SBS Codes'!G:K,5,FALSE),"NO") -> . | H12: 25/26 Journal format
B13: =_xlfn.IFNA(VLOOKUP(A13,'SBS Codes'!G:K,5,FALSE),"NO") -> . | H13: Credit - Income code
B14: =_xlfn.IFNA(VLOOKUP(A14,'SBS Codes'!G:K,5,FALSE),"NO") -> . | H14: Debit - Prepayment code (Code PREPAY)
B15: =_xlfn.IFNA(VLOOKUP(A15,'SBS Codes'!G:K,5,FALSE),"NO") -> . | H15: All income must have been due on or before 31st March
B16: =_xlfn.IFNA(VLOOKUP(A16,'SBS Codes'!G:K,5,FALSE),"NO") -> . | H16: All columns MUST be completed, and figure must exactly match figure being reserved in the journal
B17: =_xlfn.IFNA(VLOOKUP(A17,'SBS Codes'!G:K,5,FALSE),"NO") -> . | H17: If you have used Accounts receivable (AR) to raise the invoices already, there is no need to raise a Prepayments (Receivables)
B18: =_xlfn.IFNA(VLOOKUP(A18,'SBS Codes'!G:K,5,FALSE),"NO") -> .
B19: =_xlfn.IFNA(VLOOKUP(A19,'SBS Codes'!G:K,5,FALSE),"NO") -> . | H19: All year end Accruals and Prepayment manual journals need to be ‘reversed’ in period 1 of the new financial year, in this case 2026/27. You need to enter an opposing journal into period 1 of 2026/27 to do this, please do not delete your original journal. When entering into your financial system, please match the format examples shown in grey on this tab
B20: =_xlfn.IFNA(VLOOKUP(A20,'SBS Codes'!G:K,5,FALSE),"NO") -> . | H20: Journals to be completed in period 1 of the financial year 26/27:
B21: =_xlfn.IFNA(VLOOKUP(A21,'SBS Codes'!G:K,5,FALSE),"NO") -> . | H21: Debit - Income Code
B22: =_xlfn.IFNA(VLOOKUP(A22,'SBS Codes'!G:K,5,FALSE),"NO") -> . | H22: Credit - Prepayment Code (Code PREPAY)
B23: =_xlfn.IFNA(VLOOKUP(A23,'SBS Codes'!G:K,5,FALSE),"NO") -> .
B24: =_xlfn.IFNA(VLOOKUP(A24,'SBS Codes'!G:K,5,FALSE),"NO") -> . | H24: PLEASE DO NOT ACCRUE FOR CCC TRANSACTIONS
B25: =_xlfn.IFNA(VLOOKUP(A25,'SBS Codes'!G:K,5,FALSE),"NO") -> .
B26: =_xlfn.IFNA(VLOOKUP(A26,'SBS Codes'!G:K,5,FALSE),"NO") -> .
B27: =_xlfn.IFNA(VLOOKUP(A27,'SBS Codes'!G:K,5,FALSE),"NO") -> .
B28: =_xlfn.IFNA(VLOOKUP(A28,'SBS Codes'!G:K,5,FALSE),"NO") -> .
B29: =_xlfn.IFNA(VLOOKUP(A29,'SBS Codes'!G:K,5,FALSE),"NO") -> .
A31: School:
A32: YEAR END RESERVE - PREPAYMENTS (PAYMENTS IN ADVANCE) 2025/26 | H32: =IF(D5>2,"CHECK ENTRIES ON LEFT MATCH EXAMPLE AND INSTRUCTIONS BELOW",IF(D5<-2,"CHECK ENTRIES ON LEFT MATCH EXAMPLE AND INSTRUCTIONS BELOW","")) -> 
A33: PURPOSE: TO PUT THE EXPENSE INTO THE CORRECT FINANCIAL YEAR
A34: Ledger Code (inc. Fund number) | B34: Is Ledger Code Correct? | C34: Cost Centre | D34: Amount £/p Excluding VAT | E34: Has Purchase invoice/payment been entered in FY 25/26 for goods/services in advance for next finanical year? Please answer: Yes or No | F34: Supplier name and description of goods/services and invoice number where known | H34: Form to be used for PAYMENTS IN ADVANCE only eg:
A35: eg 42537223-01 | B35: If No, please discuss with SSCT | C35: eg cc 111GEN | D35: eg £2,650.25 | E35: If no, this should not be entered below | F35: eg Payment by school in Financial Year 25/26 to provider of Trip to Upware - taking place July 2026 - Class 2B (26 pupils) | H35: deposits paid for educational visits happening during the following financial year
B36: =_xlfn.IFNA(VLOOKUP(A36,'SBS Codes'!A:E,5,FALSE),"NO") -> .
B37: =_xlfn.IFNA(VLOOKUP(A37,'SBS Codes'!A:E,5,FALSE),"NO") -> . | H37: 25/26 Journal format
B38: =_xlfn.IFNA(VLOOKUP(A38,'SBS Codes'!A:E,5,FALSE),"NO") -> . | H38: Credit - Expenditure code
B39: =_xlfn.IFNA(VLOOKUP(A39,'SBS Codes'!A:E,5,FALSE),"NO") -> . | H39: Debit - Prepayment code (Code PREPAY)
B40: =_xlfn.IFNA(VLOOKUP(A40,'SBS Codes'!A:E,5,FALSE),"NO") -> .
B41: =_xlfn.IFNA(VLOOKUP(A41,'SBS Codes'!A:E,5,FALSE),"NO") -> . | H41: All goods or services relate to the new financial year
B42: =_xlfn.IFNA(VLOOKUP(A42,'SBS Codes'!A:E,5,FALSE),"NO") -> . | H42: All columns MUST be completed, and figure must exactly match figure being reserved in the journal
B43: =_xlfn.IFNA(VLOOKUP(A43,'SBS Codes'!A:E,5,FALSE),"NO") -> . | H43: All year end Accruals and Prepayment manual journals need to be ‘reversed’ in period 1 of the new financial year, in this case 2026/27. You need to enter an opposing journal into period 1 of 2026/27 to do this, please do not delete your original journal. When entering into your financial system, please match the format examples shown in grey on this tab
B44: =_xlfn.IFNA(VLOOKUP(A44,'SBS Codes'!A:E,5,FALSE),"NO") -> .
B45: =_xlfn.IFNA(VLOOKUP(A45,'SBS Codes'!A:E,5,FALSE),"NO") -> .
B46: =_xlfn.IFNA(VLOOKUP(A46,'SBS Codes'!A:E,5,FALSE),"NO") -> .
B47: =_xlfn.IFNA(VLOOKUP(A47,'SBS Codes'!A:E,5,FALSE),"NO") -> . | H47: Journals to be completed in period 1 of the financial year 26/27:
B48: =_xlfn.IFNA(VLOOKUP(A48,'SBS Codes'!A:E,5,FALSE),"NO") -> . | H48: Debit - Expenditure Code
B49: =_xlfn.IFNA(VLOOKUP(A49,'SBS Codes'!A:E,5,FALSE),"NO") -> . | H49: Credit - Prepayment Code (Code PREPAY)
B50: =_xlfn.IFNA(VLOOKUP(A50,'SBS Codes'!A:E,5,FALSE),"NO") -> . | H50: PLEASE DO NOT ACCRUE FOR CCC TRANSACTIONS
B51: =_xlfn.IFNA(VLOOKUP(A51,'SBS Codes'!A:E,5,FALSE),"NO") -> .
H53: After entering the journals into 26/27, please check your PREPAY code is zero.

Sheet SBS Codes (hidden)
A1: OK FOR ACCRUALS (PAYABLES) 2024/25 & PREPAYMENTS (PAYMENTS IN ADVANCE) | G1: OK FOR ACCRUALS (RECEIPTS IN ADVANCE) 2024/25 & PREPAYMENTS (RECEIVABLES) | K1: Correct code? | M1: Shouldn’t have accruals or prepayments entered against these codes
A2: Code | B2: Type | C2: Description | D2: CFRCode | E2: Correct Code? | G2: 65081001-05 | H2: Budget | I2: MLEI Income | J2: CI01 | K2: Yes | M2: 47570600-01 | N2: Budget | O2: Contributions to Reserves | P2: ZZZ
A3: 11010100-04 | B3: Budget | C3: Building Maintenance | D3: CE02 | E3: Yes | G3: 35281103-05 | H3: Budget | I3: PTA Donation - Capital | J3: CI03 | K3: Yes | M3: 47570600-02 | N3: Budget | O3: Contributions to Reserves - Fund 02 | P3: ZZZ
A4: 11010100-05 | B4: Budget | C4: Building Maintenance | D4: CE02 | E4: Yes | G4: 65081000-05 | H4: Budget | I4: Miscellaneous Income | J4: CI03 | K4: Yes | M4: 47570600-04 | N4: Budget | O4: Contribution to Reserves - Fund04 | P4: ZZZ
A5: 11010100-06 | B5: Budget | C5: Building Maintenance | D5: CE02 | E5: Yes | G5: 65081105-05 | H5: Budget | I5: Miscellaneous Donations | J5: CI03 | K5: Yes | M5: 47570600-08 | N5: Budget | O5: Contributions to Reserves FUND 08 | P5: ZZZ
A6: 11010100-18 | B6: Budget | C6: Building Maintenance | D6: CE02 | E6: Yes | G6: 47570500-18 | H6: Budget | I6: Revenue Cont' to Capital (Inc) | J6: CI04 | K6: Yes | M6: 47570600-24 | N6: Budget | O6: Contributions to Reserves - Fund 24 | P6: ZZZ
A7: 11010110-04 | B7: Budget | C7: Structural Maintenance | D7: CE02 | E7: Yes | G7: 65080701-01 | H7: Budget | I7: Extended Schools Funding | J7: I01 | K7: Yes | M7: 47570700-01 | N7: Budget | O7: Unallocated | P7: ZZZ
A8: 11010110-05 | B8: Budget | C8: Structural Maintenance | D8: CE02 | E8: Yes | G8: 65080701-02 | H8: Budget | I8: Extended Schools Funding | J8: I01 | K8: Yes | M8: 47570750-01 | N8: Budget | O8: Contingency Fund | P8: ZZZ
A9: 11010120-04 | B9: Budget | C9: Non-Structural Maint | D9: CE02 | E9: Yes | G9: 67094034-01 | H9: Budget | I9: Rates - Billing Authority Income | J9: I01 | K9: Yes | M9: 47570750-24 | N9: Budget | O9: Contingency Fund | P9: ZZZ
A10: 11010120-05 | B10: Budget | C10: Non-Structural Maint | D10: CE02 | E10: Yes | G10: 67094034-02 | H10: Budget | I10: Rates - Billing Authority income | J10: I01 | K10: Yes | M10: CFWD-23 | N10: Budget | O10: Credit Carry Forward - Banker School | P10: ZZZ
A11: 11011500-04 | B11: Budget | C11: Building Alterations | D11: CE02 | E11: Yes | G11: 67094034-08 | H11: Budget | I11: Rates - Billing Authority Income | J11: I01 | K11: Yes | M11: DFCT-21 | N11: Budget | O11: Carry Forward (Deficit) | P11: ZZZ
A12: 11011500-05 | B12: Budget | C12: Building Alterations | D12: CE02 | E12: Yes | G12: FNDX-01 | H12: Budget | I12: Extra Funding | J12: I01 | K12: Yes | M12: DFCT-23 | N12: Budget | O12: Carry Forward (Deficit) | P12: ZZZ
A13: 11011500-06 | B13: Budget | C13: Building Alterations | D13: CE02 | E13: Yes | G13: FNDX-02 | H13: Budget | I13: Extra Funding | J13: I01 | K13: Yes | M13: ROUNDING | N13: Budget | O13: Rounding | P13: ZZZ
A14: 11011500-18 | B14: Budget | C14: Building Alterations | D14: CE02 | E14: Yes | G14: FNDX1-01 | H14: Budget | I14: Extra Funding | J14: I01 | K14: Yes | M14: SUSPENSE-01 | N14: Budget | O14: SUSPENSE-01 | P14: ZZZ
A15: 20030200-04 | B15: Budget | C15: Educational Furniture | D15: CE02 | E15: Yes | G15: FND6FM-01 | H15: Budget | I15: 6th Form Element of Formula Fund | J15: I02 | K15: Yes | M15: 47570731-02 | N15: Non-Budget | O15: Proposed Budget Deficit v2
A16: 20030200-05 | B16: Budget | C16: Educational Furniture | D16: CE02 | E16: Yes | G16: FND6FM-02 | H16: Budget | I16: 6th Form Element of Formula Fund | J16: I02 | K16: Yes | M16: ACCINT | N16: Non-Budget | O16: ACCINT
A17: 20030200-06 | B17: Budget | C17: Educational Furniture | D17: CE02 | E17: Yes | G17: FNDSEN-01 | H17: Budget | I17: High Needs Funding (SEN) | J17: I03 | K17: Yes | M17: ACCRUE | N17: Non-Budget | O17: Accruals
A18: 20030200-18 | B18: Budget | C18: Educational Furniture | D18: CE02 | E18: Yes | G18: FNDSEN-02 | H18: Budget | I18: High Needs Funding (SEN) | J18: I03 | K18: Yes | M18: BANKNW | N18: Non-Budget | O18: Bank & Petty Cash
A19: 42530200-04 | B19: Budget | C19: Furniture and Fittings | D19: CE03 | E19: Yes | G19: FNDSEN-24 | H19: Budget | I19: Community SEN | J19: I03 | K19: Yes | M19: BankNW | N19: Non-Budget | O19: Bank
A20: 42530200-05 | B20: Budget | C20: Furniture and Fittings | D20: CE03 | E20: Yes | G20: FNDPP-01 | H20: Budget | I20: Pupil Premium Funding | J20: I05 | K20: Yes | M20: CARD | N20: Non-Budget | O20: Credit Card
A21: 42530200-06 | B21: Budget | C21: Furniture and Fittings | D21: CE03 | E21: Yes | G21: FNDPP-02 | H21: Budget | I21: Pupil Premium Funding | J21: I05 | K21: Yes | M21: CCCCFA | N21: Non-Budget | O21: Cashflow Advance
A22: 42530200-18 | B22: Budget | C22: Furniture and Fittings | D22: CE03 | E22: Yes | G22: 60680700-01 | H22: Budget | I22: Other Grants (Govt related) | J22: I06 | K22: Yes | M22: CCCloan | N22: Non-Budget | O22: Cashflow Loan
A23: 42530201-05 | B23: Budget | C23: Vehicle Purchase | D23: CE03 | E23: Yes | G23: 60680700-02 | H23: Budget | I23: Other Grants (Govt related) | J23: I06 | K23: Yes | M23: CCCLOAN | N23: Non-Budget | O23: Cash flow Loan
A24: 38036062-04 | B24: Budget | C24: Capital Connectivity | D24: CE04A | E24: Yes | G24: 60680700-24 | H24: Budget | I24: Other Government Grants (FUND 24) | J24: I06 | K24: Yes | M24: CCLOAN | N24: Non-Budget | O24: CC Loan
A25: 38036062-05 | B25: Budget | C25: Capital Connectivity | D25: CE04A | E25: Yes | G25: 62582000-01 | H25: Budget | I25: Contributions From Other LA's | J25: I07 | K25: Yes | M25: CREDIT | N25: Non-Budget | O25: Creditor Control Account
A26: 38036062-06 | B26: Budget | C26: Capital Connectivity | D26: CE04A | E26: Yes | G26: 62582000-02 | H26: Budget | I26: Contributions From Other LA's | J26: I07 | K26: Yes | M26: DE1 | N26: Non-Budget | O26: Debtor Control Account.
A27: 38036062-18 | B27: Budget | C27: Capital Connectivity | D27: CE04A | E27: Yes | G27: 65080700-01 | H27: Budget | I27: Other Grants | J27: I07 | K27: Yes | M27: DEBT | N27: Non-Budget | O27: Debtor Control Account
A28: 38036065-04 | B28: Budget | C28: Capital Onsite Servers | D28: CE04B | E28: Yes | G28: 65080700-02 | H28: Budget | I28: Other Grants | J28: I07 | K28: Yes | M28: DENW1 | N28: Non-Budget | O28: Debtor External Nat West 1
A29: 38036065-05 | B29: Budget | C29: Capital Onsite Servers | D29: CE04B | E29: Yes | G29: 67090330-01 | H29: Budget | I29: Recharges Cafe | J29: I07 | K29: Yes | M29: DENW2 | N29: Non-Budget | O29: Debitor external Natwest2
A30: 38036065-06 | B30: Budget | C30: Capital Onsite Servers | D30: CE04B | E30: Yes | G30: 63586700-01 | H30: Budget | I30: Lettings | J30: I08A | K30: Yes | M30: ELECVAT | N30: Non-Budget | O30: 5% VAT
A31: 38036065-18 | B31: Budget | C31: Capital Onsite Servers | D31: CE04B | E31: Yes | G31: 63586700-02 | H31: Budget | I31: Lettings | J31: I08A | K31: Yes | M31: FBPC2 | N31: Non-Budget | O31: Petty Cash
A32: 38036066-04 | B32: Budget | C32: Capital Admin Software & Systems | D32: CE04C | E32: Yes | G32: 08086238-01 | H32: Budget | I32: Breakfast/After School Club Income | J32: I08B | K32: Yes | M32: Liability Sur | N32: Non-Budget | O32: Liability Surcharge
A33: 38036066-05 | B33: Budget | C33: Capital Admin Software & Systems | D33: CE04C | E33: Yes | G33: 08086238-02 | H33: Budget | I33: Breakfast/After School Club Income | J33: I08B | K33: Yes | M33: MAIN | N33: Non-Budget | O33: Main school bank account
A34: 38036066-06 | B34: Budget | C34: Capital Admin Software & Systems | D34: CE04C | E34: Yes | G34: 30984800-01 | H34: Budget | I34: School Council Sales | J34: I08B | K34: Yes | M34: Payrol | N34: Non-Budget | O34: Payroll Control Account
A35: 38036066-18 | B35: Budget | C35: Capital Admin Software & Systems | D35: CE04C | E35: Yes | G35: 30984800-02 | H35: Budget | I35: School Council Sales | J35: I08B | K35: Yes | M35: PAYROL | N35: Non-Budget | O35: Payroll Control Account
A36: 38036060-04 | B36: Budget | C36: Computer Hardware | D36: CE04D | E36: Yes | G36: 35084800-01 | H36: Budget | I36: Uniform Sales | J36: I08B | K36: Yes | M36: PAYROL2 | N36: Non-Budget | O36: Payrol2
A37: 38036060-05 | B37: Budget | C37: Computers for ICT | D37: CE04D | E37: Yes | G37: 35084800-02 | H37: Budget | I37: Uniform Sales | J37: I08B | K37: Yes | M37: PAYROLL | N37: Non-Budget | O37: Payroll Control Account
A38: 38036060-06 | B38: Budget | C38: Computer Hardware | D38: CE04D | E38: Yes | G38: 40084502-01 | H38: Budget | I38: Income - Photocopying | J38: I08B | K38: Yes | M38: PC | N38: Non-Budget | O38: Petty Cash.
A39: 38036060-18 | B39: Budget | C39: Computer Hardware | D39: CE04D | E39: Yes | G39: 40084502-02 | H39: Budget | I39: Income - Photocopying | J39: I08B | K39: Yes | M39: PCARD | N39: Non-Budget | O39: Purchase Card Account
A40: 38036067-04 | B40: Budget | C40: Capital IT Hardware | D40: CE04D | E40: Yes | G40: 40086509-01 | H40: Budget | I40: Income - Telephone Calls | J40: I08B | K40: Yes | M40: PCASH | N40: Non-Budget | O40: PCASH
A41: 38036067-05 | B41: Budget | C41: Capital IT Hardware | D41: CE04D | E41: Yes | G41: 40086509-02 | H41: Budget | I41: Income - Telephone Calls | J41: I08B | K41: Yes | M41: PREPAY | N41: Non-Budget | O41: Prepayments
A42: 38036067-06 | B42: Budget | C42: Capital IT Hardware | D42: CE04D | E42: Yes | G42: 62085020-01 | H42: Budget | I42: Bank Interest | J42: I08B | K42: Yes | M42: RED | N42: Non-Budget | O42: Reduced Rate
A43: 38036067-18 | B43: Budget | C43: Capital IT Hardware | D43: CE04D | E43: Yes | G43: 62085020-02 | H43: Budget | I43: Bank Interest | J43: I08B | K43: Yes | M43: SCRED | N43: Non-Budget | O43: Sundry Creditor
A44: 38036068-04 | B44: Budget | C44: Capital Other Hardware | D44: CE04E | E44: Yes | G44: 63086000-01 | H44: Budget | I44: Casual Charges | J44: I08B | K44: Yes | M44: SDEBT | N44: Non-Budget | O44: Sundry Debtor
A45: 38036068-05 | B45: Budget | C45: Capital Other Hardware | D45: CE04E | E45: Yes | G45: 63086000-02 | H45: Budget | I45: Casual Charges | J45: I08B | K45: Yes | M45: SURCHARG | N45: Non-Budget | O45: Payment Systems Surcharges
A46: 38036068-06 | B46: Budget | C46: Capital Other Hardware | D46: CE04E | E46: Yes | G46: 63086041-01 | H46: Budget | I46: Workplace Nursery Fees | J46: I08B | K46: Yes | M46: VAT | N46: Non-Budget | O46: VAT
A47: 38036068-18 | B47: Budget | C47: Capital Other Hardware | D47: CE04E | E47: Yes | G47: 63086041-02 | H47: Budget | I47: Workplace Nursery Fees | J47: I08B | K47: Yes | M47: VAT Input | N47: Non-Budget | O47: VAT Input
A48: 09008502-01 | B48: Budget | C48: Childcare Vouchers | D48: E08 | E48: Yes | G48: 63586702-01 | H48: Budget | I48: Caretaker House Rental - Fund 01 | J48: I08B | K48: Yes | M48: VAT Output | N48: Non-Budget | O48: VAT Output
A49: 09008502-02 | B49: Budget | C49: Childcare Vouchers | D49: E08 | E49: Yes | G49: 63586702-02 | H49: Budget | I49: Caretaker House Rental - Fund 02 | J49: I08B | K49: Yes | M49: VAT5 | N49: Non-Budget | O49: VAT 5%
A50: 09009000-01 | B50: Budget | C50: Redundancy & Compromise | D50: E08 | E50: Yes | G50: 63588000-01 | H50: Budget | I50: Rent Under Leases | J50: I08B | K50: Yes | M50: VATFUEL | N50: Non-Budget | O50: VAT FOR FUEL
A51: 09009000-02 | B51: Budget | C51: Redundancy & Compromise | D51: E08 | E51: Yes | G51: 63588000-02 | H51: Budget | I51: Rent Under Leases | J51: I08B | K51: Yes | M51: VATFUEL5 | N51: Non-Budget | O51: VAT Fuel 5%
A52: 09009612-01 | B52: Budget | C52: Eye Tests and Glasses Contribution | D52: E08 | E52: Yes | G52: 65081000-01 | H52: Budget | I52: Miscellaneous Income | J52: I08B | K52: Yes | M52: VATOWED | N52: Non-Budget | O52: VAT Owed
A53: 09009612-02 | B53: Budget | C53: Eye Tests and Glasses Contribution | D53: E08 | E53: Yes | G53: 65081000-02 | H53: Budget | I53: Miscellaneous Income | J53: I08B | K53: Yes | M53: VENERGY | N53: Non-Budget | O53: Reduced Rate for energy
A54: 09009800-01 | B54: Budget | C54: Medical Fees - Pre-employment Occupational Health | D54: E08 | E54: Yes | G54: 65081002-01 | H54: Budget | I54: Childrens Centre Income | J54: I08B | K54: Yes | M54: VESPR5 | N54: Non-Budget | O54: 5% VAT rate (exp)
A55: 09009800-02 | B55: Budget | C55: Medical Fees - Pre-employment Occupational Health | D55: E08 | E55: Yes | G55: 65081002-02 | H55: Budget | I55: Childrens Centre income | J55: I08B | K55: Yes | M55: VEX5 | N55: Non-Budget | O55: Expanded VAT at 5%
A56: 09009801-01 | B56: Budget | C56: Recruitment Costs | D56: E08 | E56: Yes | G56: 67084008-01 | H56: Budget | I56: Income Generated from Solar Wind | J56: I08B | K56: Yes | M56: VEX8 | N56: Non-Budget | O56: Expanded VAT at 8%
A57: 09009801-02 | B57: Budget | C57: Recruitment Costs | D57: E08 | E57: Yes | G57: 67084008-02 | H57: Budget | I57: Income Generated from Solar Wind | J57: I08B | K57: Yes | M57: VEXDM | N57: Non-Budget | O57: VAT Domestic Rate(EXP)
A58: 09009803-01 | B58: Budget | C58: DBS Checks | D58: E08 | E58: Yes | G58: 68090330-01 | H58: Budget | I58: Recharge Community Premises | J58: I08B | K58: Yes | M58: VEXFR | N58: Non-Budget | O58: VAT Fuel Domestic Rate
A59: 09009803-02 | B59: Budget | C59: DBS Checks | D59: E08 | E59: Yes | G59: 68090330-02 | H59: Budget | I59: Recharge Community Premises | J59: I08B | K59: Yes | M59: VEXFU | N59: Non-Budget | O59: VAT 5%.
A60: 09021100-01 | B60: Budget | C60: Travel Allowances - Staff | D60: E08 | E60: Yes | G60: WRITEOFF-01 | H60: Budget | I60: Write off of Income Debts | J60: I08B | K60: Yes | M60: VEXP | N60: Non-Budget | O60: VAT EXP 5%
A61: 09021100-02 | B61: Budget | C61: Travel Allowances - Staff | D61: E08 | E61: Yes | G61: WRITEOFF-02 | H61: Budget | I61: Write off of Income Debts | J61: I08B | K61: Yes | M61: VEXP5 | N61: Non-Budget | O61: Reduced VAT rate EXP
A62: 09030401-01 | B62: Budget | C62: Laundry Services | D62: E08 | E62: Yes | G62: 09084300-01 | H62: Budget | I62: Income Adult Meal | J62: I09 | K62: Yes | M62: VEXP8 | N62: Non-Budget | O62: 8% Rate vat (EXP)
A63: 09030401-02 | B63: Budget | C63: Laundry Services | D63: E08 | E63: Yes | G63: 09084300-02 | H63: Budget | I63: Income Adult Meal | J63: I09 | K63: Yes | M63: VEXPA | N63: Non-Budget | O63: Reduced VAT rate (Exp)
A64: 09030402-01 | B64: Budget | C64: Staff Clothing - Uniform | D64: E08 | E64: Yes | G64: 41584300-01 | H64: Budget | I64: Income School Meals - Pupils | J64: I09 | K64: Yes | M64: VEXPC | N64: Non-Budget | O64: Reduced VAT 12.5%
A65: 09030402-02 | B65: Budget | C65: Staff Clothing - Uniform | D65: E08 | E65: Yes | G65: 41584300-02 | H65: Budget | I65: Income School Meals - Pupils | J65: I09 | K65: Yes | M65: VEXPF | N65: Non-Budget | O65: Reduced rate on Fuel
A66: 09032001-01 | B66: Budget | C66: Staff Subsistence Allowance | D66: E08 | E66: Yes | G66: 41584330-01 | H66: Budget | I66: Milk, Snacks and Fruit | J66: I09 | K66: Yes | M66: VEXPN | N66: Non-Budget | O66: Normal VAT rate (Exp)
A67: 09032001-02 | B67: Budget | C67: Staff Subsistence Allowance | D67: E08 | E67: Yes | G67: 41584330-02 | H67: Budget | I67: Milk, Snacks and Fruit | J67: I09 | K67: Yes | M67: VEXPR | N67: Non-Budget | O67: Reduced VAT rate (Exp)
A68: 09032004-01 | B68: Budget | C68: Meals for Staff & Adults | D68: E08 | E68: Yes | G68: DMREFUND-01 | H68: Budget | I68: Dinner Money Refunds | J68: I09 | K68: Yes | M68: VEXPS | N68: Non-Budget | O68: Standard rate VAT (exp)
A69: 09032004-02 | B69: Budget | C69: Meals for Staff & Adults | D69: E08 | E69: Yes | G69: DMREFUND-02 | H69: Budget | I69: Dinner Money Refunds | J69: I09 | K69: Yes | M69: VEXPT | N69: Non-Budget | O69: Expanded VAT Rate (Exp)
A70: 09044444-01 | B70: Budget | C70: Apprenticeship Levy | D70: E08 | E70: Yes | G70: 62707011-01 | H70: Budget | I70: Teachers Sickness Claims | J70: I10 | K70: Yes | M70: VEXPX | N70: Non-Budget | O70: Exempted VAT (Exp)
A71: 09044444-02 | B71: Budget | C71: Apprenticeship Levy | D71: E08 | E71: Yes | G71: 62707011-02 | H71: Budget | I71: Teachers Sickness Claims | J71: I10 | K71: Yes | M71: VEXPZ | N71: Non-Budget | O71: Zero Rated VAT (Exp)
A72: 09508000-01 | B72: Budget | C72: Staff Training and Development | D72: E09 | E72: Yes | G72: 62707013-01 | H72: Budget | I72: Maternity Insurance Claims | J72: I10 | K72: Yes | M72: VEXTF | N72: Non-Budget | O72: Reduced VAT rate fuel (exp)
A73: 09508000-02 | B73: Budget | C73: Staff Training and Development | D73: E09 | E73: Yes | G73: 62707013-02 | H73: Budget | I73: Maternity Insurance Claims | J73: I10 | K73: Yes | M73: VFLOAT | N73: Non-Budget | O73: VAT Float
A74: 01060003-01 | B74: Budget | C74: DEDEL Union / Maternity | D74: E10 | E74: Yes | G74: 62707012-01 | H74: Budget | I74: Non Teachers Sickness Claims | J74: I11 | K74: Yes | M74: VFloat | N74: Non-Budget | O74: VAT Float
A75: 01060003-02 | B75: Budget | C75: DEDEL Union/Maternity | D75: E10 | E75: Yes | G75: 62707012-02 | H75: Budget | I75: Non Teachers Sickness Claims | J75: I11 | K75: Yes | M75: VFUEL | N75: Non-Budget | O75: Vat 5%
A76: 09807013-01 | B76: Budget | C76: Insurance Premium Maternity | D76: E10 | E76: Yes | G76: 62783300-01 | H76: Budget | I76: Insurance Claims income | J76: I11 | K76: Yes | M76: VINCC | N76: Non-Budget | O76: 20% VAT
A77: 09807013-02 | B77: Budget | C77: Insurance Premium Maternity | D77: E10 | E77: Yes | G77: 62783300-02 | H77: Budget | I77: Insurance Claims income | J77: I11 | K77: Yes | M77: VINCI | N77: Non-Budget | O77: Expanded VAT rate (inc)
A78: 09807041-01 | B78: Budget | C78: Insurance Premium Teacher Absence | D78: E10 | E78: Yes | G78: 33086022-01 | H78: Budget | I78: Contribution to Educational Visits | J78: I12 | K78: Yes | M78: VINCL | N78: Non-Budget | O78: VAT 15% (income)
A79: 09807041-02 | B79: Budget | C79: Insurance Premium Teacher Absence | D79: E10 | E79: Yes | G79: 33086022-02 | H79: Budget | I79: Contribution to Ed. Visit | J79: I12 | K79: Yes | M79: VINCN | N79: Non-Budget | O79: Normal rate VAT (Inc)
A80: 09907042-01 | B80: Budget | C80: Insurance Premium Support Staff Absence | D80: E11 | E80: Yes | G80: 33086238-01 | H80: Budget | I80: Educational Visit Parental Contributions | J80: I12 | K80: Yes | M80: VINCR | N80: Non-Budget | O80: Reduced Rate VAT
A81: 09907042-02 | B81: Budget | C81: Insurance Prem Supp Staff Absence | D81: E11 | E81: Yes | G81: 33086238-02 | H81: Budget | I81: Ed Visits - Parental Contributions | J81: I12 | K81: Yes | M81: VINCS | N81: Non-Budget | O81: Standard rate VAT (inc)
A82: 11010100-01 | B82: Budget | C82: Building Maintenance | D82: E12 | E82: Yes | G82: 35086238-01 | H82: Budget | I82: Self Funded Act Parent Contribution | J82: I12 | K82: Yes | M82: VINCT | N82: Non-Budget | O82: Expanded Rate VAT (inc)
A83: 11010100-02 | B83: Budget | C83: Building Maintenance | D83: E12 | E83: Yes | G83: 35086238-02 | H83: Budget | I83: Self Funded Act Parent Contribution | J83: I12 | K83: Yes | M83: VINCZ | N83: Non-Budget | O83: Zero Rated VAT (inc)
A84: 11010110-01 | B84: Budget | C84: Structural Maintenance | D84: E12 | E84: Yes | G84: 36281105-01 | H84: Budget | I84: Donations - Swimming | J84: I12 | K84: Yes | M84: VINPR | N84: Non-Budget | O84: Reduced Rate VAT (inc)
A85: 11010110-02 | B85: Budget | C85: Structural Maintenance | D85: E12 | E85: Yes | G85: 36281105-02 | H85: Budget | I85: Donations - Swimming | J85: I12 | K85: Yes | M85: VRED | N85: Non-Budget | O85: VAT Fuel Reduced Rate 5%
A86: 11010120-01 | B86: Budget | C86: Non-Structural Maintenance | D86: E12 | E86: Yes | G86: 65086238-01 | H86: Budget | I86: Parental Contributions | J86: I12 | K86: Yes | M86: VREDUCED | N86: Non-Budget | O86: Reduced VAT Fuel
A87: 11010120-02 | B87: Budget | C87: Non-Structural Maintenance | D87: E12 | E87: Yes | G87: 65086238-02 | H87: Budget | I87: Parental Contributions | J87: I12 | K87: Yes | M87: VREFS | N87: Non-Budget | O87: VAT Refunds
A88: 11011500-01 | B88: Budget | C88: Building Alterations | D88: E12 | E88: Yes | G88: 35081102-01 | H88: Budget | I88: Self Funded Act - Pr Fnd Contributions | J88: I13 | K88: Yes | M88: 47570712-02 | N88: Budget | O88: Proposed Budget Deficit | P88: B01
A89: 11011500-02 | B89: Budget | C89: Building Alterations | D89: E12 | E89: Yes | G89: 35081102-02 | H89: Budget | I89: Self Funded Act - Pr Fnd contrib | J89: I13 | K89: Yes | M89: CFWD-01 | N89: Budget | O89: Carry Forward (Credit) | P89: B01
A90: 67064025-01 | B90: Budget | C90: Building Maintenance - Recharges Spend | D90: E12 | E90: Yes | G90: 35081103-01 | H90: Budget | I90: Self Funded Act - PTA Contributions | J90: I13 | K90: Yes | M90: CFWD-02 | N90: Budget | O90: Carry Forward (Credit) | P90: B01
A91: 67064025-02 | B91: Budget | C91: Building Maintenance - Recharges spend | D91: E12 | E91: Yes | G91: 35081103-02 | H91: Budget | I91: Self Funded Act - PTA Contrib | J91: I13 | K91: Yes | M91: DFCT-01 | N91: Budget | O91: Carry Forward (Deficit) | P91: B01
A92: 67094025-01 | B92: Budget | C92: Building Maintenance - Recharges Income | D92: E12 | E92: Yes | G92: 35081105-01 | H92: Budget | I92: Donations | J92: I13 | K92: Yes | M92: DFCT-02 | N92: Budget | O92: Carry Forward (Deficit) | P92: B01
A93: 67094025-02 | B93: Budget | C93: Building Maintenance - Recharges income | D93: E12 | E93: Yes | G93: 35081105-02 | H93: Budget | I93: Donations | J93: I13 | K93: Yes | M93: FC01 | N93: Budget | O93: Carry Forward | P93: B01
A94: 12010000-01 | B94: Budget | C94: Grounds Maintenance | D94: E13 | E94: Yes | G94: 65081102-01 | H94: Budget | I94: Private Fund Contributions | J94: I13 | K94: Yes | M94: FD01 | N94: Budget | O94: Carry Forward | P94: B01
A95: 12010000-02 | B95: Budget | C95: Grounds Maintenance | D95: E13 | E95: Yes | G95: 65081102-02 | H95: Budget | I95: Private Fund Contributions | J95: I13 | K95: Yes | M95: FD02 | N95: Budget | O95: Carry Forward | P95: B01
A96: 12010004-01 | B96: Budget | C96: Grounds Maintenance - Trees | D96: E13 | E96: Yes | G96: 65081103-01 | H96: Budget | I96: PTA Contributions | J96: I13 | K96: Yes | M96: RET-01 | N96: Budget | O96: Carry Forward | P96: B01
A97: 12010004-02 | B97: Budget | C97: Grounds Maintain - Trees | D97: E13 | E97: Yes | G97: 65081103-02 | H97: Budget | I97: PTA Contributions | J97: I13 | K97: Yes | M97: CFWD-04 | N97: Budget | O97: Carry Forward | P97: B03
A98: 12041210-01 | B98: Budget | C98: Grounds Contract Management | D98: E13 | E98: Yes | G98: 65081105-01 | H98: Budget | I98: Miscellaneous Donations | J98: I13 | K98: Yes | M98: CFWD-06 | N98: Budget | O98: Carry Forward | P98: B03
A99: 12041210-02 | B99: Budget | C99: Grounds Contract Management | D99: E13 | E99: Yes | G99: 65081105-02 | H99: Budget | I99: Miscellaneous Donations | J99: I13 | K99: Yes | M99: FD04 | N99: Budget | O99: Carry Forward | P99: B03
A100: 13013610-01 | B100: Budget | C100: External Contract Cleaning | D100: E14 | E100: Yes | G100: 60680711-08 | H100: Budget | I100: Furloughed Staff Income | J100: I16 | K100: Yes | M100: FD06 | N100: Budget | O100: Carry Forward | P100: B03
A101: 13013610-02 | B101: Budget | C101: External Contract Cleaning | D101: E14 | E101: Yes | G101: 60680711-22 | H101: Budget | I101: Furloughed Staff Income | J101: I16 | K101: Yes | M101: RET-04 | N101: Budget | O101: Carry Forward | P101: B03
A102: 13013620-01 | B102: Budget | C102: DSO Contract Cleaning | D102: E14 | E102: Yes | G102: 60680711-24 | H102: Budget | I102: Furloughed Staff Income | J102: I16 | K102: Yes | M102: CFWD-05 | N102: Budget | O102: Carry Forward | P102: B05
A103: 13013620-02 | B103: Budget | C103: DSO Contract Cleaning | D103: E14 | E103: Yes | G103: 60680712-24 | H103: Budget | I103: Grant for COVID-19 related exceptional costs | J103: I16 | K103: Yes | M103: CFWD-18 | N103: Budget | O103: Carry Forward | P103: B05
A104: 13013630-01 | B104: Budget | C104: Window Cleaning | D104: E14 | E104: Yes | G104: 60680713-24 | H104: Budget | I104: COVID-19 Catch up premium | J104: I16 | K104: Yes | M104: FD05 | N104: Budget | O104: Carry Forward | P104: B05
A105: 13013630-02 | B105: Budget | C105: Window Cleaning | D105: E14 | E105: Yes | G105: 65080700-08 | H105: Budget | I105: Other Grants | J105: I16 | K105: Yes | M105: FD18 | N105: Budget | O105: Carry Forward | P105: B05
A106: 13030700-01 | B106: Budget | C106: Cleaning Equipment | D106: E14 | E106: Yes | G106: 65080700-22 | H106: Budget | I106: Other Grants | J106: I16 | K106: Yes | M106: RET-05 | N106: Budget | O106: Carry Forward | P106: B05
A107: 13030700-02 | B107: Budget | C107: Cleaning Equipment | D107: E14 | E107: Yes | G107: 65080700-24 | H107: Budget | I107: Other Grants | J107: I16 | K107: Yes | M107: CFWD-08 | N107: Budget | O107: Carry Forward (Credit) | P107: B06
A108: 13030701-01 | B108: Budget | C108: Cleaning Materials | D108: E14 | E108: Yes | G108: 67094034-24 | H108: Budget | I108: Rates - Billing Authority Income | J108: I16 | K108: Yes | M108: CFWD-22 | N108: Budget | O108: Carry Forward (Credit) | P108: B06
A109: 13030701-02 | B109: Budget | C109: Cleaning Materials | D109: E14 | E109: Yes | G109: 09084300-08 | H109: Budget | I109: Income Adult Meal | J109: I17 | K109: Yes | M109: CFWD-24 | N109: Budget | O109: Carry Forward (Credit) | P109: B06
A110: 14013500-01 | B110: Budget | C110: Water and Sewerage | D110: E15 | E110: Yes | G110: 09084300-24 | H110: Budget | I110: Income Adult Meal | J110: I17 | K110: Yes | M110: DFCT-08 | N110: Budget | O110: Carry Forward (Deficit) | P110: B06
A111: 14013500-02 | B111: Budget | C111: Water and Sewerage | D111: E15 | E111: Yes | G111: 30984800-08 | H111: Budget | I111: School Council Sales | J111: I17 | K111: Yes | M111: DFCT-22 | N111: Budget | O111: Carry Forward (Deficit) | P111: B06
A112: 67064036-01 | B112: Budget | C112: Water - Recharges Spend | D112: E15 | E112: Yes | G112: 30984800-24 | H112: Budget | I112: School Council Sales | J112: I17 | K112: Yes | M112: DFCT-24 | N112: Budget | O112: Carry Forward (Deficit) | P112: B06
A113: 67064036-02 | B113: Budget | C113: Water - Recharges spend | D113: E15 | E113: Yes | G113: 35084800-08 | H113: Budget | I113: Uniform Sales | J113: I17 | K113: Yes | M113: FC24 | N113: Budget | O113: Carry Forward | P113: B06
A114: 67094007-01 | B114: Budget | C114: Water - Recharges Income | D114: E15 | E114: Yes | G114: 35084800-24 | H114: Budget | I114: Uniform Sales | J114: I17 | K114: Yes | M114: FD08 | N114: Budget | O114: Carry Forward | P114: B06
A115: 67094007-02 | B115: Budget | C115: Water - Recharges Income | D115: E15 | E115: Yes | G115: 40084502-08 | H115: Budget | I115: Income - Photocopying | J115: I17 | K115: Yes | M115: FD21 | N115: Budget | O115: Carry Forward | P115: B06
A116: 67094017-01 | B116: Budget | C116: Water - Recharges Income | D116: E15 | E116: Yes | G116: 40084502-24 | H116: Budget | I116: Income - Photocopying | J116: I17 | K116: Yes | M116: FD22 | N116: Budget | O116: Carry Forward | P116: B06
A117: 67094017-02 | B117: Budget | C117: Water - Recharges Income | D117: E15 | E117: Yes | G117: 41584300-08 | H117: Budget | I117: Income School Meals - Pupils | J117: I17 | K117: Yes | M117: FD23 | N117: Budget | O117: Carry Forward | P117: B06
A118: 67094036-01 | B118: Budget | C118: Water - Recharges Income | D118: E15 | E118: Yes | G118: 41584300-24 | H118: Budget | I118: Income School Meals - Pupils | J118: I17 | K118: Yes | M118: FD24 | N118: Budget | O118: Carry Forward | P118: B06
A119: 67094036-02 | B119: Budget | C119: Water - Recharges income | D119: E15 | E119: Yes | G119: 62085020-22 | H119: Budget | I119: Bank Interest | J119: I17 | K119: Yes | M119: RET-24 | N119: Budget | O119: Carry Forward | P119: B06
A120: 11014008-01 | B120: Budget | C120: Solar Panel Rentals | D120: E16 | E120: Yes | G120: 62582000-08 | H120: Budget | I120: Contributions From Other LA's | J120: I17 | K120: Yes | M120: 01001100-08 | N120: Budget | O120: Teaching Staff - Pay | P120: E31
A121: 11014008-02 | B121: Budget | C121: Solar Panel Rentals | D121: E16 | E121: Yes | G121: 62582000-22 | H121: Budget | I121: Contributions From Other LA's | J121: I17 | K121: Yes | M121: 01001100-22 | N121: Budget | O121: Teaching Staff - Pay | P121: E31
A122: 15013200-01 | B122: Budget | C122: Oil | D122: E16 | E122: Yes | G122: 62582000-24 | H122: Budget | I122: Contributions From Other LA's | J122: I17 | K122: Yes | M122: 01001100-24 | N122: Budget | O122: Teaching Staff - Pay | P122: E31
A123: 15013200-02 | B123: Budget | C123: Oil | D123: E16 | E123: Yes | G123: 63586700-08 | H123: Budget | I123: Lettings | J123: I17 | K123: Yes | M123: 01002100-08 | N123: Budget | O123: Teaching Staff - NI | P123: E31
A124: 15013300-01 | B124: Budget | C124: Electricity | D124: E16 | E124: Yes | G124: 63586700-22 | H124: Budget | I124: Lettings | J124: I17 | K124: Yes | M124: 01002100-22 | N124: Budget | O124: Teaching Staff - NI | P124: E31
A125: 15013300-02 | B125: Budget | C125: Electricity | D125: E16 | E125: Yes | G125: 63586700-24 | H125: Budget | I125: Lettings | J125: I17 | K125: Yes | M125: 01002100-24 | N125: Budget | O125: Teaching Staff - NI | P125: E31
A126: 15013410-01 | B126: Budget | C126: Mains Gas | D126: E16 | E126: Yes | G126: 65080701-08 | H126: Budget | I126: Extended Schools Funding | J126: I17 | K126: Yes | M126: 01004100-08 | N126: Budget | O126: Teaching Staff - Pension | P126: E31
A127: 15013410-02 | B127: Budget | C127: Mains Gas | D127: E16 | E127: Yes | G127: 65080701-24 | H127: Budget | I127: Extended Schools Funding | J127: I17 | K127: Yes | M127: 01004100-22 | N127: Budget | O127: Teaching Staff - Pension | P127: E31
A128: 15013411-01 | B128: Budget | C128: Gas Bottles | D128: E16 | E128: Yes | G128: 65081000-08 | H128: Budget | I128: Miscellaneous Income | J128: I17 | K128: Yes | M128: 01004100-24 | N128: Budget | O128: Teaching Staff - Pension | P128: E31
A129: 15013411-02 | B129: Budget | C129: Gas Bottles | D129: E16 | E129: Yes | G129: 65081000-22 | H129: Budget | I129: Miscellaneous Income | J129: I17 | K129: Yes | M129: 02000120-08 | N129: Budget | O129: Supply Teaching Staff - Pension | P129: E31
A130: 15013420-01 | B130: Budget | C130: Cylinder Gas | D130: E16 | E130: Yes | G130: 65081000-24 | H130: Budget | I130: Miscellaneous Income | J130: I17 | K130: Yes | M130: 02000120-24 | N130: Budget | O130: Supply Teaching Staff - Pension | P130: E31
A131: 15013420-02 | B131: Budget | C131: Cylinder Gas | D131: E16 | E131: Yes | G131: 65081103-08 | H131: Budget | I131: PTA Contributions | J131: I17 | K131: Yes | M131: 02001120-08 | N131: Budget | O131: Supply Teacher - Pay | P131: E31
A132: 67064018-01 | B132: Budget | C132: Energy - Recharge Income | D132: E16 | E132: Yes | G132: 65081103-24 | H132: Budget | I132: PTA Contributions | J132: I17 | K132: Yes | M132: 02001120-24 | N132: Budget | O132: Supply Teacher - Pay | P132: E31
A133: 67064018-02 | B133: Budget | C133: Energy - Recharge Income | D133: E16 | E133: Yes | G133: 65081105-08 | H133: Budget | I133: Miscellaneous Donations | J133: I17 | K133: Yes | M133: 02001590-08 | N133: Budget | O133: Non Teach Supply Pay -Classroom | P133: E31
A134: 67064035-01 | B134: Budget | C134: Energy - Recharge Spend | D134: E16 | E134: Yes | G134: 65081105-24 | H134: Budget | I134: Miscellaneous Donations | J134: I17 | K134: Yes | M134: 02001590-24 | N134: Budget | O134: Non Teach Supply Pay -Classroom | P134: E31
A135: 67064035-02 | B135: Budget | C135: Energy - Recharge spend | D135: E16 | E135: Yes | G135: 65086238-08 | H135: Budget | I135: Parental Contributions | J135: I17 | K135: Yes | M135: 02001591-08 | N135: Budget | O135: Non Teach Supply Pay (Non Class) | P135: E31
A136: 67094008-01 | B136: Budget | C136: Energy - Recharge Income | D136: E16 | E136: Yes | G136: 65086238-22 | H136: Budget | I136: Parental Contributions | J136: I17 | K136: Yes | M136: 02001591-24 | N136: Budget | O136: Non Teach Supply Pay (Non Class) | P136: E31
A137: 67094008-02 | B137: Budget | C137: Energy - Recharge Income | D137: E16 | E137: Yes | G137: 65086238-24 | H137: Budget | I137: Parental Contributions | J137: I17 | K137: Yes | M137: 02002120-08 | N137: Budget | O137: Supply Teacher - NI | P137: E31
A138: 67094035-01 | B138: Budget | C138: Energy - Recharge Income | D138: E16 | E138: Yes | G138: 68090330-22 | H138: Budget | I138: Recharge Community Premises | J138: I17 | K138: Yes | M138: 02002120-24 | N138: Budget | O138: Supply Teacher - NI | P138: E31
A139: 67094035-02 | B139: Budget | C139: Energy - Recharge income | D139: E16 | E139: Yes | G139: WRITEOFF-24 | H139: Budget | I139: Write off of Income Debts | J139: I17 | K139: Yes | M139: 02541777-08 | N139: Budget | O139: Pupil Paid Meals | P139: E31
A140: 16013900-01 | B140: Budget | C140: Rates | D140: E17 | E140: Yes | G140: 60680711-01 | H140: Budget | I140: Furloughed Staff Income | J140: I18A | K140: Yes | M140: 03001241-22 | N140: Budget | O140: Technician Staff - Pay | P140: E31
A141: 16013900-02 | B141: Budget | C141: Rates | D141: E17 | E141: Yes | G141: 60680711-02 | H141: Budget | I141: Furloughed Staff Income | J141: I18A | K141: Yes | M141: 03001460-08 | N141: Budget | O141: Education Support Staff Pay | P141: E31
A142: 16013900-08 | B142: Budget | C142: Rates | D142: E17 | E142: Yes | G142: 60680712-01 | H142: Budget | I142: Grant for COVID-19 related exceptional costs | J142: I18B | K142: Yes | M142: 03001460-22 | N142: Budget | O142: Education Support Staff Pay | P142: E31
A143: 67064034-01 | B143: Budget | C143: Rates -Recharge Spend | D143: E17 | E143: Yes | G143: 60680712-02 | H143: Budget | I143: Grant for COVID-19 related exceptional costs | J143: I18B | K143: Yes | M143: 03001460-24 | N143: Budget | O143: Education Support Staff Pay | P143: E31
A144: 67064034-02 | B144: Budget | C144: Rates - Recharge spend | D144: E17 | E144: Yes | G144: 60680713-01 | H144: Budget | I144: COVID-19 Catch up premium | J144: I18C | K144: Yes | M144: 03002241-22 | N144: Budget | O144: Technician Staff - NI | P144: E31
A145: 11010500-01 | B145: Budget | C145: Security Equipment | D145: E18 | E145: Yes | G145: 60680713-02 | H145: Budget | I145: COVID-19 Catch up premium | J145: I18C | K145: Yes | M145: 03002460-08 | N145: Budget | O145: Education Support Staff NI | P145: E31
A146: 11010500-02 | B146: Budget | C146: Security Equipment | D146: E18 | E146: Yes | G146: 60680714-01 | H146: Budget | I146: Digital Education Platform | J146: I18C | K146: Yes | M146: 03002460-22 | N146: Budget | O146: Education Support Staff NI | P146: E31
A147: 11014300-01 | B147: Budget | C147: Fire Equipment* | D147: E18 | E147: Yes | G147: 60680714-02 | H147: Budget | I147: Digital Education Platform | J147: I18C | K147: Yes | M147: 03002460-24 | N147: Budget | O147: Education Support Staff NI | P147: E31
A148: 11014300-02 | B148: Budget | C148: Fire Equipment | D148: E18 | E148: Yes | G148: 60680715-01 | H148: Budget | I148: Other grants (Covid) | J148: I18C | K148: Yes | M148: 03004241-22 | N148: Budget | O148: Technician Staff - Pension | P148: E31
A149: 13013660-01 | B149: Budget | C149: Pest Control | D149: E18 | E149: Yes | G149: 60680715-02 | H149: Budget | I149: Other Grants (Covid) | J149: I18C | K149: Yes | M149: 03004460-08 | N149: Budget | O149: Education Support Staff Pension | P149: E31
A150: 13013660-02 | B150: Budget | C150: Pest Control | D150: E18 | E150: Yes | G150: 60680710-01 | H150: Budget | I150: PE | Sports Grant | J150: I18D | K150: Yes | M150: 03004460-22 | N150: Budget | O150: Education Support Staff Pension | P150: E31
A151: 17013700-01 | B151: Budget | C151: Refuse Collection | D151: E18 | E151: Yes | G151: 60680710-02 | H151: Budget | I151: PE | Sports Grant | J151: I18D | K151: Yes | M151: 03004460-24 | N151: Budget | O151: Education Support Staff Pension | P151: E31
A152: 17013700-02 | B152: Budget | C152: Refuse Collection | D152: E18 | E152: Yes | G152: 60690710-01 | H152: Budget | I152: UIFSM Grant | J152: I18D | K152: Yes | M152: 04001410-08 | N152: Budget | O152: Premises Staff - Pay | P152: E31
A153: 17015100-01 | B153: Budget | C153: Rents / Leases | D153: E18 | E153: Yes | G153: 60690710-02 | H153: Budget | I153: UIFSM Grant | J153: I18D | K153: Yes | M153: 04001410-22 | N153: Budget | O153: Premises Staff - Pay | P153: E31
A154: 17015100-02 | B154: Budget | C154: Rents / Leases | D154: E18 | E154: Yes | K154: . | M154: 04001410-24 | N154: Budget | O154: Premises Staff - Pay | P154: E31
A155: 17015101-01 | B155: Budget | C155: Council Tax | D155: E18 | E155: Yes | G155: 88888888-05 | H155: Budget | I155: LA Funded Capital Reimbursement | J155: LADEVCAPINC | K155: Yes | M155: 04001420-08 | N155: Budget | O155: Cleaner Staff - Pay | P155: E31
A156: 17015101-02 | B156: Budget | C156: Council Tax | D156: E18 | E156: Yes | G156: 65081000-21 | H156: Budget | I156: Banker School Income | J156: ZZZ | K156: Yes - Fund must be net nil £0.00 after journals entered | M156: 04001420-24 | N156: Budget | O156: Cleaner Staff - Pay | P156: E31
A157: 17015200-01 | B157: Budget | C157: Casual Hire of Premises | D157: E18 | E157: Yes | G157: 65081000-23 | H157: Budget | I157: Banker School Income | J157: ZZZ | K157: Yes - Fund must be net nil £0.00 after journals entered | M157: 04002410-08 | N157: Budget | O157: Premises Staff - NI | P157: E31
A158: 17015200-02 | B158: Budget | C158: Casual Hire of Premises | D158: E18 | E158: Yes | G158: 67094033-01 | H158: Budget | I158: Teacher Recharge Income (Brington Only) | J158: E01 | K158: Yes | M158: 04002410-22 | N158: Budget | O158: Premises Staff - NI | P158: E31
A159: 17015201-01 | B159: Budget | C159: Hire of Playing Fields | D159: E18 | E159: Yes | G159: 65081000-23 | H159: Budget | I159: Banker School Income | J159: ZZZ | K159: Yes | M159: 04002410-24 | N159: Budget | O159: Premises Staff - NI | P159: E31
A160: 17015201-02 | B160: Budget | C160: Hire of Playing Fields | D160: E18 | E160: Yes | M160: 04002420-08 | N160: Budget | O160: Cleaner Staff - NI | P160: E31
A161: 17015202-01 | B161: Budget | C161: Hire of Swimming Pool | D161: E18 | E161: Yes | M161: 04002420-24 | N161: Budget | O161: Cleaner Staff - NI | P161: E31
A162: 17015202-02 | B162: Budget | C162: Hire of Swimming Pool | D162: E18 | E162: Yes | M162: 04004410-08 | N162: Budget | O162: Premises Staff - Pension | P162: E31
A163: 17030500-01 | B163: Budget | C163: Health and Safety | D163: E18 | E163: Yes | M163: 04004410-22 | N163: Budget | O163: Premises Staff - Pension | P163: E31
A164: 17030500-02 | B164: Budget | C164: Health and Safety | D164: E18 | E164: Yes | M164: 04004410-24 | N164: Budget | O164: Premises Staff - Pension | P164: E31
A165: 17030502-02 | B165: Budget | C165: Health & Safety checks | D165: E18 | E165: Yes | M165: 04004420-08 | N165: Budget | O165: Cleaner Staff - Pension | P165: E31
A166: 17059080-01 | B166: Budget | C166: Clinical Waste | D166: E18 | E166: Yes | M166: 04004420-24 | N166: Budget | O166: Cleaner Staff - Pension | P166: E31
A167: 17059080-02 | B167: Budget | C167: Clinical Waste | D167: E18 | E167: Yes | M167: 05001200-08 | N167: Budget | O167: Admin & Clerical Staff - Pay | P167: E31
A168: 40030503-01 | B168: Budget | C168: Electrical Testing - PAT | D168: E18 | E168: Yes | M168: 05001200-22 | N168: Budget | O168: Admin & Clerical Staff - Pay | P168: E31
A169: 40030503-02 | B169: Budget | C169: Electrical Testing - PAT | D169: E18 | E169: Yes | M169: 05001200-24 | N169: Budget | O169: Admin & Clerical Staff - Pay | P169: E31
A170: 40037610-01 | B170: Budget | C170: Water Cooler | D170: E18 | E170: Yes | M170: 05002200-08 | N170: Budget | O170: Admin & Clerical Staff - NI | P170: E31
A171: 40037610-02 | B171: Budget | C171: Water Cooler | D171: E18 | E171: Yes | M171: 05002200-22 | N171: Budget | O171: Admin & Clerical Staff - NI | P171: E31
A172: 67094014-01 | B172: Budget | C172: Refuse Collection Recharge Income | D172: E18 | E172: Yes | M172: 05002200-24 | N172: Budget | O172: Admin & Clerical Staff - NI | P172: E31
A173: 67094024-01 | B173: Budget | C173: Refuse Collection Recharge Income | D173: E18 | E173: Yes | M173: 05004200-08 | N173: Budget | O173: Admin & Clerical Staff - Pension | P173: E31
A174: 20030200-01 | B174: Budget | C174: Educational Furniture | D174: E19 | E174: Yes | M174: 05004200-22 | N174: Budget | O174: Admin & Clerical Staff - Pension | P174: E31
A175: 20030200-02 | B175: Budget | C175: Educational Furniture | D175: E19 | E175: Yes | M175: 05004200-24 | N175: Budget | O175: Admin & Clerical Staff - Pension | P175: E31
A176: 20036000-01 | B176: Budget | C176: General Curriculum | D176: E19 | E176: Yes | M176: 07001730-08 | N176: Budget | O176: Other Support Staff - Pay | P176: E31
A177: 20036000-02 | B177: Budget | C177: General Curriculum | D177: E19 | E177: Yes | M177: 07001730-24 | N177: Budget | O177: Other Support Staff - Pay | P177: E31
A178: 20036030-01 | B178: Budget | C178: Curriculum Expenses | D178: E19 | E178: Yes | M178: 07001940-08 | N178: Budget | O178: Midday Supervision Staff - Pay | P178: E31
A179: 20036030-02 | B179: Budget | C179: Curriculum Expenses | D179: E19 | E179: Yes | M179: 07001940-24 | N179: Budget | O179: Midday Supervision Staff - Pay | P179: E31
A180: 20036031-01 | B180: Budget | C180: Curriculum Printing & Stationery | D180: E19 | E180: Yes | M180: 07002730-08 | N180: Budget | O180: Other Support Staff - NI | P180: E31
A181: 20036031-02 | B181: Budget | C181: Curriculum Printing & Stationery | D181: E19 | E181: Yes | M181: 07002730-24 | N181: Budget | O181: Other Support Staff - NI | P181: E31
A182: 20036040-01 | B182: Budget | C182: Curriculum Consumables | D182: E19 | E182: Yes | M182: 07002940-08 | N182: Budget | O182: Midday Supervision Staff - NI | P182: E31
A183: 20036040-02 | B183: Budget | C183: Curriculum consumables | D183: E19 | E183: Yes | M183: 07002940-24 | N183: Budget | O183: Midday Supervision Staff - NI | P183: E31
A184: 20036050-01 | B184: Budget | C184: Education Equipment | D184: E19 | E184: Yes | M184: 07004730-08 | N184: Budget | O184: Other Support Staff - Pension | P184: E31
A185: 20036050-02 | B185: Budget | C185: Education Equipment | D185: E19 | E185: Yes | M185: 07004730-24 | N185: Budget | O185: Other Support Staff - Pension | P185: E31
A186: 20036100-01 | B186: Budget | C186: Field Courses | D186: E19 | E186: Yes | M186: 07004940-08 | N186: Budget | O186: Midday Supervision Staff - Pension | P186: E31
A187: 20036200-01 | B187: Budget | C187: Curriculum Transport | D187: E19 | E187: Yes | M187: 07004940-24 | N187: Budget | O187: Midday Supervision Staff - Pension | P187: E31
A188: 20036200-02 | B188: Budget | C188: Curriculum Transport | D188: E19 | E188: Yes | M188: 67064024-24 | N188: Budget | O188: Pre-school Staff - Recharge Spend (Income) | P188: E31
A189: 20036400-01 | B189: Budget | C189: SEN | D189: E19 | E189: Yes | M189: 67094012-22 | N189: Budget | O189: Admin Recharge | P189: E31
A190: 20036400-02 | B190: Budget | C190: SEN | D190: E19 | E190: Yes | M190: 01001100-01 | N190: Budget | O190: Teaching Staff - Pay | P190: E01
A191: 20036609-01 | B191: Budget | C191: Books | D191: E19 | E191: Yes | M191: 01001100-02 | N191: Budget | O191: Teaching Staff - Pay | P191: E01
A192: 20039100-01 | B192: Budget | C192: DEDEL Subs | D192: E19 | E192: Yes | M192: 01001150-01 | N192: Budget | O192: Pupil Support Teachers - Pay | P192: E01
A193: 20039100-02 | B193: Budget | C193: DEDEL Subs | D193: E19 | E193: Yes | M193: 01002100-01 | N193: Budget | O193: Teaching Staff - NI | P193: E01
A194: 20136000-01 | B194: Budget | C194: Classroom Consumables | D194: E19 | E194: Yes | M194: 01002100-02 | N194: Budget | O194: Teaching Staff - NI | P194: E01
A195: 20136000-02 | B195: Budget | C195: Classroom Consumables | D195: E19 | E195: Yes | M195: 01002150-01 | N195: Budget | O195: Pupil Support Teachers - NI | P195: E01
A196: 20236000-01 | B196: Budget | C196: English - Literacy | D196: E19 | E196: Yes | M196: 01004100-01 | N196: Budget | O196: Teaching Staff - Pension | P196: E01
A197: 20236000-02 | B197: Budget | C197: English - Literacy | D197: E19 | E197: Yes | M197: 01004100-02 | N197: Budget | O197: Teaching Staff - Pension | P197: E01
A198: 20336000-01 | B198: Budget | C198: Mathematics | D198: E19 | E198: Yes | M198: 01004150-01 | N198: Budget | O198: Pupil Support Teachers - Pension | P198: E01
A199: 20336000-02 | B199: Budget | C199: Mathematics | D199: E19 | E199: Yes | M199: 67064023-01 | N199: Budget | O199: Teaching Staff - Recharge Spend | P199: E01
A200: 20436000-01 | B200: Budget | C200: Technology - D/T | D200: E19 | E200: Yes | M200: 67064023-02 | N200: Budget | O200: Teaching Staff - Recharge Spend | P200: E01
... 375 more rows

Sheet YE Declaration (hidden)
B1: =IF(ISNA(VLOOKUP(F1,'School Information'!A2:B129,2,FALSE))," ",VLOOKUP(F1,'School Information'!A2:B129,2,FALSE)) ->  | F1: ='SMER Summary 25-26'!D11 -> 0
F2: 8732002
B3: Declaration
B5: Please add figures to all yellow highlighted boxes
B7: CFR / Fund Review
B8: Enter your FUND 08 SENIF funding for Nurseries currently coded to FNDX-01 here: | G8: Please enter as a positive amount
B9: Enter your SENIF FUND 24 funding for Pre school/Playgroup currently coded to FNDX-01 here: | G9: Please enter as a positive amount
B10: If applicable: Enter your Fund 08 Nursery Rates income coded to FNDX-01 here: | G10: Please enter as a positive amount
B11: If applicable: Enter your Fund 24 Pre School/Playgroup Rates income coded to FNDX-01 here: | G11: Please enter as a positive amount
B12: Other Income in Budget Ledger -01 (Fund 01) should be coded to Fund 24 Pre School | G12: Please enter as a Positive Amount Please over type - Please enter details of code income appears in, and what it relates to. Eg LAC PP For Preschool in Budget Ledger Code X, costs in Fund 24
B13: Other Income in Budget Ledger -01 (Fund 01) should be coded to Fund 08 Nurseries | G13: Please enter as a positive amount Please Over Type - Please enter details of code income appears in, and what it relates to. Eg xx income for Nursery in Budget Ledger Code X, costs in Fund 08
B14: Below is for Federated schools only
B15: Enter your FUND 08 SENIF funding for Nurseries currently coded to FNDX-02 here: | G15: Please enter as a positive amount
B16: Enter your SENIF FUND 24 funding for Pre school/Playgroup currently coded to FNDX-02 here: | G16: Please enter as a positive amount
B17: If applicable: Enter your Fund 08 Nursery Rates income coded to FNDX-02 here: | G17: Please enter as a positive amount
B18: If applicable: Enter your Fund 24 Pre School/Playgroup Rates income coded to FNDX-02 here: | G18: Please enter as a positive amount
B19: Other Income in Budget Ledger -02 (Fund 02) should be coded to Fund 24 Pre School | G19: Please enter as a Positive Amount Please over type - Please enter details of code income appears in, and what it relates to. Eg LAC PP For Preschool in Budget Ledger Code X, costs in Fund 24
B20: Other Income in Budget Ledger -02 (Fund 02) should be coded to Fund 08 Nurseries | G20: Please enter as a positive amount Please Over Type - Please enter details of code income appears in, and what it relates to. Eg xx income for Nursery in Budget Ledger Code X, costs in Fund 08
B23: FNDSEN-08 & FNDSEN-24: The way we have set up the below means it automatically includes these codes in the figure so we do not need to adjust for these as we did last year, it will pick them up and include them in the correct funds automatically
C25: Fund 01 | D25: Fund 02 | E25: Fund 08 | F25: Fund 22 | G25: Fund 24 | H25: - | I25: Fund 04 | J25: Fund 06 | K25: Fund 05 | L25: Fund 18 | M25: 24/25 Total (All Funds) | N25: CHECK (Should be Zero)
C26: Formula / Revenue | D26: Formula / Revenue | E26: Nursery (Day Care) | F26: Childrens Centres | G26: Community Focused Activities | I26: DFC | J26: DFC | K26: External Capital
C27: +Surplus -Deficit | D27: +Surplus -Deficit | E27: +Surplus -Deficit | F27: +Surplus -Deficit | G27: +Surplus -Deficit | I27: +Surplus -Deficit | J27: +Surplus -Deficit | K27: +Surplus -Deficit | L27: +Surplus -Deficit | M27: +Surplus -Deficit
C28: FD-01 | D28: FD-02 | E28: FD-08 | F28: FD-22 | G28: FD-24 | H28: - | I28: FD-04 | J28: FD-06 | K28: FD-05 | L28: FD-18
B29: Opening Balance (+Surplus -Deficit) | C29: =VLOOKUP(C25,'Opening Balance'!$B:$H,4,FALSE) -> 0 | D29: =VLOOKUP(D25,'Opening Balance'!$B:$H,4,FALSE) -> 0 | E29: =VLOOKUP(E25,'Opening Balance'!$B:$H,4,FALSE) -> 0 | F29: =VLOOKUP(F25,'Opening Balance'!$B:$H,4,FALSE) -> 0 | G29: =VLOOKUP(G25,'Opening Balance'!$B:$H,4,FALSE) -> 0 | H29: =_xlfn.IFNA(VLOOKUP(H25,'Opening Balance'!$B:$H,4,FALSE)," ") ->  | I29: =VLOOKUP(I25,'Opening Balance'!$B:$H,4,FALSE) -> 0 | J29: =VLOOKUP(J25,'Opening Balance'!$B:$H,4,FALSE) -> 0 | K29: =VLOOKUP(K25,'Opening Balance'!$B:$H,4,FALSE) -> 0 | L29: =VLOOKUP(L25,'Opening Balance'!$B:$H,4,FALSE) -> 0 | M29: =SUM(C29:L29) -> 0 | N29: =IF(M29-'Opening Balance'!E22,0,"CORRECT") -> CORRECT
B30: In Year position (+Surplus -Deficit) | C30: =Summary!C83 -> 0 | D30: =Summary!D83 -> 0 | E30: =Summary!E83 -> 0 | F30: =Summary!F83 -> 0 | G30: =Summary!G83 -> 0 | H30: =IF(Summary!H83,0," ") ->  | I30: =Summary!I84 -> 0 | J30: =Summary!J84 -> 0 | K30: =Summary!K84 -> 0 | L30: =Summary!L84 -> 0 | M30: =SUM(C30:L30) -> 0 | N30: =M30-SUM(Summary!C83:L84) -> 0
B31: Actual Cumulative Total (+Surplus -Deficit) | C31: =SUM(C29:C30) -> 0 | D31: =SUM(D29:D30) -> 0 | E31: 0 | F31: 0 | G31: =SUM(G29:G30) -> 0 | H31: =IF(SUM(H29:H30),0," ") ->  | I31: 0 | J31: 0 | K31: 0 | L31: 0 | M31: =SUM(M29:M30) -> 0 | N31: =M31-SUM(C31:L31) -> 0
B32: Adjustment for FUND08 & 24 (FNDX-01) | C32: =-F8-F9-F10-F11-F12-F13 -> 0 | D32: =-F15-F16-F17-F18-F19-F20 -> 0 | E32: =F8+F10+F13+F15+F17+F20 -> 0 | G32: =F9+F11+F12+F19+F18+F16 -> 0 | M32: =SUM(C32:L32) -> 0 | N32: =M32-0 -> 0
B33: Total Adjusted Fund Balances (Final figures) | C33: =SUM(C31:C32) -> 0 | D33: =SUM(D31:D32) -> 0 | E33: =SUM(E31:E32) -> 0 | F33: 0 | G33: 0 | H33: =IF(SUM(H31:H32),0," ") ->  | I33: 0 | J33: 0 | K33: 0 | L33: 0 | M33: =SUM(M31:M32) -> 0 | N33: =M33-SUM(C33:L33) -> 0
B35: Check to Balance sheet
B36: Balance Sheet Total | C36: =-Sheet3!H14 -> 0
B37: Balancing ? | C37: =M33-C36 -> 0 | D37: =IF(C37<>0,"SHOULD BE ZERO",IF(C37=0," ")) -> 
B39: Committed Revenue amounts ONLY
B41: This only relates to Revenue Funds Committed is where schools have plans in place, governors have signed these off for school staff to buy or order but nothing is actually in the accounts yet and nothing has been delivered or work has not been done. Please complete with £0.00 if you don't have any as this is used in the CFR return Where you have got unspent grants these should be classed as Committed.
B43: Description | C43: Info | M43: £
B44: Unspent PE Funding at year end | C44: Should be committed as it is a ring fenced grant with specific conditions. Allocated to schools 5/12 & 7/12. What ever is left schools should have a plan on what the money will be spent on in the next financial year
B45: Unspent 16-19 Bursary (special schools only)
B46: Unspent Pupil Premium Funding at year end | C46: Should be committed as school should have spent all allocation by the end of the year and should have a plan on how this will be spent in the following financial year
B58: TOTAL | M58: =SUM(M44:M57) -> 0
B61: Apportioned CFR Balance for CFR Return
B63: B01 Commited revenue Balances | D63: =M58 -> 0
B64: B02 Uncommited revenue balances | D64: =C33+D33-D63 -> 0
B65: B03 DFC | D65: =I33+J33 -> 0
B66: B05 Other Capital | D66: =K33+L33 -> 0
B67: B06 Extended schools | D67: =E33+G33+F33 -> 0
B68: BKS Banker Schools Funds | E68: SHOULD BE ZERO AS SHOULD ENTER ACCRUALS TO ZERO BALANCES - ALL ENTRIES GO TO ZZZ (NON CFR)
B69: Check | D69: =SUM(D63:D68)-M33 -> 0 | E69: =IF(D69<>0,"SHOULD BE ZERO - INVESTIGATE",IF(D69=0," ")) -> 
B71: Schools Surplus Balance - last used in 23/24
B72: Individual Schools Budget (ISB) | D72: =IF(ISNA(VLOOKUP(F1,ISB!B4:C126,2,FALSE)),0,VLOOKUP(F1,ISB!B4:C126,2,FALSE)) -> 0 | E72: ISB Tab has not been updated for 24/25, so formula isnt looking at correct up to date figures
B73: 16% of ISB | D73: =IF(ROUND((D72*0.16),2)<80000,80000,ROUND((D72*0.16),2)) -> 80000
B74: Uncommited Revenue Balance | D74: =D64 -> 0
B75: Less Commited Balance Declaration | D75: =D63 -> 0
B76: Less Properly Assigned Balances | E76: =D74-D75-D76 -> 0
B77: Clawback Calculation | D77: =IF(E76>D73,E76-D73,0) -> 0 | E77: (if uncomrev bal > 16% of ISB and Uncom rev > £80K)

Sheet BvA Drop (Table) (hidden)
C1: Budget Code | D1: Agreed Budget | E1: Forecast Budget | F1: Actuals YTD | G1: Commitments | H1: Total | I1: Budget % | J1: Adjustments | K1: Projected YE | L1: Variance | M1: % Variance | N1: Notes

Sheet SSCT ONLY Tables to right (hidden)

Sheet Mapping (hidden)
A1: B01 | B1: f4ae509b-da11-4de6-9149-9e31825fcccd | C1: 47570712-02 | D1: Budget | E1: Proposed Budget Deficit | F1: B01 | G1: =_xlfn.CONCAT(F1,RIGHT(C1,2)) -> B0102
A2: B01 | B2: aee9a512-13f3-48cf-8d1a-fca5189277a9 | C2: CFWD-01 | D2: Budget | E2: Carry Forward (Credit) | F2: B01 | G2: B0101
A3: B01 | B3: daa83543-3b9c-4cff-8631-4bafbee9639b | C3: CFWD-02 | D3: Budget | E3: Carry Forward (Credit) | F3: B01 | G3: B0102
A4: B01 | B4: 6e8cbccf-c365-4b96-b108-c5c989229ec4 | C4: DFCT-01 | D4: Budget | E4: Carry Forward (Deficit) | F4: B01 | G4: B0101
A5: B01 | B5: 07f15a73-2a52-4d0b-a47b-6303464ec9c6 | C5: DFCT-02 | D5: Budget | E5: Carry Forward (Deficit) | F5: B01 | G5: B0102
A6: B01 | B6: 416545dd-7b95-4c21-9635-5ff6f5ee79cf | C6: FC01 | D6: Budget | E6: Carry Forward | F6: B01 | G6: B0101
A7: B01 | B7: eccd5b41-69e9-406c-adda-593d7a30ddde | C7: FD01 | D7: Budget | E7: Carry Forward | F7: B01 | G7: B0101
A8: B01 | B8: 750a8169-5925-45f7-9cf4-93017832f021 | C8: FD02 | D8: Budget | E8: Carry Forward | F8: B01 | G8: B0102
A9: B01 | B9: 6275d4a1-c225-46e0-ad4a-bb7f1ee5c8cf | C9: RET-01 | D9: Budget | E9: Carry Forward | F9: B01 | G9: B0101
A10: B03 | B10: b5fd5048-1b33-4cd6-a74e-fc223a36f288 | C10: CFWD-04 | D10: Budget | E10: Carry Forward | F10: B03 | G10: B0304
A11: B03 | B11: dc90b7b4-557d-4723-80ad-8e486dd492eb | C11: CFWD-06 | D11: Budget | E11: Carry Forward | F11: B03 | G11: B0306
A12: B03 | B12: 05620cda-41e7-4b6b-9af1-2dc0cd78ee14 | C12: FD04 | D12: Budget | E12: Carry Forward | F12: B03 | G12: B0304
A13: B03 | B13: de41a62d-7dd1-475d-8e7f-9e2c452ea787 | C13: FD06 | D13: Budget | E13: Carry Forward | F13: B03 | G13: B0306
A14: B03 | B14: f52ac3de-8c5d-44a6-830c-612b1105aa93 | C14: RET-04 | D14: Budget | E14: Carry Forward | F14: B03 | G14: B0304
A15: B05 | B15: be35aa53-0115-48be-9aa4-f4f92b21e101 | C15: CFWD-05 | D15: Budget | E15: Carry Forward | F15: B05 | G15: B0505
A16: B05 | B16: ef79f8f1-54c2-43b1-af6c-2f04e36694c6 | C16: CFWD-18 | D16: Budget | E16: Carry Forward | F16: B05 | G16: B0518
A17: B05 | B17: f7fb8711-a262-4010-8060-f00634495558 | C17: FD05 | D17: Budget | E17: Carry Forward | F17: B05 | G17: B0505
A18: B05 | B18: b9b29a12-0d87-4ddd-b987-897b4b3bba13 | C18: FD18 | D18: Budget | E18: Carry Forward | F18: B05 | G18: B0518
A19: B05 | B19: ac4e07a9-7366-4d5a-9b97-df0ceec6756e | C19: RET-05 | D19: Budget | E19: Carry Forward | F19: B05 | G19: B0505
A20: B06 | B20: 4d6623bf-2f62-460d-9c38-538635f469de | C20: CFWD-08 | D20: Budget | E20: Carry Forward (Credit) | F20: B06 | G20: B0608
A21: B06 | B21: 28cc5c84-4454-40fe-bf87-c14875a0223e | C21: CFWD-22 | D21: Budget | E21: Carry Forward (Credit) | F21: B06 | G21: B0622
A22: B06 | B22: 12d1822e-2959-483c-a4b9-a25ea074b106 | C22: CFWD-24 | D22: Budget | E22: Carry Forward (Credit) | F22: B06 | G22: B0624
A23: B06 | B23: 51223bdd-4aef-4286-b62a-1c5aed08debc | C23: DFCT-08 | D23: Budget | E23: Carry Forward (Deficit) | F23: B06 | G23: B0608
A24: B06 | B24: e2380a1b-d64c-43f2-8280-feb44a167452 | C24: DFCT-22 | D24: Budget | E24: Carry Forward (Deficit) | F24: B06 | G24: B0622
A25: B06 | B25: a7fc4f94-c883-497e-abf3-b9ea643ef4e8 | C25: DFCT-24 | D25: Budget | E25: Carry Forward (Deficit) | F25: B06 | G25: B0624
A26: B06 | B26: 999415e8-3ce3-4e4f-8ff1-9fac8b5974b9 | C26: FC24 | D26: Budget | E26: Carry Forward | F26: B06 | G26: B0624
A27: B06 | B27: 6d43a0e1-28ef-4e83-a171-22264d8bcbf1 | C27: FD08 | D27: Budget | E27: Carry Forward | F27: B06 | G27: B0608
A28: B06 | B28: a73027e8-4549-4a8f-8b2a-a1ddf77babad | C28: FD21 | D28: Budget | E28: Carry Forward | F28: B06 | G28: B0621
A29: B06 | B29: b26a6b6a-78e6-416a-85d7-a81493f9808b | C29: FD22 | D29: Budget | E29: Carry Forward | F29: B06 | G29: B0622
A30: B06 | B30: 8f49c396-c4f9-48a5-aefa-470456f480f1 | C30: FD23 | D30: Budget | E30: Carry Forward | F30: B06 | G30: B0623
A31: B06 | B31: a04a8d2b-3027-4847-ad1c-010df9d790d2 | C31: FD24 | D31: Budget | E31: Carry Forward | F31: B06 | G31: B0624
A32: B06 | B32: b88cb8ee-5c7b-47d1-99cd-d19d1f8dbd77 | C32: RET-24 | D32: Budget | E32: Carry Forward | F32: B06 | G32: B0624
A33: CE02 | B33: 23e87040-0926-48b4-b5c0-642c7838d8e8 | C33: 11010100-04 | D33: Budget | E33: Building Maintenance | F33: CE02 | G33: CE0204
A34: CE02 | B34: 0b0319bf-840e-42df-9981-39c15acb51f0 | C34: 11010100-05 | D34: Budget | E34: Building Maintenance | F34: CE02 | G34: CE0205
A35: CE02 | B35: 889bb22f-5eab-4036-bf99-ff2ebcb30cfa | C35: 11010100-06 | D35: Budget | E35: Building Maintenance | F35: CE02 | G35: CE0206
A36: CE02 | B36: a783ab2b-f1a4-457a-beb4-546d30a01361 | C36: 11010100-18 | D36: Budget | E36: Building Maintenance | F36: CE02 | G36: CE0218
A37: CE02 | B37: d159ba41-e666-469a-a979-60f3a6263920 | C37: 11010110-04 | D37: Budget | E37: Structural Maintenance | F37: CE02 | G37: CE0204
A38: CE02 | B38: 53e80688-0646-4608-af8f-b74e3a19b061 | C38: 11010110-05 | D38: Budget | E38: Structural Maintenance | F38: CE02 | G38: CE0205
A39: CE02 | B39: 5209a2ad-20b8-465f-abb7-22c92bddb6a3 | C39: 11010120-04 | D39: Budget | E39: Non-Structural Maint | F39: CE02 | G39: CE0204
A40: CE02 | B40: 05d6a967-f3a9-4158-833c-a9e6d4d0e338 | C40: 11010120-05 | D40: Budget | E40: Non-Structural Maint | F40: CE02 | G40: CE0205
A41: CE02 | B41: d7e0ec3d-0b02-470b-86f0-827eea11932b | C41: 11011500-04 | D41: Budget | E41: Building Alterations | F41: CE02 | G41: CE0204
A42: CE02 | B42: 602ab74c-a33e-489e-8b85-fb16a40293af | C42: 11011500-05 | D42: Budget | E42: Building Alterations | F42: CE02 | G42: CE0205
A43: CE02 | B43: b64e908a-95a3-43ce-b5c4-f0464225b512 | C43: 11011500-06 | D43: Budget | E43: Building Alterations | F43: CE02 | G43: CE0206
A44: CE02 | B44: 7d7df6f5-396e-4373-aaf9-85a67afe041a | C44: 11011500-18 | D44: Budget | E44: Building Alterations | F44: CE02 | G44: CE0218
A45: CE02 | B45: 8dcd2040-7cd5-4d9e-a91c-3ffc3aa1b231 | C45: 20030200-04 | D45: Budget | E45: Educational Furniture | F45: CE02 | G45: CE0204
A46: CE02 | B46: 8504f7e3-64f5-4dd6-a511-5aa8df95821b | C46: 20030200-05 | D46: Budget | E46: Educational Furniture | F46: CE02 | G46: CE0205
A47: CE02 | B47: 29fadd08-b138-44ae-b67f-1b8585a9b0af | C47: 20030200-06 | D47: Budget | E47: Educational Furniture | F47: CE02 | G47: CE0206
A48: CE02 | B48: b3672dc5-4444-4f8f-acd8-1d5976f47444 | C48: 20030200-18 | D48: Budget | E48: Educational Furniture | F48: CE02 | G48: CE0218
A49: CE03 | B49: 0df83cdc-e5f1-4028-9ce4-527216c80a6e | C49: 42530200-04 | D49: Budget | E49: Furniture and Fittings | F49: CE03 | G49: CE0304
A50: CE03 | B50: 6655404c-cf9c-43d1-baf0-aa6902953d6b | C50: 42530200-05 | D50: Budget | E50: Furniture and Fittings | F50: CE03 | G50: CE0305
A51: CE03 | B51: 8d590e49-b800-46b3-934e-07bad29b838c | C51: 42530200-06 | D51: Budget | E51: Furniture and Fittings | F51: CE03 | G51: CE0306
A52: CE03 | B52: c3bec0b8-05e6-4f8f-ae6c-d7558b97ba64 | C52: 42530200-18 | D52: Budget | E52: Furniture and Fittings | F52: CE03 | G52: CE0318
A53: CE03 | B53: 504fe044-6d6a-4381-9aa5-4d26e0a23a5b | C53: 42530201-05 | D53: Budget | E53: Vehicle Purchase | F53: CE03 | G53: CE0305
A54: CE04A | B54: e3ca7eab-917e-405b-a7dd-a17732a3a48a | C54: 38036062-04 | D54: Budget | E54: Capital Connectivity | F54: CE04A | G54: CE04A04
A55: CE04A | B55: b3d021c2-a686-4ef7-8895-137afe38f923 | C55: 38036062-05 | D55: Budget | E55: Capital Connectivity | F55: CE04A | G55: CE04A05
A56: CE04A | B56: 1b410bdf-9625-4bf9-b9c4-898693cabbc2 | C56: 38036062-06 | D56: Budget | E56: Capital Connectivity | F56: CE04A | G56: CE04A06
A57: CE04A | B57: d666e4e2-601e-42c1-8652-56ebcc2124cd | C57: 38036062-18 | D57: Budget | E57: Capital Connectivity | F57: CE04A | G57: CE04A18
A58: CE04B | B58: 1503bb54-a3a2-4e9f-b594-fdcc6bce5592 | C58: 38036065-04 | D58: Budget | E58: Capital Onsite Servers | F58: CE04B | G58: CE04B04
A59: CE04B | B59: 7129dd75-432e-4c7a-9c8e-11324e4e8e8e | C59: 38036065-05 | D59: Budget | E59: Capital Onsite Servers | F59: CE04B | G59: CE04B05
A60: CE04B | B60: 89c75c1a-3f03-4d80-95da-1e45753cc691 | C60: 38036065-06 | D60: Budget | E60: Capital Onsite Servers | F60: CE04B | G60: CE04B06
A61: CE04B | B61: 34941410-315b-46df-bbc5-97c89b6133e3 | C61: 38036065-18 | D61: Budget | E61: Capital Onsite Servers | F61: CE04B | G61: CE04B18
A62: CE04C | B62: 77ee0760-7614-4b9b-b620-59fe0ee4fa46 | C62: 38036066-04 | D62: Budget | E62: Capital Admin Software & Systems | F62: CE04C | G62: CE04C04
A63: CE04C | B63: 5e544550-6b80-4115-8785-f17e4bbf8b11 | C63: 38036066-05 | D63: Budget | E63: Capital Admin Software & Systems | F63: CE04C | G63: CE04C05
A64: CE04C | B64: 247c402d-167e-4201-99e8-b6f91547d8a2 | C64: 38036066-06 | D64: Budget | E64: Capital Admin Software & Systems | F64: CE04C | G64: CE04C06
A65: CE04C | B65: 01a4c682-1170-4012-95d2-1bb5455bc46a | C65: 38036066-18 | D65: Budget | E65: Capital Admin Software & Systems | F65: CE04C | G65: =_xlfn.CONCAT(F65,RIGHT(C65,2)) -> CE04C18
A66: CE04D | B66: 3b1ec431-c176-41b5-87e0-b3173e8b1596 | C66: 38036060-04 | D66: Budget | E66: Computer Hardware | F66: CE04D | G66: CE04D04
A67: CE04D | B67: e18ff0ea-df86-40e2-a518-9e846ecf102d | C67: 38036060-05 | D67: Budget | E67: Computers for ICT | F67: CE04D | G67: CE04D05
A68: CE04D | B68: dc91d71c-91a6-45de-b1d7-d1018fc57d2b | C68: 38036060-06 | D68: Budget | E68: Computer Hardware | F68: CE04D | G68: CE04D06
A69: CE04D | B69: b3eb3557-2191-4594-bf64-6f3f5356bda5 | C69: 38036060-18 | D69: Budget | E69: Computer Hardware | F69: CE04D | G69: CE04D18
A70: CE04D | B70: 62c6060d-a406-4ce0-a676-7531334e376b | C70: 38036067-04 | D70: Budget | E70: Capital IT Hardware | F70: CE04D | G70: CE04D04
A71: CE04D | B71: 3f7e9cdd-9459-465e-a267-3d0e9ce6d5d5 | C71: 38036067-05 | D71: Budget | E71: Capital IT Hardware | F71: CE04D | G71: CE04D05
A72: CE04D | B72: e08a2ccb-834e-4704-9ba1-e82c13ed6a83 | C72: 38036067-06 | D72: Budget | E72: Capital IT Hardware | F72: CE04D | G72: CE04D06
A73: CE04D | B73: bc84f8fd-e67a-4f69-b4c6-5a7764338520 | C73: 38036067-18 | D73: Budget | E73: Capital IT Hardware | F73: CE04D | G73: CE04D18
A74: CE04E | B74: 47699072-95ca-4d26-b452-f3d395ac906b | C74: 38036068-04 | D74: Budget | E74: Capital Other Hardware | F74: CE04E | G74: CE04E04
A75: CE04E | B75: ef7d4a56-ca12-4828-8cd8-86a2f0dd1044 | C75: 38036068-05 | D75: Budget | E75: Capital Other Hardware | F75: CE04E | G75: CE04E05
A76: CE04E | B76: 6c00b132-772c-4445-a890-30b556b809f8 | C76: 38036068-06 | D76: Budget | E76: Capital Other Hardware | F76: CE04E | G76: CE04E06
A77: CE04E | B77: b03b51dc-64a4-494c-868f-f7b9b31dc559 | C77: 38036068-18 | D77: Budget | E77: Capital Other Hardware | F77: CE04E | G77: CE04E18
A78: CFRCode | B78: Id | C78: Code | D78: Type | E78: Description | F78: CFRCode | G78: CFRCodede
A79: CI01 | B79: 65feef70-4a0b-47dc-bac1-0d1d509db6a3 | C79: 65081001-05 | D79: Budget | E79: MLEI Income | F79: CI01 | G79: CI0105
A80: CI01 | B80: aedd7374-d27e-4f72-ba41-6b8ca893e245 | C80: FUND-04 | D80: Budget | E80: Funding Instalments | F80: CI01 | G80: CI0104
A81: CI01 | B81: 3ee36ebd-edf6-47b6-b463-74614e614c49 | C81: FUND-06 | D81: Budget | E81: Funding Instalments | F81: CI01 | G81: CI0106
A82: CI03 | B82: d25f742c-0dc2-42d3-b5a6-6ecc920744be | C82: 35281103-05 | D82: Budget | E82: PTA Donation - Capital | F82: CI03 | G82: CI0305
A83: CI03 | B83: ea1a17db-71db-4fe9-a6a0-999db9d66308 | C83: 65081000-05 | D83: Budget | E83: Miscellaneous Income | F83: CI03 | G83: CI0305
A84: CI03 | B84: 7235d386-2edc-43fb-b46b-d06efa2fce3b | C84: 65081105-05 | D84: Budget | E84: Miscellaneous Donations | F84: CI03 | G84: CI0305
A85: CI04 | B85: f22ed7fc-6c72-4b51-a921-dfdd4412e09c | C85: 47570500-18 | D85: Budget | E85: Revenue Cont' to Capital (Inc) | F85: CI04 | G85: CI0418
A86: E01 | B86: b642efcf-bb5c-44b2-b721-11f652593d55 | C86: 01001100-01 | D86: Budget | E86: Teaching Staff - Pay | F86: E01 | G86: E0101
A87: E01 | B87: 38e0462f-6c85-458c-85ba-5ff1d13c70f4 | C87: 01001100-02 | D87: Budget | E87: Teaching Staff - Pay | F87: E01 | G87: E0102
A88: E01 | B88: 39421ced-74dd-408c-957c-6221b1991554 | C88: 01001150-01 | D88: Budget | E88: Pupil Support Teachers - Pay | F88: E01 | G88: E0101
A89: E01 | B89: 52f19916-7eb0-485d-b12e-e422e2b43ecc | C89: 01002100-01 | D89: Budget | E89: Teaching Staff - NI | F89: E01 | G89: E0101
A90: E01 | B90: e307b7b1-1d5a-4184-8c9b-e8d41e6448bd | C90: 01002100-02 | D90: Budget | E90: Teaching Staff - NI | F90: E01 | G90: E0102
A91: E01 | B91: 5c90222e-a95c-46f3-a061-cbb13b5660b8 | C91: 01002150-01 | D91: Budget | E91: Pupil Support Teachers - NI | F91: E01 | G91: E0101
A92: E01 | B92: 55c423e5-1064-4327-b389-34ffb3fa9d34 | C92: 01004100-01 | D92: Budget | E92: Teaching Staff - Pension | F92: E01 | G92: E0101
A93: E01 | B93: 1a5d8dec-bac2-4e8e-a898-69408781225b | C93: 01004100-02 | D93: Budget | E93: Teaching Staff - Pension | F93: E01 | G93: E0102
A94: E01 | B94: d9859078-80a6-4ea2-adca-f410aed209fa | C94: 01004150-01 | D94: Budget | E94: Pupil Support Teachers - Pension | F94: E01 | G94: E0101
A95: E01 | B95: fd7d6bb2-26d5-4d20-8140-b45860766b53 | C95: 67064023-01 | D95: Budget | E95: Teaching Staff - Recharge Spend | F95: E01 | G95: E0101
A96: E01 | B96: b91f4441-6c48-49f1-9314-9571c028c622 | C96: 67064023-02 | D96: Budget | E96: Teaching Staff - Recharge Spend | F96: E01 | G96: E0102
A97: E01 | B97: f5a6bba0-b0e7-4b30-9944-9d73ccb7fd83 | C97: 67094013-01 | D97: Budget | E97: Teaching Staff - Recharge Income | F97: E01 | G97: E0101
A98: E01 | B98: 44dbdba7-7dfe-4cfe-9c39-de5eda7cfa6b | C98: 67094023-01 | D98: Budget | E98: Teaching Staff - Recharge Income | F98: E01 | G98: E0101
A99: E01 | B99: e00ddb57-bd15-4646-bc3c-526773df7bcd | C99: 67094023-02 | D99: Budget | E99: Teaching Staff - Recharge Income | F99: E01 | G99: E0102
A100: E01 | B100: afa45844-5040-49f2-ba1f-cc13e2111dff | C100: 67094033-01 | D100: Budget | E100: Teacher Recharge Income (Brington Only) | F100: E01 | G100: E0101
A101: E02 | B101: 235a3936-1de6-45dd-a827-f29cf2a4dd62 | C101: 02000120-01 | D101: Budget | E101: Supply Teaching Staff - Pension | F101: E02 | G101: E0201
A102: E02 | B102: c15b509a-0f5b-42c5-8fac-451771223989 | C102: 02000120-02 | D102: Budget | E102: Supply Teaching Staff - Pension | F102: E02 | G102: E0202
A103: E02 | B103: 6d7300d8-056e-453b-ab2d-cf97be24d186 | C103: 02001120-01 | D103: Budget | E103: Supply Teacher - Pay | F103: E02 | G103: E0201
A104: E02 | B104: 869b91cb-72bd-40fc-bf9f-4c87e169ef30 | C104: 02001120-02 | D104: Budget | E104: Supply Teacher - Pay | F104: E02 | G104: E0202
A105: E02 | B105: 83ac8534-0a6b-4725-acb8-b6f3544b528b | C105: 02002120-01 | D105: Budget | E105: Supply Teacher - NI | F105: E02 | G105: E0201
A106: E02 | B106: 4ed485bd-1839-4ed0-83a6-34f56990ba21 | C106: 02002120-02 | D106: Budget | E106: Supply Teacher - NI | F106: E02 | G106: E0202
A107: E02 | B107: a62fef7f-2edb-4f3b-bbc7-2b16459bed47 | C107: 09500130-01 | D107: Budget | E107: INSET Supply - Pension | F107: E02 | G107: E0201
A108: E02 | B108: b294e9c5-3662-491d-a8b9-d51998c77919 | C108: 09500130-02 | D108: Budget | E108: INSET Supply Pension | F108: E02 | G108: E0202
A109: E02 | B109: e8934c65-3a89-4ccb-8a64-4add62f28905 | C109: 09501130-01 | D109: Budget | E109: Inset Supply - Pay | F109: E02 | G109: E0201
A110: E02 | B110: 37a45393-6d6e-4d06-8385-6ac8195305be | C110: 09501130-02 | D110: Budget | E110: Inset Supply Pay | F110: E02 | G110: E0202
A111: E02 | B111: 9c623e17-f926-400c-b5ee-5900c474c846 | C111: 09502130-01 | D111: Budget | E111: INSET Supply - NI | F111: E02 | G111: E0201
A112: E02 | B112: 9d32fdea-16c2-4a2b-959d-9208f1104e87 | C112: 09502130-02 | D112: Budget | E112: INSET Supply NI | F112: E02 | G112: E0202
A113: E03 | B113: 892ece00-ec4f-4b41-bda1-6edb5aab67d9 | C113: 02001590-01 | D113: Budget | E113: Non Teach Supply Pay - Classroom | F113: E03 | G113: E0301
A114: E03 | B114: d8a418c3-54e7-446a-bdbc-86722f782461 | C114: 02001590-02 | D114: Budget | E114: Non Teach Supply Pay -Classroom | F114: E03 | G114: E0302
A115: E03 | B115: 1673281d-551f-486d-83a7-e401b2147dc1 | C115: 03001220-01 | D115: Budget | E115: 1:1 Catchup Tuition Staff - Pay | F115: E03 | G115: E0301
A116: E03 | B116: 0ca4dc91-a21f-49a2-ade0-12c712ffb71d | C116: 03001241-01 | D116: Budget | E116: Technician Staff - Pay | F116: E03 | G116: E0301
A117: E03 | B117: 54776ad2-e208-4052-9763-ce5d0ab8d034 | C117: 03001260-01 | D117: Budget | E117: Nursery Nurse Staff - Pay | F117: E03 | G117: E0301
A118: E03 | B118: 4428d07b-41fd-422e-b264-29d6c75a9cc0 | C118: 03001460-01 | D118: Budget | E118: Education Support Staff - Pay | F118: E03 | G118: E0301
A119: E03 | B119: 84e3e7ce-cbc8-4044-8e7a-a292577ac2c6 | C119: 03001460-02 | D119: Budget | E119: Education Support Staff Pay | F119: E03 | G119: E0302
A120: E03 | B120: 4e3e3e7b-6581-49be-93cb-f063d17b7e5a | C120: 03002220-01 | D120: Budget | E120: 1:1 Catchup Tuition Staff - NI | F120: E03 | G120: E0301
A121: E03 | B121: 549605fa-c955-4fc0-be44-296e53380714 | C121: 03002241-01 | D121: Budget | E121: Technician Staff - NI | F121: E03 | G121: E0301
A122: E03 | B122: 80fff737-1e15-47f4-8428-cc57edf77f50 | C122: 03002260-01 | D122: Budget | E122: Nursery Nurse Staff - NI | F122: E03 | G122: E0301
A123: E03 | B123: 1ca16b65-0b88-467d-8486-613264c96558 | C123: 03002460-01 | D123: Budget | E123: Education Support Staff - NI | F123: E03 | G123: E0301
A124: E03 | B124: 14d6271b-43de-4a8f-a283-59550cdc870c | C124: 03002460-02 | D124: Budget | E124: Education Support Staff NI | F124: E03 | G124: E0302
A125: E03 | B125: 4c38e49a-632f-4a32-8276-2c0ab18e38ba | C125: 03004220-01 | D125: Budget | E125: 1:1 Catchup Tuition Staff - Pension | F125: E03 | G125: E0301
A126: E03 | B126: 57275294-a29a-4a4c-a14b-41ad998a1f2d | C126: 03004241-01 | D126: Budget | E126: Technician Staff - Pension | F126: E03 | G126: E0301
A127: E03 | B127: bddf5adc-db5e-42ad-a946-3a89b1274dc7 | C127: 03004260-01 | D127: Budget | E127: Nursery Nurse Staff - Pension | F127: E03 | G127: E0301
A128: E03 | B128: e35c99c6-9c17-43a7-8070-36cab100906d | C128: 03004460-01 | D128: Budget | E128: Education Support Staff - Pension | F128: E03 | G128: E0301
A129: E03 | B129: 5873e39a-d5ef-4f01-8e6c-427fa6b31f0b | C129: 03004460-02 | D129: Budget | E129: Education Support Staff Pension | F129: E03 | G129: =_xlfn.CONCAT(F129,RIGHT(C129,2)) -> E0302
A130: E03 | B130: 1d669bc6-de27-4e94-96f3-11ade0ae924a | C130: 39036810-01 | D130: Budget | E130: Fees For Invigilators | F130: E03 | G130: E0301
A131: E03 | B131: f5efe606-e62c-4aad-a98f-601b7ec85503 | C131: 39036810-02 | D131: Budget | E131: Fees for Invigilators | F131: E03 | G131: E0302
A132: E03 | B132: dab0e98e-f310-4613-a900-c3b3fa3ba553 | C132: 67964024-01 | D132: Budget | E132: Education Support Staff - Recharge spend | F132: E03 | G132: E0301
A133: E03 | B133: 7f8739fd-0b7e-4823-a17d-01abf5e287e3 | C133: 67964024-02 | D133: Budget | E133: Education Support Staff - Recharge spend | F133: E03 | G133: E0302
A134: E03 | B134: db714aa7-bacb-4c8e-8a82-92810be2566c | C134: 67994016-01 | D134: Budget | E134: Education Support Staff - Recharge | F134: E03 | G134: E0301
A135: E03 | B135: a19966c7-9913-4b92-ae03-94ec9fffbd07 | C135: 67994016-02 | D135: Budget | E135: Education Support Staff- Recharge | F135: E03 | G135: E0302
A136: E03 | B136: 63221c79-ffcf-4bc9-beb8-e6a73dde9087 | C136: 67994024-01 | D136: Budget | E136: Education Support Staff - Recharge income | F136: E03 | G136: E0301
A137: E03 | B137: 95c0cad2-b87d-4054-96c5-d1a40e2cee6c | C137: 67994024-02 | D137: Budget | E137: Education Support Staff - Recharge income | F137: E03 | G137: E0302
A138: E04 | B138: 147201e1-6687-4365-a334-2ae50bdfe4ad | C138: 04001410-01 | D138: Budget | E138: Premises Staff - Pay | F138: E04 | G138: E0401
A139: E04 | B139: da9bb34d-52c3-43a0-bc50-adf51193e81c | C139: 04001410-02 | D139: Budget | E139: Premises Staff - Pay | F139: E04 | G139: E0402
A140: E04 | B140: 4c1f9cf0-4573-4a50-93f5-027b2134996d | C140: 04001420-01 | D140: Budget | E140: Cleaner Staff - Pay | F140: E04 | G140: E0401
A141: E04 | B141: c149cbef-9715-486d-8a60-372170b3bece | C141: 04001420-02 | D141: Budget | E141: Cleaner Staff - Pay | F141: E04 | G141: E0402
A142: E04 | B142: bca73efa-6ef6-4e64-a7b4-3b52d16f2549 | C142: 04002410-01 | D142: Budget | E142: Premises Staff - NI | F142: E04 | G142: E0401
A143: E04 | B143: f4042eea-1dd2-492c-8e52-a3e599f4e683 | C143: 04002410-02 | D143: Budget | E143: Premises Staff - NI | F143: E04 | G143: E0402
A144: E04 | B144: 306b574b-18c0-4521-ae26-069fb64c4ea1 | C144: 04002420-01 | D144: Budget | E144: Cleaner Staff - NI | F144: E04 | G144: E0401
A145: E04 | B145: b13d734e-c369-4d29-8827-784843e81f3c | C145: 04002420-02 | D145: Budget | E145: Cleaner Staff - NI | F145: E04 | G145: E0402
A146: E04 | B146: 6b768e31-9504-4d84-880a-22ca7721b99e | C146: 04004410-01 | D146: Budget | E146: Premises Staff - Pension | F146: E04 | G146: E0401
A147: E04 | B147: b3bd98ed-deb0-4a6c-98d7-ad5ae38ab423 | C147: 04004410-02 | D147: Budget | E147: Premises Staff - Pension | F147: E04 | G147: E0402
A148: E04 | B148: 6370c363-1ef5-46d5-ac67-f5b5645f7f4f | C148: 04004420-01 | D148: Budget | E148: Cleaner Staff - Pension | F148: E04 | G148: E0401
A149: E04 | B149: 01dfea6a-3b36-41ab-b246-30705ce6b492 | C149: 04004420-02 | D149: Budget | E149: Cleaner Staff - Pension | F149: E04 | G149: E0402
A150: E04 | B150: c71a485a-f24c-4eb3-bed6-2fce4e3c8c7c | C150: 67064022-01 | D150: Budget | E150: Premises Staff - Recharges Spend | F150: E04 | G150: E0401
A151: E04 | B151: 6387b5c3-412a-447a-b11f-715c2b1cc8e1 | C151: 67064022-02 | D151: Budget | E151: Premises Staff - Recharges spend | F151: E04 | G151: E0402
A152: E04 | B152: dbbfb251-dfdb-49e8-94ca-05231275732a | C152: 67094022-01 | D152: Budget | E152: Premises Staff - Recharges Income | F152: E04 | G152: E0401
A153: E04 | B153: 0f5f7d5d-4da3-4ae4-99db-5a521eb9c878 | C153: 67094022-02 | D153: Budget | E153: Premises Staff - Recharges income | F153: E04 | G153: E0402
A154: E05 | B154: bd989a40-ffba-47fb-9da1-f9791f63b812 | C154: 05001200-01 | D154: Budget | E154: Admin & Clerical Staff - Pay | F154: E05 | G154: E0501
A155: E05 | B155: 5589e763-b9b7-4a51-a50c-a565350c16ab | C155: 05001200-02 | D155: Budget | E155: Admin & Clerical Staff - Pay | F155: E05 | G155: E0502
A156: E05 | B156: 669af373-910b-4c7f-bb7f-3e8f6092483d | C156: 05002200-01 | D156: Budget | E156: Admin & Clerical Staff - NI | F156: E05 | G156: E0501
A157: E05 | B157: b7ac555f-b4b7-45d5-949e-07bc0ad635c5 | C157: 05002200-02 | D157: Budget | E157: Admin & Clerical Staff - NI | F157: E05 | G157: E0502
A158: E05 | B158: 3359cfc4-21cf-4cf5-87af-53b7bab9e03a | C158: 05004200-01 | D158: Budget | E158: Admin & Clerical Staff - Pension | F158: E05 | G158: E0501
A159: E05 | B159: 250f7e29-27c8-445c-82a8-38c21d24b069 | C159: 05004200-02 | D159: Budget | E159: Admin & Clerical Staff - Pension | F159: E05 | G159: E0502
A160: E05 | B160: 96763a89-3a11-4218-a9ee-829d4e01d14b | C160: 67094012-01 | D160: Budget | E160: Admin and Clerical Staff - Recharge | F160: E05 | G160: E0501
A161: E05 | B161: 3d6d63d3-21be-4e5a-a291-946d03911c03 | C161: 67094012-02 | D161: Budget | E161: Admin and Clerical Staff - Recharge | F161: E05 | G161: E0502
A162: E05 | B162: 50d478c1-3674-4652-aa4f-cc72edc63e9f | C162: 67094031-01 | D162: Budget | E162: St Annes Recharge due to Brington | F162: E05 | G162: E0501
A163: E06 | B163: 07104d59-bb67-431e-b8e6-1b09c35e82af | C163: 06001600-01 | D163: Budget | E163: Catering Staff - Pay | F163: E06 | G163: E0601
A164: E06 | B164: 485c08bb-ac87-4798-aa08-8ccb04173d5e | C164: 06001600-02 | D164: Budget | E164: Catering Staff - Pay | F164: E06 | G164: E0602
A165: E06 | B165: ba159964-96b3-4270-bf6a-3f8d81f69702 | C165: 06002600-01 | D165: Budget | E165: Catering Staff - NI | F165: E06 | G165: E0601
A166: E06 | B166: 75ef85bd-0c8d-49c1-8ae9-593c9b7492f1 | C166: 06002600-02 | D166: Budget | E166: Catering Staff - NI | F166: E06 | G166: E0602
A167: E06 | B167: 8bc44496-46b9-4a76-9de5-ce89ee49971e | C167: 06004600-01 | D167: Budget | E167: Catering Staff - Pension | F167: E06 | G167: E0601
A168: E06 | B168: 1f17e543-3b39-4dc4-9cb2-e25237c334a0 | C168: 06004600-02 | D168: Budget | E168: Catering Staff - Pension | F168: E06 | G168: E0602
A169: E07 | B169: c4a49989-1485-4e45-9b4b-e3f8979e7deb | C169: 02001591-01 | D169: Budget | E169: Non Teach Supply Pay - Non Class | F169: E07 | G169: E0701
A170: E07 | B170: 6359c79a-00df-4012-9def-a4607be81ee6 | C170: 02001591-02 | D170: Budget | E170: Non Teach Supply Pay (Non Class) | F170: E07 | G170: E0702
A171: E07 | B171: b5338145-8209-402c-93c8-4fed1720a61b | C171: 07001450-01 | D171: Budget | E171: Breakfast / After School Club Staff - Pay | F171: E07 | G171: E0701
A172: E07 | B172: cb551977-1bb2-4b9b-8313-2e9e592b7dea | C172: 07001450-02 | D172: Budget | E172: Breakfast / After School Club Staff - Pay | F172: E07 | G172: E0702
A173: E07 | B173: d8197caf-ffb6-4ccb-b15e-9878058f2ad1 | C173: 07001730-01 | D173: Budget | E173: Other Support Staff - Pay | F173: E07 | G173: E0701
A174: E07 | B174: f352ebc1-ad4e-400d-88b1-b4d9167b618c | C174: 07001730-02 | D174: Budget | E174: Other Support Staff - Pay | F174: E07 | G174: E0702
A175: E07 | B175: 4ab4daf2-9811-4d5f-bf31-224c7e64b1cd | C175: 07001940-01 | D175: Budget | E175: Midday Supervision Staff - Pay | F175: E07 | G175: E0701
A176: E07 | B176: 51cc9ca8-986d-4511-a432-59f60e80a33f | C176: 07001940-02 | D176: Budget | E176: Midday Supervision Staff - Pay | F176: E07 | G176: E0702
A177: E07 | B177: 687109c7-5d0f-4972-9e26-9cf1341fc978 | C177: 07002450-01 | D177: Budget | E177: Breakfast / After School Club Staff - NI | F177: E07 | G177: E0701
A178: E07 | B178: 80f95ce5-03e8-47ef-bea8-61d6e5a1f75b | C178: 07002450-02 | D178: Budget | E178: Breakfast / After School Club Staff - NI | F178: E07 | G178: E0702
A179: E07 | B179: bbbabca7-8b78-400b-9437-2f330ce44e41 | C179: 07002730-01 | D179: Budget | E179: Other Support Staff - NI | F179: E07 | G179: E0701
A180: E07 | B180: 99b783d7-5d51-4529-86c2-543e765b9905 | C180: 07002730-02 | D180: Budget | E180: Other Support Staff - NI | F180: E07 | G180: E0702
A181: E07 | B181: cfffd99b-2f4f-46fa-adf4-c9aa0c3abed7 | C181: 07002940-01 | D181: Budget | E181: Midday Supervision Staff - NI | F181: E07 | G181: E0701
A182: E07 | B182: f0a7b413-eb86-492f-9704-60bcdcd09595 | C182: 07002940-02 | D182: Budget | E182: Midday Supervision Staff - NI | F182: E07 | G182: E0702
A183: E07 | B183: 6c01077a-ebb4-415c-bbcc-d35e235f749e | C183: 07004450-01 | D183: Budget | E183: Breakfast / After School Club Staff - Pension | F183: E07 | G183: E0701
A184: E07 | B184: eeb1c9f9-3ac0-454d-b33f-222dc8e7da66 | C184: 07004450-02 | D184: Budget | E184: Breakfast / After School Club Staff - Pension | F184: E07 | G184: E0702
A185: E07 | B185: 568e39e1-9ba8-4c5b-8047-c921ac1fbc33 | C185: 07004730-01 | D185: Budget | E185: Other Support Staff - Pension | F185: E07 | G185: E0701
A186: E07 | B186: 9f7aeb31-9dab-466b-b869-8db08ada2e9e | C186: 07004730-02 | D186: Budget | E186: Other Support Staff - Pension | F186: E07 | G186: E0702
A187: E07 | B187: ce3c4795-b7de-4e5d-aec2-0eff4940c2d4 | C187: 07004940-01 | D187: Budget | E187: Midday Supervision Staff - Pension | F187: E07 | G187: E0701
A188: E07 | B188: 37bb45f7-85a4-4dc9-a935-142c4355d6c7 | C188: 07004940-02 | D188: Budget | E188: Midday Supervision Staff - Pension | F188: E07 | G188: E0702
A189: E07 | B189: ed665e1d-9b6b-4237-b614-116c46a2bf5f | C189: 67064026-01 | D189: Budget | E189: Other Support Staff - Recharges spend | F189: E07 | G189: E0701
A190: E07 | B190: de40d280-39f5-4712-9523-839227f41f29 | C190: 67064026-02 | D190: Budget | E190: Other Support Staff - Recharges spend | F190: E07 | G190: E0702
A191: E07 | B191: eff9f82b-e2be-4a6a-b813-ba77ad8d5eec | C191: 67094026-01 | D191: Budget | E191: Other Support Staff - Recharges income | F191: E07 | G191: E0701
A192: E07 | B192: 923039fa-b23d-4100-bf23-8c0816ce3817 | C192: 67094026-02 | D192: Budget | E192: Other Support Staff - Recharges income | F192: E07 | G192: E0702
A193: E08 | B193: d4859a0a-e016-4e12-96cf-095655e6681e | C193: 09008502-01 | D193: Budget | E193: Childcare Vouchers | F193: E08 | G193: =_xlfn.CONCAT(F193,RIGHT(C193,2)) -> E0801
A194: E08 | B194: 52b8218e-ecfa-4298-b433-ed1eeb22c739 | C194: 09008502-02 | D194: Budget | E194: Childcare Vouchers | F194: E08 | G194: E0802
A195: E08 | B195: ccf8ec1f-a8bd-4516-9f50-cf41fa9be82b | C195: 09009000-01 | D195: Budget | E195: Redundancy & Compromise | F195: E08 | G195: E0801
A196: E08 | B196: 07be522d-5333-41c7-bfd9-b6a108be59c2 | C196: 09009000-02 | D196: Budget | E196: Redundancy & Compromise | F196: E08 | G196: E0802
A197: E08 | B197: a392c927-ae3a-44d4-b48c-f84421440415 | C197: 09009612-01 | D197: Budget | E197: Eye Tests and Glasses Contribution | F197: E08 | G197: E0801
A198: E08 | B198: db8debd2-cf6c-47d5-b608-b218a310ee27 | C198: 09009612-02 | D198: Budget | E198: Eye Tests and Glasses Contribution | F198: E08 | G198: E0802
A199: E08 | B199: 4a05dd5f-a483-405e-aa1f-2c2097d10571 | C199: 09009800-01 | D199: Budget | E199: Medical Fees - Pre-employment Occupational Health | F199: E08 | G199: E0801
A200: E08 | B200: 0bfcce91-cebb-48f3-9573-0011a9f2052a | C200: 09009800-02 | D200: Budget | E200: Medical Fees - Pre-employment Occupational Health | F200: E08 | G200: E0802
... 828 more rows

Sheet String (hidden)
A1: String | B1: ='BvA Drop (Table)'!A1 -> 0 | C1: ='BvA Drop (Table)'!B1 -> 0 | D1: ='BvA Drop (Table)'!C1 -> Budget Code | E1: ='BvA Drop (Table)'!D1 -> Agreed Budget | F1: ='BvA Drop (Table)'!E1 -> Forecast Budget | G1: ='BvA Drop (Table)'!F1 -> Actuals YTD | H1: ='BvA Drop (Table)'!G1 -> Commitments | I1: ='BvA Drop (Table)'!H1 -> Total | J1: ='BvA Drop (Table)'!I1 -> Budget % | K1: ='BvA Drop (Table)'!J1 -> Adjustments | L1: ='BvA Drop (Table)'!K1 -> Projected YE | M1: ='BvA Drop (Table)'!L1 -> Variance | N1: ='BvA Drop (Table)'!M1 -> % Variance | O1: ='BvA Drop (Table)'!N1 -> Notes | P1: String
A2: =P2 ->  | B2: ='BvA Drop (Table)'!A305 -> 0 | C2: ='BvA Drop (Table)'!B305 -> 0 | D2: ='BvA Drop (Table)'!C305 -> 0 | E2: ='BvA Drop (Table)'!D305 -> 0 | F2: ='BvA Drop (Table)'!E305 -> 0 | G2: ='BvA Drop (Table)'!F305 -> 0 | H2: ='BvA Drop (Table)'!G305 -> 0 | I2: ='BvA Drop (Table)'!H305 -> 0 | J2: ='BvA Drop (Table)'!I305 -> 0 | K2: ='BvA Drop (Table)'!J305 -> 0 | L2: ='BvA Drop (Table)'!K305 -> 0 | M2: ='BvA Drop (Table)'!L305 -> 0 | N2: ='BvA Drop (Table)'!M305 -> 0 | O2: ='BvA Drop (Table)'!N305 -> 0 | P2: =VLOOKUP(D2,Mapping!C:G,5,0) -> 
B3: ='BvA Drop (Table)'!A306 -> 0 | C3: ='BvA Drop (Table)'!B306 -> 0 | D3: ='BvA Drop (Table)'!C306 -> 0 | E3: ='BvA Drop (Table)'!D306 -> 0 | F3: ='BvA Drop (Table)'!E306 -> 0 | G3: ='BvA Drop (Table)'!F306 -> 0 | H3: ='BvA Drop (Table)'!G306 -> 0 | I3: ='BvA Drop (Table)'!H306 -> 0 | J3: ='BvA Drop (Table)'!I306 -> 0 | K3: ='BvA Drop (Table)'!J306 -> 0 | L3: ='BvA Drop (Table)'!K306 -> 0 | M3: ='BvA Drop (Table)'!L306 -> 0 | N3: ='BvA Drop (Table)'!M306 -> 0 | O3: ='BvA Drop (Table)'!N306 -> 0 | P3: =VLOOKUP(D3,Mapping!C:G,5,0) -> 
B4: ='BvA Drop (Table)'!A301 -> 0 | C4: ='BvA Drop (Table)'!B301 -> 0 | D4: ='BvA Drop (Table)'!C301 -> 0 | E4: ='BvA Drop (Table)'!D301 -> 0 | F4: ='BvA Drop (Table)'!E301 -> 0 | G4: ='BvA Drop (Table)'!F301 -> 0 | H4: ='BvA Drop (Table)'!G301 -> 0 | I4: ='BvA Drop (Table)'!H301 -> 0 | J4: ='BvA Drop (Table)'!I301 -> 0 | K4: ='BvA Drop (Table)'!J301 -> 0 | L4: ='BvA Drop (Table)'!K301 -> 0 | M4: ='BvA Drop (Table)'!L301 -> 0 | N4: ='BvA Drop (Table)'!M301 -> 0 | O4: ='BvA Drop (Table)'!N301 -> 0 | P4: =VLOOKUP(D4,Mapping!C:G,5,0) -> 
B5: ='BvA Drop (Table)'!A302 -> 0 | C5: ='BvA Drop (Table)'!B302 -> 0 | D5: ='BvA Drop (Table)'!C302 -> 0 | E5: ='BvA Drop (Table)'!D302 -> 0 | F5: ='BvA Drop (Table)'!E302 -> 0 | G5: ='BvA Drop (Table)'!F302 -> 0 | H5: ='BvA Drop (Table)'!G302 -> 0 | I5: ='BvA Drop (Table)'!H302 -> 0 | J5: ='BvA Drop (Table)'!I302 -> 0 | K5: ='BvA Drop (Table)'!J302 -> 0 | L5: ='BvA Drop (Table)'!K302 -> 0 | M5: ='BvA Drop (Table)'!L302 -> 0 | N5: ='BvA Drop (Table)'!M302 -> 0 | O5: ='BvA Drop (Table)'!N302 -> 0 | P5: =VLOOKUP(D5,Mapping!C:G,5,0) -> 
B6: ='BvA Drop (Table)'!A69 -> 0 | C6: ='BvA Drop (Table)'!B69 -> 0 | D6: ='BvA Drop (Table)'!C69 -> 0 | E6: ='BvA Drop (Table)'!D69 -> 0 | F6: ='BvA Drop (Table)'!E69 -> 0 | G6: ='BvA Drop (Table)'!F69 -> 0 | H6: ='BvA Drop (Table)'!G69 -> 0 | I6: ='BvA Drop (Table)'!H69 -> 0 | J6: ='BvA Drop (Table)'!I69 -> 0 | K6: ='BvA Drop (Table)'!J69 -> 0 | L6: ='BvA Drop (Table)'!K69 -> 0 | M6: ='BvA Drop (Table)'!L69 -> 0 | N6: ='BvA Drop (Table)'!M69 -> 0 | O6: ='BvA Drop (Table)'!N69 -> 0 | P6: =VLOOKUP(D6,Mapping!C:G,5,0) -> 
B7: ='BvA Drop (Table)'!A70 -> 0 | C7: ='BvA Drop (Table)'!B70 -> 0 | D7: ='BvA Drop (Table)'!C70 -> 0 | E7: ='BvA Drop (Table)'!D70 -> 0 | F7: ='BvA Drop (Table)'!E70 -> 0 | G7: ='BvA Drop (Table)'!F70 -> 0 | H7: ='BvA Drop (Table)'!G70 -> 0 | I7: ='BvA Drop (Table)'!H70 -> 0 | J7: ='BvA Drop (Table)'!I70 -> 0 | K7: ='BvA Drop (Table)'!J70 -> 0 | L7: ='BvA Drop (Table)'!K70 -> 0 | M7: ='BvA Drop (Table)'!L70 -> 0 | N7: ='BvA Drop (Table)'!M70 -> 0 | O7: ='BvA Drop (Table)'!N70 -> 0 | P7: =VLOOKUP(D7,Mapping!C:G,5,0) -> 
B8: ='BvA Drop (Table)'!A72 -> 0 | C8: ='BvA Drop (Table)'!B72 -> 0 | D8: ='BvA Drop (Table)'!C72 -> 0 | E8: ='BvA Drop (Table)'!D72 -> 0 | F8: ='BvA Drop (Table)'!E72 -> 0 | G8: ='BvA Drop (Table)'!F72 -> 0 | H8: ='BvA Drop (Table)'!G72 -> 0 | I8: ='BvA Drop (Table)'!H72 -> 0 | J8: ='BvA Drop (Table)'!I72 -> 0 | K8: ='BvA Drop (Table)'!J72 -> 0 | L8: ='BvA Drop (Table)'!K72 -> 0 | M8: ='BvA Drop (Table)'!L72 -> 0 | N8: ='BvA Drop (Table)'!M72 -> 0 | O8: ='BvA Drop (Table)'!N72 -> 0 | P8: =VLOOKUP(D8,Mapping!C:G,5,0) -> 
B9: ='BvA Drop (Table)'!A75 -> 0 | C9: ='BvA Drop (Table)'!B75 -> 0 | D9: ='BvA Drop (Table)'!C75 -> 0 | E9: ='BvA Drop (Table)'!D75 -> 0 | F9: ='BvA Drop (Table)'!E75 -> 0 | G9: ='BvA Drop (Table)'!F75 -> 0 | H9: ='BvA Drop (Table)'!G75 -> 0 | I9: ='BvA Drop (Table)'!H75 -> 0 | J9: ='BvA Drop (Table)'!I75 -> 0 | K9: ='BvA Drop (Table)'!J75 -> 0 | L9: ='BvA Drop (Table)'!K75 -> 0 | M9: ='BvA Drop (Table)'!L75 -> 0 | N9: ='BvA Drop (Table)'!M75 -> 0 | O9: ='BvA Drop (Table)'!N75 -> 0 | P9: =VLOOKUP(D9,Mapping!C:G,5,0) -> 
B10: ='BvA Drop (Table)'!A73 -> 0 | C10: ='BvA Drop (Table)'!B73 -> 0 | D10: ='BvA Drop (Table)'!C73 -> 0 | E10: ='BvA Drop (Table)'!D73 -> 0 | F10: ='BvA Drop (Table)'!E73 -> 0 | G10: ='BvA Drop (Table)'!F73 -> 0 | H10: ='BvA Drop (Table)'!G73 -> 0 | I10: ='BvA Drop (Table)'!H73 -> 0 | J10: ='BvA Drop (Table)'!I73 -> 0 | K10: ='BvA Drop (Table)'!J73 -> 0 | L10: ='BvA Drop (Table)'!K73 -> 0 | M10: ='BvA Drop (Table)'!L73 -> 0 | N10: ='BvA Drop (Table)'!M73 -> 0 | O10: ='BvA Drop (Table)'!N73 -> 0 | P10: =VLOOKUP(D10,Mapping!C:G,5,0) -> 
B11: ='BvA Drop (Table)'!A74 -> 0 | C11: ='BvA Drop (Table)'!B74 -> 0 | D11: ='BvA Drop (Table)'!C74 -> 0 | E11: ='BvA Drop (Table)'!D74 -> 0 | F11: ='BvA Drop (Table)'!E74 -> 0 | G11: ='BvA Drop (Table)'!F74 -> 0 | H11: ='BvA Drop (Table)'!G74 -> 0 | I11: ='BvA Drop (Table)'!H74 -> 0 | J11: ='BvA Drop (Table)'!I74 -> 0 | K11: ='BvA Drop (Table)'!J74 -> 0 | L11: ='BvA Drop (Table)'!K74 -> 0 | M11: ='BvA Drop (Table)'!L74 -> 0 | N11: ='BvA Drop (Table)'!M74 -> 0 | O11: ='BvA Drop (Table)'!N74 -> 0 | P11: =VLOOKUP(D11,Mapping!C:G,5,0) -> 
B12: ='BvA Drop (Table)'!A77 -> 0 | C12: ='BvA Drop (Table)'!B77 -> 0 | D12: ='BvA Drop (Table)'!C77 -> 0 | E12: ='BvA Drop (Table)'!D77 -> 0 | F12: ='BvA Drop (Table)'!E77 -> 0 | G12: ='BvA Drop (Table)'!F77 -> 0 | H12: ='BvA Drop (Table)'!G77 -> 0 | I12: ='BvA Drop (Table)'!H77 -> 0 | J12: ='BvA Drop (Table)'!I77 -> 0 | K12: ='BvA Drop (Table)'!J77 -> 0 | L12: ='BvA Drop (Table)'!K77 -> 0 | M12: ='BvA Drop (Table)'!L77 -> 0 | N12: ='BvA Drop (Table)'!M77 -> 0 | O12: ='BvA Drop (Table)'!N77 -> 0 | P12: =VLOOKUP(D12,Mapping!C:G,5,0) -> 
B13: ='BvA Drop (Table)'!A78 -> 0 | C13: ='BvA Drop (Table)'!B78 -> 0 | D13: ='BvA Drop (Table)'!C78 -> 0 | E13: ='BvA Drop (Table)'!D78 -> 0 | F13: ='BvA Drop (Table)'!E78 -> 0 | G13: ='BvA Drop (Table)'!F78 -> 0 | H13: ='BvA Drop (Table)'!G78 -> 0 | I13: ='BvA Drop (Table)'!H78 -> 0 | J13: ='BvA Drop (Table)'!I78 -> 0 | K13: ='BvA Drop (Table)'!J78 -> 0 | L13: ='BvA Drop (Table)'!K78 -> 0 | M13: ='BvA Drop (Table)'!L78 -> 0 | N13: ='BvA Drop (Table)'!M78 -> 0 | O13: ='BvA Drop (Table)'!N78 -> 0 | P13: =VLOOKUP(D13,Mapping!C:G,5,0) -> 
B14: ='BvA Drop (Table)'!A80 -> 0 | C14: ='BvA Drop (Table)'!B80 -> 0 | D14: ='BvA Drop (Table)'!C80 -> 0 | E14: ='BvA Drop (Table)'!D80 -> 0 | F14: ='BvA Drop (Table)'!E80 -> 0 | G14: ='BvA Drop (Table)'!F80 -> 0 | H14: ='BvA Drop (Table)'!G80 -> 0 | I14: ='BvA Drop (Table)'!H80 -> 0 | J14: ='BvA Drop (Table)'!I80 -> 0 | K14: ='BvA Drop (Table)'!J80 -> 0 | L14: ='BvA Drop (Table)'!K80 -> 0 | M14: ='BvA Drop (Table)'!L80 -> 0 | N14: ='BvA Drop (Table)'!M80 -> 0 | O14: ='BvA Drop (Table)'!N80 -> 0 | P14: =VLOOKUP(D14,Mapping!C:G,5,0) -> 
B15: ='BvA Drop (Table)'!A82 -> 0 | C15: ='BvA Drop (Table)'!B82 -> 0 | D15: ='BvA Drop (Table)'!C82 -> 0 | E15: ='BvA Drop (Table)'!D82 -> 0 | F15: ='BvA Drop (Table)'!E82 -> 0 | G15: ='BvA Drop (Table)'!F82 -> 0 | H15: ='BvA Drop (Table)'!G82 -> 0 | I15: ='BvA Drop (Table)'!H82 -> 0 | J15: ='BvA Drop (Table)'!I82 -> 0 | K15: ='BvA Drop (Table)'!J82 -> 0 | L15: ='BvA Drop (Table)'!K82 -> 0 | M15: ='BvA Drop (Table)'!L82 -> 0 | N15: ='BvA Drop (Table)'!M82 -> 0 | O15: ='BvA Drop (Table)'!N82 -> 0 | P15: =VLOOKUP(D15,Mapping!C:G,5,0) -> 
B16: ='BvA Drop (Table)'!A79 -> 0 | C16: ='BvA Drop (Table)'!B79 -> 0 | D16: ='BvA Drop (Table)'!C79 -> 0 | E16: ='BvA Drop (Table)'!D79 -> 0 | F16: ='BvA Drop (Table)'!E79 -> 0 | G16: ='BvA Drop (Table)'!F79 -> 0 | H16: ='BvA Drop (Table)'!G79 -> 0 | I16: ='BvA Drop (Table)'!H79 -> 0 | J16: ='BvA Drop (Table)'!I79 -> 0 | K16: ='BvA Drop (Table)'!J79 -> 0 | L16: ='BvA Drop (Table)'!K79 -> 0 | M16: ='BvA Drop (Table)'!L79 -> 0 | N16: ='BvA Drop (Table)'!M79 -> 0 | O16: ='BvA Drop (Table)'!N79 -> 0 | P16: =VLOOKUP(D16,Mapping!C:G,5,0) -> 
B17: ='BvA Drop (Table)'!A81 -> 0 | C17: ='BvA Drop (Table)'!B81 -> 0 | D17: ='BvA Drop (Table)'!C81 -> 0 | E17: ='BvA Drop (Table)'!D81 -> 0 | F17: ='BvA Drop (Table)'!E81 -> 0 | G17: ='BvA Drop (Table)'!F81 -> 0 | H17: ='BvA Drop (Table)'!G81 -> 0 | I17: ='BvA Drop (Table)'!H81 -> 0 | J17: ='BvA Drop (Table)'!I81 -> 0 | K17: ='BvA Drop (Table)'!J81 -> 0 | L17: ='BvA Drop (Table)'!K81 -> 0 | M17: ='BvA Drop (Table)'!L81 -> 0 | N17: ='BvA Drop (Table)'!M81 -> 0 | O17: ='BvA Drop (Table)'!N81 -> 0 | P17: =VLOOKUP(D17,Mapping!C:G,5,0) -> 
B18: ='BvA Drop (Table)'!A84 -> 0 | C18: ='BvA Drop (Table)'!B84 -> 0 | D18: ='BvA Drop (Table)'!C84 -> 0 | E18: ='BvA Drop (Table)'!D84 -> 0 | F18: ='BvA Drop (Table)'!E84 -> 0 | G18: ='BvA Drop (Table)'!F84 -> 0 | H18: ='BvA Drop (Table)'!G84 -> 0 | I18: ='BvA Drop (Table)'!H84 -> 0 | J18: ='BvA Drop (Table)'!I84 -> 0 | K18: ='BvA Drop (Table)'!J84 -> 0 | L18: ='BvA Drop (Table)'!K84 -> 0 | M18: ='BvA Drop (Table)'!L84 -> 0 | N18: ='BvA Drop (Table)'!M84 -> 0 | O18: ='BvA Drop (Table)'!N84 -> 0 | P18: =VLOOKUP(D18,Mapping!C:G,5,0) -> 
B19: ='BvA Drop (Table)'!A86 -> 0 | C19: ='BvA Drop (Table)'!B86 -> 0 | D19: ='BvA Drop (Table)'!C86 -> 0 | E19: ='BvA Drop (Table)'!D86 -> 0 | F19: ='BvA Drop (Table)'!E86 -> 0 | G19: ='BvA Drop (Table)'!F86 -> 0 | H19: ='BvA Drop (Table)'!G86 -> 0 | I19: ='BvA Drop (Table)'!H86 -> 0 | J19: ='BvA Drop (Table)'!I86 -> 0 | K19: ='BvA Drop (Table)'!J86 -> 0 | L19: ='BvA Drop (Table)'!K86 -> 0 | M19: ='BvA Drop (Table)'!L86 -> 0 | N19: ='BvA Drop (Table)'!M86 -> 0 | O19: ='BvA Drop (Table)'!N86 -> 0 | P19: =VLOOKUP(D19,Mapping!C:G,5,0) -> 
B20: ='BvA Drop (Table)'!A85 -> 0 | C20: ='BvA Drop (Table)'!B85 -> 0 | D20: ='BvA Drop (Table)'!C85 -> 0 | E20: ='BvA Drop (Table)'!D85 -> 0 | F20: ='BvA Drop (Table)'!E85 -> 0 | G20: ='BvA Drop (Table)'!F85 -> 0 | H20: ='BvA Drop (Table)'!G85 -> 0 | I20: ='BvA Drop (Table)'!H85 -> 0 | J20: ='BvA Drop (Table)'!I85 -> 0 | K20: ='BvA Drop (Table)'!J85 -> 0 | L20: ='BvA Drop (Table)'!K85 -> 0 | M20: ='BvA Drop (Table)'!L85 -> 0 | N20: ='BvA Drop (Table)'!M85 -> 0 | O20: ='BvA Drop (Table)'!N85 -> 0 | P20: =VLOOKUP(D20,Mapping!C:G,5,0) -> 
B21: ='BvA Drop (Table)'!A87 -> 0 | C21: ='BvA Drop (Table)'!B87 -> 0 | D21: ='BvA Drop (Table)'!C87 -> 0 | E21: ='BvA Drop (Table)'!D87 -> 0 | F21: ='BvA Drop (Table)'!E87 -> 0 | G21: ='BvA Drop (Table)'!F87 -> 0 | H21: ='BvA Drop (Table)'!G87 -> 0 | I21: ='BvA Drop (Table)'!H87 -> 0 | J21: ='BvA Drop (Table)'!I87 -> 0 | K21: ='BvA Drop (Table)'!J87 -> 0 | L21: ='BvA Drop (Table)'!K87 -> 0 | M21: ='BvA Drop (Table)'!L87 -> 0 | N21: ='BvA Drop (Table)'!M87 -> 0 | O21: ='BvA Drop (Table)'!N87 -> 0 | P21: =VLOOKUP(D21,Mapping!C:G,5,0) -> 
B22: ='BvA Drop (Table)'!A89 -> 0 | C22: ='BvA Drop (Table)'!B89 -> 0 | D22: ='BvA Drop (Table)'!C89 -> 0 | E22: ='BvA Drop (Table)'!D89 -> 0 | F22: ='BvA Drop (Table)'!E89 -> 0 | G22: ='BvA Drop (Table)'!F89 -> 0 | H22: ='BvA Drop (Table)'!G89 -> 0 | I22: ='BvA Drop (Table)'!H89 -> 0 | J22: ='BvA Drop (Table)'!I89 -> 0 | K22: ='BvA Drop (Table)'!J89 -> 0 | L22: ='BvA Drop (Table)'!K89 -> 0 | M22: ='BvA Drop (Table)'!L89 -> 0 | N22: ='BvA Drop (Table)'!M89 -> 0 | O22: ='BvA Drop (Table)'!N89 -> 0 | P22: =VLOOKUP(D22,Mapping!C:G,5,0) -> 
B23: ='BvA Drop (Table)'!A90 -> 0 | C23: ='BvA Drop (Table)'!B90 -> 0 | D23: ='BvA Drop (Table)'!C90 -> 0 | E23: ='BvA Drop (Table)'!D90 -> 0 | F23: ='BvA Drop (Table)'!E90 -> 0 | G23: ='BvA Drop (Table)'!F90 -> 0 | H23: ='BvA Drop (Table)'!G90 -> 0 | I23: ='BvA Drop (Table)'!H90 -> 0 | J23: ='BvA Drop (Table)'!I90 -> 0 | K23: ='BvA Drop (Table)'!J90 -> 0 | L23: ='BvA Drop (Table)'!K90 -> 0 | M23: ='BvA Drop (Table)'!L90 -> 0 | N23: ='BvA Drop (Table)'!M90 -> 0 | O23: ='BvA Drop (Table)'!N90 -> 0 | P23: =VLOOKUP(D23,Mapping!C:G,5,0) -> 
B24: ='BvA Drop (Table)'!A92 -> 0 | C24: ='BvA Drop (Table)'!B92 -> 0 | D24: ='BvA Drop (Table)'!C92 -> 0 | E24: ='BvA Drop (Table)'!D92 -> 0 | F24: ='BvA Drop (Table)'!E92 -> 0 | G24: ='BvA Drop (Table)'!F92 -> 0 | H24: ='BvA Drop (Table)'!G92 -> 0 | I24: ='BvA Drop (Table)'!H92 -> 0 | J24: ='BvA Drop (Table)'!I92 -> 0 | K24: ='BvA Drop (Table)'!J92 -> 0 | L24: ='BvA Drop (Table)'!K92 -> 0 | M24: ='BvA Drop (Table)'!L92 -> 0 | N24: ='BvA Drop (Table)'!M92 -> 0 | O24: ='BvA Drop (Table)'!N92 -> 0 | P24: =VLOOKUP(D24,Mapping!C:G,5,0) -> 
B25: ='BvA Drop (Table)'!A95 -> 0 | C25: ='BvA Drop (Table)'!B95 -> 0 | D25: ='BvA Drop (Table)'!C95 -> 0 | E25: ='BvA Drop (Table)'!D95 -> 0 | F25: ='BvA Drop (Table)'!E95 -> 0 | G25: ='BvA Drop (Table)'!F95 -> 0 | H25: ='BvA Drop (Table)'!G95 -> 0 | I25: ='BvA Drop (Table)'!H95 -> 0 | J25: ='BvA Drop (Table)'!I95 -> 0 | K25: ='BvA Drop (Table)'!J95 -> 0 | L25: ='BvA Drop (Table)'!K95 -> 0 | M25: ='BvA Drop (Table)'!L95 -> 0 | N25: ='BvA Drop (Table)'!M95 -> 0 | O25: ='BvA Drop (Table)'!N95 -> 0 | P25: =VLOOKUP(D25,Mapping!C:G,5,0) -> 
B26: ='BvA Drop (Table)'!A96 -> 0 | C26: ='BvA Drop (Table)'!B96 -> 0 | D26: ='BvA Drop (Table)'!C96 -> 0 | E26: ='BvA Drop (Table)'!D96 -> 0 | F26: ='BvA Drop (Table)'!E96 -> 0 | G26: ='BvA Drop (Table)'!F96 -> 0 | H26: ='BvA Drop (Table)'!G96 -> 0 | I26: ='BvA Drop (Table)'!H96 -> 0 | J26: ='BvA Drop (Table)'!I96 -> 0 | K26: ='BvA Drop (Table)'!J96 -> 0 | L26: ='BvA Drop (Table)'!K96 -> 0 | M26: ='BvA Drop (Table)'!L96 -> 0 | N26: ='BvA Drop (Table)'!M96 -> 0 | O26: ='BvA Drop (Table)'!N96 -> 0 | P26: =VLOOKUP(D26,Mapping!C:G,5,0) -> 
B27: ='BvA Drop (Table)'!A93 -> 0 | C27: ='BvA Drop (Table)'!B93 -> 0 | D27: ='BvA Drop (Table)'!C93 -> 0 | E27: ='BvA Drop (Table)'!D93 -> 0 | F27: ='BvA Drop (Table)'!E93 -> 0 | G27: ='BvA Drop (Table)'!F93 -> 0 | H27: ='BvA Drop (Table)'!G93 -> 0 | I27: ='BvA Drop (Table)'!H93 -> 0 | J27: ='BvA Drop (Table)'!I93 -> 0 | K27: ='BvA Drop (Table)'!J93 -> 0 | L27: ='BvA Drop (Table)'!K93 -> 0 | M27: ='BvA Drop (Table)'!L93 -> 0 | N27: ='BvA Drop (Table)'!M93 -> 0 | O27: ='BvA Drop (Table)'!N93 -> 0 | P27: =VLOOKUP(D27,Mapping!C:G,5,0) -> 
B28: ='BvA Drop (Table)'!A94 -> 0 | C28: ='BvA Drop (Table)'!B94 -> 0 | D28: ='BvA Drop (Table)'!C94 -> 0 | E28: ='BvA Drop (Table)'!D94 -> 0 | F28: ='BvA Drop (Table)'!E94 -> 0 | G28: ='BvA Drop (Table)'!F94 -> 0 | H28: ='BvA Drop (Table)'!G94 -> 0 | I28: ='BvA Drop (Table)'!H94 -> 0 | J28: ='BvA Drop (Table)'!I94 -> 0 | K28: ='BvA Drop (Table)'!J94 -> 0 | L28: ='BvA Drop (Table)'!K94 -> 0 | M28: ='BvA Drop (Table)'!L94 -> 0 | N28: ='BvA Drop (Table)'!M94 -> 0 | O28: ='BvA Drop (Table)'!N94 -> 0 | P28: =VLOOKUP(D28,Mapping!C:G,5,0) -> 
B29: ='BvA Drop (Table)'!A97 -> 0 | C29: ='BvA Drop (Table)'!B97 -> 0 | D29: ='BvA Drop (Table)'!C97 -> 0 | E29: ='BvA Drop (Table)'!D97 -> 0 | F29: ='BvA Drop (Table)'!E97 -> 0 | G29: ='BvA Drop (Table)'!F97 -> 0 | H29: ='BvA Drop (Table)'!G97 -> 0 | I29: ='BvA Drop (Table)'!H97 -> 0 | J29: ='BvA Drop (Table)'!I97 -> 0 | K29: ='BvA Drop (Table)'!J97 -> 0 | L29: ='BvA Drop (Table)'!K97 -> 0 | M29: ='BvA Drop (Table)'!L97 -> 0 | N29: ='BvA Drop (Table)'!M97 -> 0 | O29: ='BvA Drop (Table)'!N97 -> 0 | P29: =VLOOKUP(D29,Mapping!C:G,5,0) -> 
B30: ='BvA Drop (Table)'!A99 -> 0 | C30: ='BvA Drop (Table)'!B99 -> 0 | D30: ='BvA Drop (Table)'!C99 -> 0 | E30: ='BvA Drop (Table)'!D99 -> 0 | F30: ='BvA Drop (Table)'!E99 -> 0 | G30: ='BvA Drop (Table)'!F99 -> 0 | H30: ='BvA Drop (Table)'!G99 -> 0 | I30: ='BvA Drop (Table)'!H99 -> 0 | J30: ='BvA Drop (Table)'!I99 -> 0 | K30: ='BvA Drop (Table)'!J99 -> 0 | L30: ='BvA Drop (Table)'!K99 -> 0 | M30: ='BvA Drop (Table)'!L99 -> 0 | N30: ='BvA Drop (Table)'!M99 -> 0 | O30: ='BvA Drop (Table)'!N99 -> 0 | P30: =VLOOKUP(D30,Mapping!C:G,5,0) -> 
B31: ='BvA Drop (Table)'!A101 -> 0 | C31: ='BvA Drop (Table)'!B101 -> 0 | D31: ='BvA Drop (Table)'!C101 -> 0 | E31: ='BvA Drop (Table)'!D101 -> 0 | F31: ='BvA Drop (Table)'!E101 -> 0 | G31: ='BvA Drop (Table)'!F101 -> 0 | H31: ='BvA Drop (Table)'!G101 -> 0 | I31: ='BvA Drop (Table)'!H101 -> 0 | J31: ='BvA Drop (Table)'!I101 -> 0 | K31: ='BvA Drop (Table)'!J101 -> 0 | L31: ='BvA Drop (Table)'!K101 -> 0 | M31: ='BvA Drop (Table)'!L101 -> 0 | N31: ='BvA Drop (Table)'!M101 -> 0 | O31: ='BvA Drop (Table)'!N101 -> 0 | P31: =VLOOKUP(D31,Mapping!C:G,5,0) -> 
B32: ='BvA Drop (Table)'!A103 -> 0 | C32: ='BvA Drop (Table)'!B103 -> 0 | D32: ='BvA Drop (Table)'!C103 -> 0 | E32: ='BvA Drop (Table)'!D103 -> 0 | F32: ='BvA Drop (Table)'!E103 -> 0 | G32: ='BvA Drop (Table)'!F103 -> 0 | H32: ='BvA Drop (Table)'!G103 -> 0 | I32: ='BvA Drop (Table)'!H103 -> 0 | J32: ='BvA Drop (Table)'!I103 -> 0 | K32: ='BvA Drop (Table)'!J103 -> 0 | L32: ='BvA Drop (Table)'!K103 -> 0 | M32: ='BvA Drop (Table)'!L103 -> 0 | N32: ='BvA Drop (Table)'!M103 -> 0 | O32: ='BvA Drop (Table)'!N103 -> 0 | P32: =VLOOKUP(D32,Mapping!C:G,5,0) -> 
B33: ='BvA Drop (Table)'!A105 -> 0 | C33: ='BvA Drop (Table)'!B105 -> 0 | D33: ='BvA Drop (Table)'!C105 -> 0 | E33: ='BvA Drop (Table)'!D105 -> 0 | F33: ='BvA Drop (Table)'!E105 -> 0 | G33: ='BvA Drop (Table)'!F105 -> 0 | H33: ='BvA Drop (Table)'!G105 -> 0 | I33: ='BvA Drop (Table)'!H105 -> 0 | J33: ='BvA Drop (Table)'!I105 -> 0 | K33: ='BvA Drop (Table)'!J105 -> 0 | L33: ='BvA Drop (Table)'!K105 -> 0 | M33: ='BvA Drop (Table)'!L105 -> 0 | N33: ='BvA Drop (Table)'!M105 -> 0 | O33: ='BvA Drop (Table)'!N105 -> 0 | P33: =VLOOKUP(D33,Mapping!C:G,5,0) -> 
B34: ='BvA Drop (Table)'!A100 -> 0 | C34: ='BvA Drop (Table)'!B100 -> 0 | D34: ='BvA Drop (Table)'!C100 -> 0 | E34: ='BvA Drop (Table)'!D100 -> 0 | F34: ='BvA Drop (Table)'!E100 -> 0 | G34: ='BvA Drop (Table)'!F100 -> 0 | H34: ='BvA Drop (Table)'!G100 -> 0 | I34: ='BvA Drop (Table)'!H100 -> 0 | J34: ='BvA Drop (Table)'!I100 -> 0 | K34: ='BvA Drop (Table)'!J100 -> 0 | L34: ='BvA Drop (Table)'!K100 -> 0 | M34: ='BvA Drop (Table)'!L100 -> 0 | N34: ='BvA Drop (Table)'!M100 -> 0 | O34: ='BvA Drop (Table)'!N100 -> 0 | P34: =VLOOKUP(D34,Mapping!C:G,5,0) -> 
B35: ='BvA Drop (Table)'!A102 -> 0 | C35: ='BvA Drop (Table)'!B102 -> 0 | D35: ='BvA Drop (Table)'!C102 -> 0 | E35: ='BvA Drop (Table)'!D102 -> 0 | F35: ='BvA Drop (Table)'!E102 -> 0 | G35: ='BvA Drop (Table)'!F102 -> 0 | H35: ='BvA Drop (Table)'!G102 -> 0 | I35: ='BvA Drop (Table)'!H102 -> 0 | J35: ='BvA Drop (Table)'!I102 -> 0 | K35: ='BvA Drop (Table)'!J102 -> 0 | L35: ='BvA Drop (Table)'!K102 -> 0 | M35: ='BvA Drop (Table)'!L102 -> 0 | N35: ='BvA Drop (Table)'!M102 -> 0 | O35: ='BvA Drop (Table)'!N102 -> 0 | P35: =VLOOKUP(D35,Mapping!C:G,5,0) -> 
B36: ='BvA Drop (Table)'!A104 -> 0 | C36: ='BvA Drop (Table)'!B104 -> 0 | D36: ='BvA Drop (Table)'!C104 -> 0 | E36: ='BvA Drop (Table)'!D104 -> 0 | F36: ='BvA Drop (Table)'!E104 -> 0 | G36: ='BvA Drop (Table)'!F104 -> 0 | H36: ='BvA Drop (Table)'!G104 -> 0 | I36: ='BvA Drop (Table)'!H104 -> 0 | J36: ='BvA Drop (Table)'!I104 -> 0 | K36: ='BvA Drop (Table)'!J104 -> 0 | L36: ='BvA Drop (Table)'!K104 -> 0 | M36: ='BvA Drop (Table)'!L104 -> 0 | N36: ='BvA Drop (Table)'!M104 -> 0 | O36: ='BvA Drop (Table)'!N104 -> 0 | P36: =VLOOKUP(D36,Mapping!C:G,5,0) -> 
B37: ='BvA Drop (Table)'!A106 -> 0 | C37: ='BvA Drop (Table)'!B106 -> 0 | D37: ='BvA Drop (Table)'!C106 -> 0 | E37: ='BvA Drop (Table)'!D106 -> 0 | F37: ='BvA Drop (Table)'!E106 -> 0 | G37: ='BvA Drop (Table)'!F106 -> 0 | H37: ='BvA Drop (Table)'!G106 -> 0 | I37: ='BvA Drop (Table)'!H106 -> 0 | J37: ='BvA Drop (Table)'!I106 -> 0 | K37: ='BvA Drop (Table)'!J106 -> 0 | L37: ='BvA Drop (Table)'!K106 -> 0 | M37: ='BvA Drop (Table)'!L106 -> 0 | N37: ='BvA Drop (Table)'!M106 -> 0 | O37: ='BvA Drop (Table)'!N106 -> 0 | P37: =VLOOKUP(D37,Mapping!C:G,5,0) -> 
B38: ='BvA Drop (Table)'!A109 -> 0 | C38: ='BvA Drop (Table)'!B109 -> 0 | D38: ='BvA Drop (Table)'!C109 -> 0 | E38: ='BvA Drop (Table)'!D109 -> 0 | F38: ='BvA Drop (Table)'!E109 -> 0 | G38: ='BvA Drop (Table)'!F109 -> 0 | H38: ='BvA Drop (Table)'!G109 -> 0 | I38: ='BvA Drop (Table)'!H109 -> 0 | J38: ='BvA Drop (Table)'!I109 -> 0 | K38: ='BvA Drop (Table)'!J109 -> 0 | L38: ='BvA Drop (Table)'!K109 -> 0 | M38: ='BvA Drop (Table)'!L109 -> 0 | N38: ='BvA Drop (Table)'!M109 -> 0 | O38: ='BvA Drop (Table)'!N109 -> 0 | P38: =VLOOKUP(D38,Mapping!C:G,5,0) -> 
B39: ='BvA Drop (Table)'!A108 -> 0 | C39: ='BvA Drop (Table)'!B108 -> 0 | D39: ='BvA Drop (Table)'!C108 -> 0 | E39: ='BvA Drop (Table)'!D108 -> 0 | F39: ='BvA Drop (Table)'!E108 -> 0 | G39: ='BvA Drop (Table)'!F108 -> 0 | H39: ='BvA Drop (Table)'!G108 -> 0 | I39: ='BvA Drop (Table)'!H108 -> 0 | J39: ='BvA Drop (Table)'!I108 -> 0 | K39: ='BvA Drop (Table)'!J108 -> 0 | L39: ='BvA Drop (Table)'!K108 -> 0 | M39: ='BvA Drop (Table)'!L108 -> 0 | N39: ='BvA Drop (Table)'!M108 -> 0 | O39: ='BvA Drop (Table)'!N108 -> 0 | P39: =VLOOKUP(D39,Mapping!C:G,5,0) -> 
B40: ='BvA Drop (Table)'!A111 -> 0 | C40: ='BvA Drop (Table)'!B111 -> 0 | D40: ='BvA Drop (Table)'!C111 -> 0 | E40: ='BvA Drop (Table)'!D111 -> 0 | F40: ='BvA Drop (Table)'!E111 -> 0 | G40: ='BvA Drop (Table)'!F111 -> 0 | H40: ='BvA Drop (Table)'!G111 -> 0 | I40: ='BvA Drop (Table)'!H111 -> 0 | J40: ='BvA Drop (Table)'!I111 -> 0 | K40: ='BvA Drop (Table)'!J111 -> 0 | L40: ='BvA Drop (Table)'!K111 -> 0 | M40: ='BvA Drop (Table)'!L111 -> 0 | N40: ='BvA Drop (Table)'!M111 -> 0 | O40: ='BvA Drop (Table)'!N111 -> 0 | P40: =VLOOKUP(D40,Mapping!C:G,5,0) -> 
B41: ='BvA Drop (Table)'!A112 -> 0 | C41: ='BvA Drop (Table)'!B112 -> 0 | D41: ='BvA Drop (Table)'!C112 -> 0 | E41: ='BvA Drop (Table)'!D112 -> 0 | F41: ='BvA Drop (Table)'!E112 -> 0 | G41: ='BvA Drop (Table)'!F112 -> 0 | H41: ='BvA Drop (Table)'!G112 -> 0 | I41: ='BvA Drop (Table)'!H112 -> 0 | J41: ='BvA Drop (Table)'!I112 -> 0 | K41: ='BvA Drop (Table)'!J112 -> 0 | L41: ='BvA Drop (Table)'!K112 -> 0 | M41: ='BvA Drop (Table)'!L112 -> 0 | N41: ='BvA Drop (Table)'!M112 -> 0 | O41: ='BvA Drop (Table)'!N112 -> 0 | P41: =VLOOKUP(D41,Mapping!C:G,5,0) -> 
B42: ='BvA Drop (Table)'!A115 -> 0 | C42: ='BvA Drop (Table)'!B115 -> 0 | D42: ='BvA Drop (Table)'!C115 -> 0 | E42: ='BvA Drop (Table)'!D115 -> 0 | F42: ='BvA Drop (Table)'!E115 -> 0 | G42: ='BvA Drop (Table)'!F115 -> 0 | H42: ='BvA Drop (Table)'!G115 -> 0 | I42: ='BvA Drop (Table)'!H115 -> 0 | J42: ='BvA Drop (Table)'!I115 -> 0 | K42: ='BvA Drop (Table)'!J115 -> 0 | L42: ='BvA Drop (Table)'!K115 -> 0 | M42: ='BvA Drop (Table)'!L115 -> 0 | N42: ='BvA Drop (Table)'!M115 -> 0 | O42: ='BvA Drop (Table)'!N115 -> 0 | P42: =VLOOKUP(D42,Mapping!C:G,5,0) -> 
B43: ='BvA Drop (Table)'!A114 -> 0 | C43: ='BvA Drop (Table)'!B114 -> 0 | D43: ='BvA Drop (Table)'!C114 -> 0 | E43: ='BvA Drop (Table)'!D114 -> 0 | F43: ='BvA Drop (Table)'!E114 -> 0 | G43: ='BvA Drop (Table)'!F114 -> 0 | H43: ='BvA Drop (Table)'!G114 -> 0 | I43: ='BvA Drop (Table)'!H114 -> 0 | J43: ='BvA Drop (Table)'!I114 -> 0 | K43: ='BvA Drop (Table)'!J114 -> 0 | L43: ='BvA Drop (Table)'!K114 -> 0 | M43: ='BvA Drop (Table)'!L114 -> 0 | N43: ='BvA Drop (Table)'!M114 -> 0 | O43: ='BvA Drop (Table)'!N114 -> 0 | P43: =VLOOKUP(D43,Mapping!C:G,5,0) -> 
B44: ='BvA Drop (Table)'!A118 -> 0 | C44: ='BvA Drop (Table)'!B118 -> 0 | D44: ='BvA Drop (Table)'!C118 -> 0 | E44: ='BvA Drop (Table)'!D118 -> 0 | F44: ='BvA Drop (Table)'!E118 -> 0 | G44: ='BvA Drop (Table)'!F118 -> 0 | H44: ='BvA Drop (Table)'!G118 -> 0 | I44: ='BvA Drop (Table)'!H118 -> 0 | J44: ='BvA Drop (Table)'!I118 -> 0 | K44: ='BvA Drop (Table)'!J118 -> 0 | L44: ='BvA Drop (Table)'!K118 -> 0 | M44: ='BvA Drop (Table)'!L118 -> 0 | N44: ='BvA Drop (Table)'!M118 -> 0 | O44: ='BvA Drop (Table)'!N118 -> 0 | P44: =VLOOKUP(D44,Mapping!C:G,5,0) -> 
B45: ='BvA Drop (Table)'!A117 -> 0 | C45: ='BvA Drop (Table)'!B117 -> 0 | D45: ='BvA Drop (Table)'!C117 -> 0 | E45: ='BvA Drop (Table)'!D117 -> 0 | F45: ='BvA Drop (Table)'!E117 -> 0 | G45: ='BvA Drop (Table)'!F117 -> 0 | H45: ='BvA Drop (Table)'!G117 -> 0 | I45: ='BvA Drop (Table)'!H117 -> 0 | J45: ='BvA Drop (Table)'!I117 -> 0 | K45: ='BvA Drop (Table)'!J117 -> 0 | L45: ='BvA Drop (Table)'!K117 -> 0 | M45: ='BvA Drop (Table)'!L117 -> 0 | N45: ='BvA Drop (Table)'!M117 -> 0 | O45: ='BvA Drop (Table)'!N117 -> 0 | P45: =VLOOKUP(D45,Mapping!C:G,5,0) -> 
B46: ='BvA Drop (Table)'!A119 -> 0 | C46: ='BvA Drop (Table)'!B119 -> 0 | D46: ='BvA Drop (Table)'!C119 -> 0 | E46: ='BvA Drop (Table)'!D119 -> 0 | F46: ='BvA Drop (Table)'!E119 -> 0 | G46: ='BvA Drop (Table)'!F119 -> 0 | H46: ='BvA Drop (Table)'!G119 -> 0 | I46: ='BvA Drop (Table)'!H119 -> 0 | J46: ='BvA Drop (Table)'!I119 -> 0 | K46: ='BvA Drop (Table)'!J119 -> 0 | L46: ='BvA Drop (Table)'!K119 -> 0 | M46: ='BvA Drop (Table)'!L119 -> 0 | N46: ='BvA Drop (Table)'!M119 -> 0 | O46: ='BvA Drop (Table)'!N119 -> 0 | P46: =VLOOKUP(D46,Mapping!C:G,5,0) -> 
B47: ='BvA Drop (Table)'!A121 -> 0 | C47: ='BvA Drop (Table)'!B121 -> 0 | D47: ='BvA Drop (Table)'!C121 -> 0 | E47: ='BvA Drop (Table)'!D121 -> 0 | F47: ='BvA Drop (Table)'!E121 -> 0 | G47: ='BvA Drop (Table)'!F121 -> 0 | H47: ='BvA Drop (Table)'!G121 -> 0 | I47: ='BvA Drop (Table)'!H121 -> 0 | J47: ='BvA Drop (Table)'!I121 -> 0 | K47: ='BvA Drop (Table)'!J121 -> 0 | L47: ='BvA Drop (Table)'!K121 -> 0 | M47: ='BvA Drop (Table)'!L121 -> 0 | N47: ='BvA Drop (Table)'!M121 -> 0 | O47: ='BvA Drop (Table)'!N121 -> 0 | P47: =VLOOKUP(D47,Mapping!C:G,5,0) -> 
B48: ='BvA Drop (Table)'!A122 -> 0 | C48: ='BvA Drop (Table)'!B122 -> 0 | D48: ='BvA Drop (Table)'!C122 -> 0 | E48: ='BvA Drop (Table)'!D122 -> 0 | F48: ='BvA Drop (Table)'!E122 -> 0 | G48: ='BvA Drop (Table)'!F122 -> 0 | H48: ='BvA Drop (Table)'!G122 -> 0 | I48: ='BvA Drop (Table)'!H122 -> 0 | J48: ='BvA Drop (Table)'!I122 -> 0 | K48: ='BvA Drop (Table)'!J122 -> 0 | L48: ='BvA Drop (Table)'!K122 -> 0 | M48: ='BvA Drop (Table)'!L122 -> 0 | N48: ='BvA Drop (Table)'!M122 -> 0 | O48: ='BvA Drop (Table)'!N122 -> 0 | P48: =VLOOKUP(D48,Mapping!C:G,5,0) -> 
B49: ='BvA Drop (Table)'!A124 -> 0 | C49: ='BvA Drop (Table)'!B124 -> 0 | D49: ='BvA Drop (Table)'!C124 -> 0 | E49: ='BvA Drop (Table)'!D124 -> 0 | F49: ='BvA Drop (Table)'!E124 -> 0 | G49: ='BvA Drop (Table)'!F124 -> 0 | H49: ='BvA Drop (Table)'!G124 -> 0 | I49: ='BvA Drop (Table)'!H124 -> 0 | J49: ='BvA Drop (Table)'!I124 -> 0 | K49: ='BvA Drop (Table)'!J124 -> 0 | L49: ='BvA Drop (Table)'!K124 -> 0 | M49: ='BvA Drop (Table)'!L124 -> 0 | N49: ='BvA Drop (Table)'!M124 -> 0 | O49: ='BvA Drop (Table)'!N124 -> 0 | P49: =VLOOKUP(D49,Mapping!C:G,5,0) -> 
B50: ='BvA Drop (Table)'!A125 -> 0 | C50: ='BvA Drop (Table)'!B125 -> 0 | D50: ='BvA Drop (Table)'!C125 -> 0 | E50: ='BvA Drop (Table)'!D125 -> 0 | F50: ='BvA Drop (Table)'!E125 -> 0 | G50: ='BvA Drop (Table)'!F125 -> 0 | H50: ='BvA Drop (Table)'!G125 -> 0 | I50: ='BvA Drop (Table)'!H125 -> 0 | J50: ='BvA Drop (Table)'!I125 -> 0 | K50: ='BvA Drop (Table)'!J125 -> 0 | L50: ='BvA Drop (Table)'!K125 -> 0 | M50: ='BvA Drop (Table)'!L125 -> 0 | N50: ='BvA Drop (Table)'!M125 -> 0 | O50: ='BvA Drop (Table)'!N125 -> 0 | P50: =VLOOKUP(D50,Mapping!C:G,5,0) -> 
B51: ='BvA Drop (Table)'!A127 -> 0 | C51: ='BvA Drop (Table)'!B127 -> 0 | D51: ='BvA Drop (Table)'!C127 -> 0 | E51: ='BvA Drop (Table)'!D127 -> 0 | F51: ='BvA Drop (Table)'!E127 -> 0 | G51: ='BvA Drop (Table)'!F127 -> 0 | H51: ='BvA Drop (Table)'!G127 -> 0 | I51: ='BvA Drop (Table)'!H127 -> 0 | J51: ='BvA Drop (Table)'!I127 -> 0 | K51: ='BvA Drop (Table)'!J127 -> 0 | L51: ='BvA Drop (Table)'!K127 -> 0 | M51: ='BvA Drop (Table)'!L127 -> 0 | N51: ='BvA Drop (Table)'!M127 -> 0 | O51: ='BvA Drop (Table)'!N127 -> 0 | P51: =VLOOKUP(D51,Mapping!C:G,5,0) -> 
B52: ='BvA Drop (Table)'!A128 -> 0 | C52: ='BvA Drop (Table)'!B128 -> 0 | D52: ='BvA Drop (Table)'!C128 -> 0 | E52: ='BvA Drop (Table)'!D128 -> 0 | F52: ='BvA Drop (Table)'!E128 -> 0 | G52: ='BvA Drop (Table)'!F128 -> 0 | H52: ='BvA Drop (Table)'!G128 -> 0 | I52: ='BvA Drop (Table)'!H128 -> 0 | J52: ='BvA Drop (Table)'!I128 -> 0 | K52: ='BvA Drop (Table)'!J128 -> 0 | L52: ='BvA Drop (Table)'!K128 -> 0 | M52: ='BvA Drop (Table)'!L128 -> 0 | N52: ='BvA Drop (Table)'!M128 -> 0 | O52: ='BvA Drop (Table)'!N128 -> 0 | P52: =VLOOKUP(D52,Mapping!C:G,5,0) -> 
B53: ='BvA Drop (Table)'!A130 -> 0 | C53: ='BvA Drop (Table)'!B130 -> 0 | D53: ='BvA Drop (Table)'!C130 -> 0 | E53: ='BvA Drop (Table)'!D130 -> 0 | F53: ='BvA Drop (Table)'!E130 -> 0 | G53: ='BvA Drop (Table)'!F130 -> 0 | H53: ='BvA Drop (Table)'!G130 -> 0 | I53: ='BvA Drop (Table)'!H130 -> 0 | J53: ='BvA Drop (Table)'!I130 -> 0 | K53: ='BvA Drop (Table)'!J130 -> 0 | L53: ='BvA Drop (Table)'!K130 -> 0 | M53: ='BvA Drop (Table)'!L130 -> 0 | N53: ='BvA Drop (Table)'!M130 -> 0 | O53: ='BvA Drop (Table)'!N130 -> 0 | P53: =VLOOKUP(D53,Mapping!C:G,5,0) -> 
B54: ='BvA Drop (Table)'!A133 -> 0 | C54: ='BvA Drop (Table)'!B133 -> 0 | D54: ='BvA Drop (Table)'!C133 -> 0 | E54: ='BvA Drop (Table)'!D133 -> 0 | F54: ='BvA Drop (Table)'!E133 -> 0 | G54: ='BvA Drop (Table)'!F133 -> 0 | H54: ='BvA Drop (Table)'!G133 -> 0 | I54: ='BvA Drop (Table)'!H133 -> 0 | J54: ='BvA Drop (Table)'!I133 -> 0 | K54: ='BvA Drop (Table)'!J133 -> 0 | L54: ='BvA Drop (Table)'!K133 -> 0 | M54: ='BvA Drop (Table)'!L133 -> 0 | N54: ='BvA Drop (Table)'!M133 -> 0 | O54: ='BvA Drop (Table)'!N133 -> 0 | P54: =VLOOKUP(D54,Mapping!C:G,5,0) -> 
B55: ='BvA Drop (Table)'!A131 -> 0 | C55: ='BvA Drop (Table)'!B131 -> 0 | D55: ='BvA Drop (Table)'!C131 -> 0 | E55: ='BvA Drop (Table)'!D131 -> 0 | F55: ='BvA Drop (Table)'!E131 -> 0 | G55: ='BvA Drop (Table)'!F131 -> 0 | H55: ='BvA Drop (Table)'!G131 -> 0 | I55: ='BvA Drop (Table)'!H131 -> 0 | J55: ='BvA Drop (Table)'!I131 -> 0 | K55: ='BvA Drop (Table)'!J131 -> 0 | L55: ='BvA Drop (Table)'!K131 -> 0 | M55: ='BvA Drop (Table)'!L131 -> 0 | N55: ='BvA Drop (Table)'!M131 -> 0 | O55: ='BvA Drop (Table)'!N131 -> 0 | P55: =VLOOKUP(D55,Mapping!C:G,5,0) -> 
B56: ='BvA Drop (Table)'!A132 -> 0 | C56: ='BvA Drop (Table)'!B132 -> 0 | D56: ='BvA Drop (Table)'!C132 -> 0 | E56: ='BvA Drop (Table)'!D132 -> 0 | F56: ='BvA Drop (Table)'!E132 -> 0 | G56: ='BvA Drop (Table)'!F132 -> 0 | H56: ='BvA Drop (Table)'!G132 -> 0 | I56: ='BvA Drop (Table)'!H132 -> 0 | J56: ='BvA Drop (Table)'!I132 -> 0 | K56: ='BvA Drop (Table)'!J132 -> 0 | L56: ='BvA Drop (Table)'!K132 -> 0 | M56: ='BvA Drop (Table)'!L132 -> 0 | N56: ='BvA Drop (Table)'!M132 -> 0 | O56: ='BvA Drop (Table)'!N132 -> 0 | P56: =VLOOKUP(D56,Mapping!C:G,5,0) -> 
B57: ='BvA Drop (Table)'!A136 -> 0 | C57: ='BvA Drop (Table)'!B136 -> 0 | D57: ='BvA Drop (Table)'!C136 -> 0 | E57: ='BvA Drop (Table)'!D136 -> 0 | F57: ='BvA Drop (Table)'!E136 -> 0 | G57: ='BvA Drop (Table)'!F136 -> 0 | H57: ='BvA Drop (Table)'!G136 -> 0 | I57: ='BvA Drop (Table)'!H136 -> 0 | J57: ='BvA Drop (Table)'!I136 -> 0 | K57: ='BvA Drop (Table)'!J136 -> 0 | L57: ='BvA Drop (Table)'!K136 -> 0 | M57: ='BvA Drop (Table)'!L136 -> 0 | N57: ='BvA Drop (Table)'!M136 -> 0 | O57: ='BvA Drop (Table)'!N136 -> 0 | P57: =VLOOKUP(D57,Mapping!C:G,5,0) -> 
B58: ='BvA Drop (Table)'!A135 -> 0 | C58: ='BvA Drop (Table)'!B135 -> 0 | D58: ='BvA Drop (Table)'!C135 -> 0 | E58: ='BvA Drop (Table)'!D135 -> 0 | F58: ='BvA Drop (Table)'!E135 -> 0 | G58: ='BvA Drop (Table)'!F135 -> 0 | H58: ='BvA Drop (Table)'!G135 -> 0 | I58: ='BvA Drop (Table)'!H135 -> 0 | J58: ='BvA Drop (Table)'!I135 -> 0 | K58: ='BvA Drop (Table)'!J135 -> 0 | L58: ='BvA Drop (Table)'!K135 -> 0 | M58: ='BvA Drop (Table)'!L135 -> 0 | N58: ='BvA Drop (Table)'!M135 -> 0 | O58: ='BvA Drop (Table)'!N135 -> 0 | P58: =VLOOKUP(D58,Mapping!C:G,5,0) -> 
B59: ='BvA Drop (Table)'!A138 -> 0 | C59: ='BvA Drop (Table)'!B138 -> 0 | D59: ='BvA Drop (Table)'!C138 -> 0 | E59: ='BvA Drop (Table)'!D138 -> 0 | F59: ='BvA Drop (Table)'!E138 -> 0 | G59: ='BvA Drop (Table)'!F138 -> 0 | H59: ='BvA Drop (Table)'!G138 -> 0 | I59: ='BvA Drop (Table)'!H138 -> 0 | J59: ='BvA Drop (Table)'!I138 -> 0 | K59: ='BvA Drop (Table)'!J138 -> 0 | L59: ='BvA Drop (Table)'!K138 -> 0 | M59: ='BvA Drop (Table)'!L138 -> 0 | N59: ='BvA Drop (Table)'!M138 -> 0 | O59: ='BvA Drop (Table)'!N138 -> 0 | P59: =VLOOKUP(D59,Mapping!C:G,5,0) -> 
B60: ='BvA Drop (Table)'!A140 -> 0 | C60: ='BvA Drop (Table)'!B140 -> 0 | D60: ='BvA Drop (Table)'!C140 -> 0 | E60: ='BvA Drop (Table)'!D140 -> 0 | F60: ='BvA Drop (Table)'!E140 -> 0 | G60: ='BvA Drop (Table)'!F140 -> 0 | H60: ='BvA Drop (Table)'!G140 -> 0 | I60: ='BvA Drop (Table)'!H140 -> 0 | J60: ='BvA Drop (Table)'!I140 -> 0 | K60: ='BvA Drop (Table)'!J140 -> 0 | L60: ='BvA Drop (Table)'!K140 -> 0 | M60: ='BvA Drop (Table)'!L140 -> 0 | N60: ='BvA Drop (Table)'!M140 -> 0 | O60: ='BvA Drop (Table)'!N140 -> 0 | P60: =VLOOKUP(D60,Mapping!C:G,5,0) -> 
B61: ='BvA Drop (Table)'!A142 -> 0 | C61: ='BvA Drop (Table)'!B142 -> 0 | D61: ='BvA Drop (Table)'!C142 -> 0 | E61: ='BvA Drop (Table)'!D142 -> 0 | F61: ='BvA Drop (Table)'!E142 -> 0 | G61: ='BvA Drop (Table)'!F142 -> 0 | H61: ='BvA Drop (Table)'!G142 -> 0 | I61: ='BvA Drop (Table)'!H142 -> 0 | J61: ='BvA Drop (Table)'!I142 -> 0 | K61: ='BvA Drop (Table)'!J142 -> 0 | L61: ='BvA Drop (Table)'!K142 -> 0 | M61: ='BvA Drop (Table)'!L142 -> 0 | N61: ='BvA Drop (Table)'!M142 -> 0 | O61: ='BvA Drop (Table)'!N142 -> 0 | P61: =VLOOKUP(D61,Mapping!C:G,5,0) -> 
B62: ='BvA Drop (Table)'!A145 -> 0 | C62: ='BvA Drop (Table)'!B145 -> 0 | D62: ='BvA Drop (Table)'!C145 -> 0 | E62: ='BvA Drop (Table)'!D145 -> 0 | F62: ='BvA Drop (Table)'!E145 -> 0 | G62: ='BvA Drop (Table)'!F145 -> 0 | H62: ='BvA Drop (Table)'!G145 -> 0 | I62: ='BvA Drop (Table)'!H145 -> 0 | J62: ='BvA Drop (Table)'!I145 -> 0 | K62: ='BvA Drop (Table)'!J145 -> 0 | L62: ='BvA Drop (Table)'!K145 -> 0 | M62: ='BvA Drop (Table)'!L145 -> 0 | N62: ='BvA Drop (Table)'!M145 -> 0 | O62: ='BvA Drop (Table)'!N145 -> 0 | P62: =VLOOKUP(D62,Mapping!C:G,5,0) -> 
B63: ='BvA Drop (Table)'!A139 -> 0 | C63: ='BvA Drop (Table)'!B139 -> 0 | D63: ='BvA Drop (Table)'!C139 -> 0 | E63: ='BvA Drop (Table)'!D139 -> 0 | F63: ='BvA Drop (Table)'!E139 -> 0 | G63: ='BvA Drop (Table)'!F139 -> 0 | H63: ='BvA Drop (Table)'!G139 -> 0 | I63: ='BvA Drop (Table)'!H139 -> 0 | J63: ='BvA Drop (Table)'!I139 -> 0 | K63: ='BvA Drop (Table)'!J139 -> 0 | L63: ='BvA Drop (Table)'!K139 -> 0 | M63: ='BvA Drop (Table)'!L139 -> 0 | N63: ='BvA Drop (Table)'!M139 -> 0 | O63: ='BvA Drop (Table)'!N139 -> 0 | P63: =VLOOKUP(D63,Mapping!C:G,5,0) -> 
B64: ='BvA Drop (Table)'!A141 -> 0 | C64: ='BvA Drop (Table)'!B141 -> 0 | D64: ='BvA Drop (Table)'!C141 -> 0 | E64: ='BvA Drop (Table)'!D141 -> 0 | F64: ='BvA Drop (Table)'!E141 -> 0 | G64: ='BvA Drop (Table)'!F141 -> 0 | H64: ='BvA Drop (Table)'!G141 -> 0 | I64: ='BvA Drop (Table)'!H141 -> 0 | J64: ='BvA Drop (Table)'!I141 -> 0 | K64: ='BvA Drop (Table)'!J141 -> 0 | L64: ='BvA Drop (Table)'!K141 -> 0 | M64: ='BvA Drop (Table)'!L141 -> 0 | N64: ='BvA Drop (Table)'!M141 -> 0 | O64: ='BvA Drop (Table)'!N141 -> 0 | P64: =VLOOKUP(D64,Mapping!C:G,5,0) -> 
B65: ='BvA Drop (Table)'!A143 -> 0 | C65: ='BvA Drop (Table)'!B143 -> 0 | D65: ='BvA Drop (Table)'!C143 -> 0 | E65: ='BvA Drop (Table)'!D143 -> 0 | F65: ='BvA Drop (Table)'!E143 -> 0 | G65: ='BvA Drop (Table)'!F143 -> 0 | H65: ='BvA Drop (Table)'!G143 -> 0 | I65: ='BvA Drop (Table)'!H143 -> 0 | J65: ='BvA Drop (Table)'!I143 -> 0 | K65: ='BvA Drop (Table)'!J143 -> 0 | L65: ='BvA Drop (Table)'!K143 -> 0 | M65: ='BvA Drop (Table)'!L143 -> 0 | N65: ='BvA Drop (Table)'!M143 -> 0 | O65: ='BvA Drop (Table)'!N143 -> 0 | P65: =VLOOKUP(D65,Mapping!C:G,5,0) -> 
A66: =P66 ->  | B66: ='BvA Drop (Table)'!A144 -> 0 | C66: ='BvA Drop (Table)'!B144 -> 0 | D66: ='BvA Drop (Table)'!C144 -> 0 | E66: ='BvA Drop (Table)'!D144 -> 0 | F66: ='BvA Drop (Table)'!E144 -> 0 | G66: ='BvA Drop (Table)'!F144 -> 0 | H66: ='BvA Drop (Table)'!G144 -> 0 | I66: ='BvA Drop (Table)'!H144 -> 0 | J66: ='BvA Drop (Table)'!I144 -> 0 | K66: ='BvA Drop (Table)'!J144 -> 0 | L66: ='BvA Drop (Table)'!K144 -> 0 | M66: ='BvA Drop (Table)'!L144 -> 0 | N66: ='BvA Drop (Table)'!M144 -> 0 | O66: ='BvA Drop (Table)'!N144 -> 0 | P66: =VLOOKUP(D66,Mapping!C:G,5,0) -> 
B67: ='BvA Drop (Table)'!A147 -> 0 | C67: ='BvA Drop (Table)'!B147 -> 0 | D67: ='BvA Drop (Table)'!C147 -> 0 | E67: ='BvA Drop (Table)'!D147 -> 0 | F67: ='BvA Drop (Table)'!E147 -> 0 | G67: ='BvA Drop (Table)'!F147 -> 0 | H67: ='BvA Drop (Table)'!G147 -> 0 | I67: ='BvA Drop (Table)'!H147 -> 0 | J67: ='BvA Drop (Table)'!I147 -> 0 | K67: ='BvA Drop (Table)'!J147 -> 0 | L67: ='BvA Drop (Table)'!K147 -> 0 | M67: ='BvA Drop (Table)'!L147 -> 0 | N67: ='BvA Drop (Table)'!M147 -> 0 | O67: ='BvA Drop (Table)'!N147 -> 0 | P67: =VLOOKUP(D67,Mapping!C:G,5,0) -> 
B68: ='BvA Drop (Table)'!A149 -> 0 | C68: ='BvA Drop (Table)'!B149 -> 0 | D68: ='BvA Drop (Table)'!C149 -> 0 | E68: ='BvA Drop (Table)'!D149 -> 0 | F68: ='BvA Drop (Table)'!E149 -> 0 | G68: ='BvA Drop (Table)'!F149 -> 0 | H68: ='BvA Drop (Table)'!G149 -> 0 | I68: ='BvA Drop (Table)'!H149 -> 0 | J68: ='BvA Drop (Table)'!I149 -> 0 | K68: ='BvA Drop (Table)'!J149 -> 0 | L68: ='BvA Drop (Table)'!K149 -> 0 | M68: ='BvA Drop (Table)'!L149 -> 0 | N68: ='BvA Drop (Table)'!M149 -> 0 | O68: ='BvA Drop (Table)'!N149 -> 0 | P68: =VLOOKUP(D68,Mapping!C:G,5,0) -> 
B69: ='BvA Drop (Table)'!A152 -> 0 | C69: ='BvA Drop (Table)'!B152 -> 0 | D69: ='BvA Drop (Table)'!C152 -> 0 | E69: ='BvA Drop (Table)'!D152 -> 0 | F69: ='BvA Drop (Table)'!E152 -> 0 | G69: ='BvA Drop (Table)'!F152 -> 0 | H69: ='BvA Drop (Table)'!G152 -> 0 | I69: ='BvA Drop (Table)'!H152 -> 0 | J69: ='BvA Drop (Table)'!I152 -> 0 | K69: ='BvA Drop (Table)'!J152 -> 0 | L69: ='BvA Drop (Table)'!K152 -> 0 | M69: ='BvA Drop (Table)'!L152 -> 0 | N69: ='BvA Drop (Table)'!M152 -> 0 | O69: ='BvA Drop (Table)'!N152 -> 0 | P69: =VLOOKUP(D69,Mapping!C:G,5,0) -> 
B70: ='BvA Drop (Table)'!A154 -> 0 | C70: ='BvA Drop (Table)'!B154 -> 0 | D70: ='BvA Drop (Table)'!C154 -> 0 | E70: ='BvA Drop (Table)'!D154 -> 0 | F70: ='BvA Drop (Table)'!E154 -> 0 | G70: ='BvA Drop (Table)'!F154 -> 0 | H70: ='BvA Drop (Table)'!G154 -> 0 | I70: ='BvA Drop (Table)'!H154 -> 0 | J70: ='BvA Drop (Table)'!I154 -> 0 | K70: ='BvA Drop (Table)'!J154 -> 0 | L70: ='BvA Drop (Table)'!K154 -> 0 | M70: ='BvA Drop (Table)'!L154 -> 0 | N70: ='BvA Drop (Table)'!M154 -> 0 | O70: ='BvA Drop (Table)'!N154 -> 0 | P70: =VLOOKUP(D70,Mapping!C:G,5,0) -> 
B71: ='BvA Drop (Table)'!A156 -> 0 | C71: ='BvA Drop (Table)'!B156 -> 0 | D71: ='BvA Drop (Table)'!C156 -> 0 | E71: ='BvA Drop (Table)'!D156 -> 0 | F71: ='BvA Drop (Table)'!E156 -> 0 | G71: ='BvA Drop (Table)'!F156 -> 0 | H71: ='BvA Drop (Table)'!G156 -> 0 | I71: ='BvA Drop (Table)'!H156 -> 0 | J71: ='BvA Drop (Table)'!I156 -> 0 | K71: ='BvA Drop (Table)'!J156 -> 0 | L71: ='BvA Drop (Table)'!K156 -> 0 | M71: ='BvA Drop (Table)'!L156 -> 0 | N71: ='BvA Drop (Table)'!M156 -> 0 | O71: ='BvA Drop (Table)'!N156 -> 0 | P71: =VLOOKUP(D71,Mapping!C:G,5,0) -> 
B72: ='BvA Drop (Table)'!A157 -> 0 | C72: ='BvA Drop (Table)'!B157 -> 0 | D72: ='BvA Drop (Table)'!C157 -> 0 | E72: ='BvA Drop (Table)'!D157 -> 0 | F72: ='BvA Drop (Table)'!E157 -> 0 | G72: ='BvA Drop (Table)'!F157 -> 0 | H72: ='BvA Drop (Table)'!G157 -> 0 | I72: ='BvA Drop (Table)'!H157 -> 0 | J72: ='BvA Drop (Table)'!I157 -> 0 | K72: ='BvA Drop (Table)'!J157 -> 0 | L72: ='BvA Drop (Table)'!K157 -> 0 | M72: ='BvA Drop (Table)'!L157 -> 0 | N72: ='BvA Drop (Table)'!M157 -> 0 | O72: ='BvA Drop (Table)'!N157 -> 0 | P72: =VLOOKUP(D72,Mapping!C:G,5,0) -> 
B73: ='BvA Drop (Table)'!A160 -> 0 | C73: ='BvA Drop (Table)'!B160 -> 0 | D73: ='BvA Drop (Table)'!C160 -> 0 | E73: ='BvA Drop (Table)'!D160 -> 0 | F73: ='BvA Drop (Table)'!E160 -> 0 | G73: ='BvA Drop (Table)'!F160 -> 0 | H73: ='BvA Drop (Table)'!G160 -> 0 | I73: ='BvA Drop (Table)'!H160 -> 0 | J73: ='BvA Drop (Table)'!I160 -> 0 | K73: ='BvA Drop (Table)'!J160 -> 0 | L73: ='BvA Drop (Table)'!K160 -> 0 | M73: ='BvA Drop (Table)'!L160 -> 0 | N73: ='BvA Drop (Table)'!M160 -> 0 | O73: ='BvA Drop (Table)'!N160 -> 0 | P73: =VLOOKUP(D73,Mapping!C:G,5,0) -> 
B74: ='BvA Drop (Table)'!A162 -> 0 | C74: ='BvA Drop (Table)'!B162 -> 0 | D74: ='BvA Drop (Table)'!C162 -> 0 | E74: ='BvA Drop (Table)'!D162 -> 0 | F74: ='BvA Drop (Table)'!E162 -> 0 | G74: ='BvA Drop (Table)'!F162 -> 0 | H74: ='BvA Drop (Table)'!G162 -> 0 | I74: ='BvA Drop (Table)'!H162 -> 0 | J74: ='BvA Drop (Table)'!I162 -> 0 | K74: ='BvA Drop (Table)'!J162 -> 0 | L74: ='BvA Drop (Table)'!K162 -> 0 | M74: ='BvA Drop (Table)'!L162 -> 0 | N74: ='BvA Drop (Table)'!M162 -> 0 | O74: ='BvA Drop (Table)'!N162 -> 0 | P74: =VLOOKUP(D74,Mapping!C:G,5,0) -> 
B75: ='BvA Drop (Table)'!A163 -> 0 | C75: ='BvA Drop (Table)'!B163 -> 0 | D75: ='BvA Drop (Table)'!C163 -> 0 | E75: ='BvA Drop (Table)'!D163 -> 0 | F75: ='BvA Drop (Table)'!E163 -> 0 | G75: ='BvA Drop (Table)'!F163 -> 0 | H75: ='BvA Drop (Table)'!G163 -> 0 | I75: ='BvA Drop (Table)'!H163 -> 0 | J75: ='BvA Drop (Table)'!I163 -> 0 | K75: ='BvA Drop (Table)'!J163 -> 0 | L75: ='BvA Drop (Table)'!K163 -> 0 | M75: ='BvA Drop (Table)'!L163 -> 0 | N75: ='BvA Drop (Table)'!M163 -> 0 | O75: ='BvA Drop (Table)'!N163 -> 0 | P75: =VLOOKUP(D75,Mapping!C:G,5,0) -> 
B76: ='BvA Drop (Table)'!A165 -> 0 | C76: ='BvA Drop (Table)'!B165 -> 0 | D76: ='BvA Drop (Table)'!C165 -> 0 | E76: ='BvA Drop (Table)'!D165 -> 0 | F76: ='BvA Drop (Table)'!E165 -> 0 | G76: ='BvA Drop (Table)'!F165 -> 0 | H76: ='BvA Drop (Table)'!G165 -> 0 | I76: ='BvA Drop (Table)'!H165 -> 0 | J76: ='BvA Drop (Table)'!I165 -> 0 | K76: ='BvA Drop (Table)'!J165 -> 0 | L76: ='BvA Drop (Table)'!K165 -> 0 | M76: ='BvA Drop (Table)'!L165 -> 0 | N76: ='BvA Drop (Table)'!M165 -> 0 | O76: ='BvA Drop (Table)'!N165 -> 0 | P76: =VLOOKUP(D76,Mapping!C:G,5,0) -> 
B77: ='BvA Drop (Table)'!A166 -> 0 | C77: ='BvA Drop (Table)'!B166 -> 0 | D77: ='BvA Drop (Table)'!C166 -> 0 | E77: ='BvA Drop (Table)'!D166 -> 0 | F77: ='BvA Drop (Table)'!E166 -> 0 | G77: ='BvA Drop (Table)'!F166 -> 0 | H77: ='BvA Drop (Table)'!G166 -> 0 | I77: ='BvA Drop (Table)'!H166 -> 0 | J77: ='BvA Drop (Table)'!I166 -> 0 | K77: ='BvA Drop (Table)'!J166 -> 0 | L77: ='BvA Drop (Table)'!K166 -> 0 | M77: ='BvA Drop (Table)'!L166 -> 0 | N77: ='BvA Drop (Table)'!M166 -> 0 | O77: ='BvA Drop (Table)'!N166 -> 0 | P77: =VLOOKUP(D77,Mapping!C:G,5,0) -> 
B78: ='BvA Drop (Table)'!A169 -> 0 | C78: ='BvA Drop (Table)'!B169 -> 0 | D78: ='BvA Drop (Table)'!C169 -> 0 | E78: ='BvA Drop (Table)'!D169 -> 0 | F78: ='BvA Drop (Table)'!E169 -> 0 | G78: ='BvA Drop (Table)'!F169 -> 0 | H78: ='BvA Drop (Table)'!G169 -> 0 | I78: ='BvA Drop (Table)'!H169 -> 0 | J78: ='BvA Drop (Table)'!I169 -> 0 | K78: ='BvA Drop (Table)'!J169 -> 0 | L78: ='BvA Drop (Table)'!K169 -> 0 | M78: ='BvA Drop (Table)'!L169 -> 0 | N78: ='BvA Drop (Table)'!M169 -> 0 | O78: ='BvA Drop (Table)'!N169 -> 0 | P78: =VLOOKUP(D78,Mapping!C:G,5,0) -> 
B79: ='BvA Drop (Table)'!A170 -> 0 | C79: ='BvA Drop (Table)'!B170 -> 0 | D79: ='BvA Drop (Table)'!C170 -> 0 | E79: ='BvA Drop (Table)'!D170 -> 0 | F79: ='BvA Drop (Table)'!E170 -> 0 | G79: ='BvA Drop (Table)'!F170 -> 0 | H79: ='BvA Drop (Table)'!G170 -> 0 | I79: ='BvA Drop (Table)'!H170 -> 0 | J79: ='BvA Drop (Table)'!I170 -> 0 | K79: ='BvA Drop (Table)'!J170 -> 0 | L79: ='BvA Drop (Table)'!K170 -> 0 | M79: ='BvA Drop (Table)'!L170 -> 0 | N79: ='BvA Drop (Table)'!M170 -> 0 | O79: ='BvA Drop (Table)'!N170 -> 0 | P79: =VLOOKUP(D79,Mapping!C:G,5,0) -> 
B80: ='BvA Drop (Table)'!A173 -> 0 | C80: ='BvA Drop (Table)'!B173 -> 0 | D80: ='BvA Drop (Table)'!C173 -> 0 | E80: ='BvA Drop (Table)'!D173 -> 0 | F80: ='BvA Drop (Table)'!E173 -> 0 | G80: ='BvA Drop (Table)'!F173 -> 0 | H80: ='BvA Drop (Table)'!G173 -> 0 | I80: ='BvA Drop (Table)'!H173 -> 0 | J80: ='BvA Drop (Table)'!I173 -> 0 | K80: ='BvA Drop (Table)'!J173 -> 0 | L80: ='BvA Drop (Table)'!K173 -> 0 | M80: ='BvA Drop (Table)'!L173 -> 0 | N80: ='BvA Drop (Table)'!M173 -> 0 | O80: ='BvA Drop (Table)'!N173 -> 0 | P80: =VLOOKUP(D80,Mapping!C:G,5,0) -> 
B81: ='BvA Drop (Table)'!A175 -> 0 | C81: ='BvA Drop (Table)'!B175 -> 0 | D81: ='BvA Drop (Table)'!C175 -> 0 | E81: ='BvA Drop (Table)'!D175 -> 0 | F81: ='BvA Drop (Table)'!E175 -> 0 | G81: ='BvA Drop (Table)'!F175 -> 0 | H81: ='BvA Drop (Table)'!G175 -> 0 | I81: ='BvA Drop (Table)'!H175 -> 0 | J81: ='BvA Drop (Table)'!I175 -> 0 | K81: ='BvA Drop (Table)'!J175 -> 0 | L81: ='BvA Drop (Table)'!K175 -> 0 | M81: ='BvA Drop (Table)'!L175 -> 0 | N81: ='BvA Drop (Table)'!M175 -> 0 | O81: ='BvA Drop (Table)'!N175 -> 0 | P81: =VLOOKUP(D81,Mapping!C:G,5,0) -> 
B82: ='BvA Drop (Table)'!A177 -> 0 | C82: ='BvA Drop (Table)'!B177 -> 0 | D82: ='BvA Drop (Table)'!C177 -> 0 | E82: ='BvA Drop (Table)'!D177 -> 0 | F82: ='BvA Drop (Table)'!E177 -> 0 | G82: ='BvA Drop (Table)'!F177 -> 0 | H82: ='BvA Drop (Table)'!G177 -> 0 | I82: ='BvA Drop (Table)'!H177 -> 0 | J82: ='BvA Drop (Table)'!I177 -> 0 | K82: ='BvA Drop (Table)'!J177 -> 0 | L82: ='BvA Drop (Table)'!K177 -> 0 | M82: ='BvA Drop (Table)'!L177 -> 0 | N82: ='BvA Drop (Table)'!M177 -> 0 | O82: ='BvA Drop (Table)'!N177 -> 0 | P82: =VLOOKUP(D82,Mapping!C:G,5,0) -> 
B83: ='BvA Drop (Table)'!A180 -> 0 | C83: ='BvA Drop (Table)'!B180 -> 0 | D83: ='BvA Drop (Table)'!C180 -> 0 | E83: ='BvA Drop (Table)'!D180 -> 0 | F83: ='BvA Drop (Table)'!E180 -> 0 | G83: ='BvA Drop (Table)'!F180 -> 0 | H83: ='BvA Drop (Table)'!G180 -> 0 | I83: ='BvA Drop (Table)'!H180 -> 0 | J83: ='BvA Drop (Table)'!I180 -> 0 | K83: ='BvA Drop (Table)'!J180 -> 0 | L83: ='BvA Drop (Table)'!K180 -> 0 | M83: ='BvA Drop (Table)'!L180 -> 0 | N83: ='BvA Drop (Table)'!M180 -> 0 | O83: ='BvA Drop (Table)'!N180 -> 0 | P83: =VLOOKUP(D83,Mapping!C:G,5,0) -> 
B84: ='BvA Drop (Table)'!A182 -> 0 | C84: ='BvA Drop (Table)'!B182 -> 0 | D84: ='BvA Drop (Table)'!C182 -> 0 | E84: ='BvA Drop (Table)'!D182 -> 0 | F84: ='BvA Drop (Table)'!E182 -> 0 | G84: ='BvA Drop (Table)'!F182 -> 0 | H84: ='BvA Drop (Table)'!G182 -> 0 | I84: ='BvA Drop (Table)'!H182 -> 0 | J84: ='BvA Drop (Table)'!I182 -> 0 | K84: ='BvA Drop (Table)'!J182 -> 0 | L84: ='BvA Drop (Table)'!K182 -> 0 | M84: ='BvA Drop (Table)'!L182 -> 0 | N84: ='BvA Drop (Table)'!M182 -> 0 | O84: ='BvA Drop (Table)'!N182 -> 0 | P84: =VLOOKUP(D84,Mapping!C:G,5,0) -> 
B85: ='BvA Drop (Table)'!A184 -> 0 | C85: ='BvA Drop (Table)'!B184 -> 0 | D85: ='BvA Drop (Table)'!C184 -> 0 | E85: ='BvA Drop (Table)'!D184 -> 0 | F85: ='BvA Drop (Table)'!E184 -> 0 | G85: ='BvA Drop (Table)'!F184 -> 0 | H85: ='BvA Drop (Table)'!G184 -> 0 | I85: ='BvA Drop (Table)'!H184 -> 0 | J85: ='BvA Drop (Table)'!I184 -> 0 | K85: ='BvA Drop (Table)'!J184 -> 0 | L85: ='BvA Drop (Table)'!K184 -> 0 | M85: ='BvA Drop (Table)'!L184 -> 0 | N85: ='BvA Drop (Table)'!M184 -> 0 | O85: ='BvA Drop (Table)'!N184 -> 0 | P85: =VLOOKUP(D85,Mapping!C:G,5,0) -> 
B86: ='BvA Drop (Table)'!A185 -> 0 | C86: ='BvA Drop (Table)'!B185 -> 0 | D86: ='BvA Drop (Table)'!C185 -> 0 | E86: ='BvA Drop (Table)'!D185 -> 0 | F86: ='BvA Drop (Table)'!E185 -> 0 | G86: ='BvA Drop (Table)'!F185 -> 0 | H86: ='BvA Drop (Table)'!G185 -> 0 | I86: ='BvA Drop (Table)'!H185 -> 0 | J86: ='BvA Drop (Table)'!I185 -> 0 | K86: ='BvA Drop (Table)'!J185 -> 0 | L86: ='BvA Drop (Table)'!K185 -> 0 | M86: ='BvA Drop (Table)'!L185 -> 0 | N86: ='BvA Drop (Table)'!M185 -> 0 | O86: ='BvA Drop (Table)'!N185 -> 0 | P86: =VLOOKUP(D86,Mapping!C:G,5,0) -> 
B87: ='BvA Drop (Table)'!A188 -> 0 | C87: ='BvA Drop (Table)'!B188 -> 0 | D87: ='BvA Drop (Table)'!C188 -> 0 | E87: ='BvA Drop (Table)'!D188 -> 0 | F87: ='BvA Drop (Table)'!E188 -> 0 | G87: ='BvA Drop (Table)'!F188 -> 0 | H87: ='BvA Drop (Table)'!G188 -> 0 | I87: ='BvA Drop (Table)'!H188 -> 0 | J87: ='BvA Drop (Table)'!I188 -> 0 | K87: ='BvA Drop (Table)'!J188 -> 0 | L87: ='BvA Drop (Table)'!K188 -> 0 | M87: ='BvA Drop (Table)'!L188 -> 0 | N87: ='BvA Drop (Table)'!M188 -> 0 | O87: ='BvA Drop (Table)'!N188 -> 0 | P87: =VLOOKUP(D87,Mapping!C:G,5,0) -> 
B88: ='BvA Drop (Table)'!A189 -> 0 | C88: ='BvA Drop (Table)'!B189 -> 0 | D88: ='BvA Drop (Table)'!C189 -> 0 | E88: ='BvA Drop (Table)'!D189 -> 0 | F88: ='BvA Drop (Table)'!E189 -> 0 | G88: ='BvA Drop (Table)'!F189 -> 0 | H88: ='BvA Drop (Table)'!G189 -> 0 | I88: ='BvA Drop (Table)'!H189 -> 0 | J88: ='BvA Drop (Table)'!I189 -> 0 | K88: ='BvA Drop (Table)'!J189 -> 0 | L88: ='BvA Drop (Table)'!K189 -> 0 | M88: ='BvA Drop (Table)'!L189 -> 0 | N88: ='BvA Drop (Table)'!M189 -> 0 | O88: ='BvA Drop (Table)'!N189 -> 0 | P88: =VLOOKUP(D88,Mapping!C:G,5,0) -> 
B89: ='BvA Drop (Table)'!A191 -> 0 | C89: ='BvA Drop (Table)'!B191 -> 0 | D89: ='BvA Drop (Table)'!C191 -> 0 | E89: ='BvA Drop (Table)'!D191 -> 0 | F89: ='BvA Drop (Table)'!E191 -> 0 | G89: ='BvA Drop (Table)'!F191 -> 0 | H89: ='BvA Drop (Table)'!G191 -> 0 | I89: ='BvA Drop (Table)'!H191 -> 0 | J89: ='BvA Drop (Table)'!I191 -> 0 | K89: ='BvA Drop (Table)'!J191 -> 0 | L89: ='BvA Drop (Table)'!K191 -> 0 | M89: ='BvA Drop (Table)'!L191 -> 0 | N89: ='BvA Drop (Table)'!M191 -> 0 | O89: ='BvA Drop (Table)'!N191 -> 0 | P89: =VLOOKUP(D89,Mapping!C:G,5,0) -> 
B90: ='BvA Drop (Table)'!A193 -> 0 | C90: ='BvA Drop (Table)'!B193 -> 0 | D90: ='BvA Drop (Table)'!C193 -> 0 | E90: ='BvA Drop (Table)'!D193 -> 0 | F90: ='BvA Drop (Table)'!E193 -> 0 | G90: ='BvA Drop (Table)'!F193 -> 0 | H90: ='BvA Drop (Table)'!G193 -> 0 | I90: ='BvA Drop (Table)'!H193 -> 0 | J90: ='BvA Drop (Table)'!I193 -> 0 | K90: ='BvA Drop (Table)'!J193 -> 0 | L90: ='BvA Drop (Table)'!K193 -> 0 | M90: ='BvA Drop (Table)'!L193 -> 0 | N90: ='BvA Drop (Table)'!M193 -> 0 | O90: ='BvA Drop (Table)'!N193 -> 0 | P90: =VLOOKUP(D90,Mapping!C:G,5,0) -> 
B91: ='BvA Drop (Table)'!A196 -> 0 | C91: ='BvA Drop (Table)'!B196 -> 0 | D91: ='BvA Drop (Table)'!C196 -> 0 | E91: ='BvA Drop (Table)'!D196 -> 0 | F91: ='BvA Drop (Table)'!E196 -> 0 | G91: ='BvA Drop (Table)'!F196 -> 0 | H91: ='BvA Drop (Table)'!G196 -> 0 | I91: ='BvA Drop (Table)'!H196 -> 0 | J91: ='BvA Drop (Table)'!I196 -> 0 | K91: ='BvA Drop (Table)'!J196 -> 0 | L91: ='BvA Drop (Table)'!K196 -> 0 | M91: ='BvA Drop (Table)'!L196 -> 0 | N91: ='BvA Drop (Table)'!M196 -> 0 | O91: ='BvA Drop (Table)'!N196 -> 0 | P91: =VLOOKUP(D91,Mapping!C:G,5,0) -> 
B92: ='BvA Drop (Table)'!A198 -> 0 | C92: ='BvA Drop (Table)'!B198 -> 0 | D92: ='BvA Drop (Table)'!C198 -> 0 | E92: ='BvA Drop (Table)'!D198 -> 0 | F92: ='BvA Drop (Table)'!E198 -> 0 | G92: ='BvA Drop (Table)'!F198 -> 0 | H92: ='BvA Drop (Table)'!G198 -> 0 | I92: ='BvA Drop (Table)'!H198 -> 0 | J92: ='BvA Drop (Table)'!I198 -> 0 | K92: ='BvA Drop (Table)'!J198 -> 0 | L92: ='BvA Drop (Table)'!K198 -> 0 | M92: ='BvA Drop (Table)'!L198 -> 0 | N92: ='BvA Drop (Table)'!M198 -> 0 | O92: ='BvA Drop (Table)'!N198 -> 0 | P92: =VLOOKUP(D92,Mapping!C:G,5,0) -> 
B93: ='BvA Drop (Table)'!A201 -> 0 | C93: ='BvA Drop (Table)'!B201 -> 0 | D93: ='BvA Drop (Table)'!C201 -> 0 | E93: ='BvA Drop (Table)'!D201 -> 0 | F93: ='BvA Drop (Table)'!E201 -> 0 | G93: ='BvA Drop (Table)'!F201 -> 0 | H93: ='BvA Drop (Table)'!G201 -> 0 | I93: ='BvA Drop (Table)'!H201 -> 0 | J93: ='BvA Drop (Table)'!I201 -> 0 | K93: ='BvA Drop (Table)'!J201 -> 0 | L93: ='BvA Drop (Table)'!K201 -> 0 | M93: ='BvA Drop (Table)'!L201 -> 0 | N93: ='BvA Drop (Table)'!M201 -> 0 | O93: ='BvA Drop (Table)'!N201 -> 0 | P93: =VLOOKUP(D93,Mapping!C:G,5,0) -> 
B94: ='BvA Drop (Table)'!A202 -> 0 | C94: ='BvA Drop (Table)'!B202 -> 0 | D94: ='BvA Drop (Table)'!C202 -> 0 | E94: ='BvA Drop (Table)'!D202 -> 0 | F94: ='BvA Drop (Table)'!E202 -> 0 | G94: ='BvA Drop (Table)'!F202 -> 0 | H94: ='BvA Drop (Table)'!G202 -> 0 | I94: ='BvA Drop (Table)'!H202 -> 0 | J94: ='BvA Drop (Table)'!I202 -> 0 | K94: ='BvA Drop (Table)'!J202 -> 0 | L94: ='BvA Drop (Table)'!K202 -> 0 | M94: ='BvA Drop (Table)'!L202 -> 0 | N94: ='BvA Drop (Table)'!M202 -> 0 | O94: ='BvA Drop (Table)'!N202 -> 0 | P94: =VLOOKUP(D94,Mapping!C:G,5,0) -> 
B95: ='BvA Drop (Table)'!A204 -> 0 | C95: ='BvA Drop (Table)'!B204 -> 0 | D95: ='BvA Drop (Table)'!C204 -> 0 | E95: ='BvA Drop (Table)'!D204 -> 0 | F95: ='BvA Drop (Table)'!E204 -> 0 | G95: ='BvA Drop (Table)'!F204 -> 0 | H95: ='BvA Drop (Table)'!G204 -> 0 | I95: ='BvA Drop (Table)'!H204 -> 0 | J95: ='BvA Drop (Table)'!I204 -> 0 | K95: ='BvA Drop (Table)'!J204 -> 0 | L95: ='BvA Drop (Table)'!K204 -> 0 | M95: ='BvA Drop (Table)'!L204 -> 0 | N95: ='BvA Drop (Table)'!M204 -> 0 | O95: ='BvA Drop (Table)'!N204 -> 0 | P95: =VLOOKUP(D95,Mapping!C:G,5,0) -> 
B96: ='BvA Drop (Table)'!A148 -> 0 | C96: ='BvA Drop (Table)'!B148 -> 0 | D96: ='BvA Drop (Table)'!C148 -> 0 | E96: ='BvA Drop (Table)'!D148 -> 0 | F96: ='BvA Drop (Table)'!E148 -> 0 | G96: ='BvA Drop (Table)'!F148 -> 0 | H96: ='BvA Drop (Table)'!G148 -> 0 | I96: ='BvA Drop (Table)'!H148 -> 0 | J96: ='BvA Drop (Table)'!I148 -> 0 | K96: ='BvA Drop (Table)'!J148 -> 0 | L96: ='BvA Drop (Table)'!K148 -> 0 | M96: ='BvA Drop (Table)'!L148 -> 0 | N96: ='BvA Drop (Table)'!M148 -> 0 | O96: ='BvA Drop (Table)'!N148 -> 0 | P96: =VLOOKUP(D96,Mapping!C:G,5,0) -> 
B97: ='BvA Drop (Table)'!A150 -> 0 | C97: ='BvA Drop (Table)'!B150 -> 0 | D97: ='BvA Drop (Table)'!C150 -> 0 | E97: ='BvA Drop (Table)'!D150 -> 0 | F97: ='BvA Drop (Table)'!E150 -> 0 | G97: ='BvA Drop (Table)'!F150 -> 0 | H97: ='BvA Drop (Table)'!G150 -> 0 | I97: ='BvA Drop (Table)'!H150 -> 0 | J97: ='BvA Drop (Table)'!I150 -> 0 | K97: ='BvA Drop (Table)'!J150 -> 0 | L97: ='BvA Drop (Table)'!K150 -> 0 | M97: ='BvA Drop (Table)'!L150 -> 0 | N97: ='BvA Drop (Table)'!M150 -> 0 | O97: ='BvA Drop (Table)'!N150 -> 0 | P97: =VLOOKUP(D97,Mapping!C:G,5,0) -> 
B98: ='BvA Drop (Table)'!A151 -> 0 | C98: ='BvA Drop (Table)'!B151 -> 0 | D98: ='BvA Drop (Table)'!C151 -> 0 | E98: ='BvA Drop (Table)'!D151 -> 0 | F98: ='BvA Drop (Table)'!E151 -> 0 | G98: ='BvA Drop (Table)'!F151 -> 0 | H98: ='BvA Drop (Table)'!G151 -> 0 | I98: ='BvA Drop (Table)'!H151 -> 0 | J98: ='BvA Drop (Table)'!I151 -> 0 | K98: ='BvA Drop (Table)'!J151 -> 0 | L98: ='BvA Drop (Table)'!K151 -> 0 | M98: ='BvA Drop (Table)'!L151 -> 0 | N98: ='BvA Drop (Table)'!M151 -> 0 | O98: ='BvA Drop (Table)'!N151 -> 0 | P98: =VLOOKUP(D98,Mapping!C:G,5,0) -> 
B99: ='BvA Drop (Table)'!A153 -> 0 | C99: ='BvA Drop (Table)'!B153 -> 0 | D99: ='BvA Drop (Table)'!C153 -> 0 | E99: ='BvA Drop (Table)'!D153 -> 0 | F99: ='BvA Drop (Table)'!E153 -> 0 | G99: ='BvA Drop (Table)'!F153 -> 0 | H99: ='BvA Drop (Table)'!G153 -> 0 | I99: ='BvA Drop (Table)'!H153 -> 0 | J99: ='BvA Drop (Table)'!I153 -> 0 | K99: ='BvA Drop (Table)'!J153 -> 0 | L99: ='BvA Drop (Table)'!K153 -> 0 | M99: ='BvA Drop (Table)'!L153 -> 0 | N99: ='BvA Drop (Table)'!M153 -> 0 | O99: ='BvA Drop (Table)'!N153 -> 0 | P99: =VLOOKUP(D99,Mapping!C:G,5,0) -> 
B100: ='BvA Drop (Table)'!A155 -> 0 | C100: ='BvA Drop (Table)'!B155 -> 0 | D100: ='BvA Drop (Table)'!C155 -> 0 | E100: ='BvA Drop (Table)'!D155 -> 0 | F100: ='BvA Drop (Table)'!E155 -> 0 | G100: ='BvA Drop (Table)'!F155 -> 0 | H100: ='BvA Drop (Table)'!G155 -> 0 | I100: ='BvA Drop (Table)'!H155 -> 0 | J100: ='BvA Drop (Table)'!I155 -> 0 | K100: ='BvA Drop (Table)'!J155 -> 0 | L100: ='BvA Drop (Table)'!K155 -> 0 | M100: ='BvA Drop (Table)'!L155 -> 0 | N100: ='BvA Drop (Table)'!M155 -> 0 | O100: ='BvA Drop (Table)'!N155 -> 0 | P100: =VLOOKUP(D100,Mapping!C:G,5,0) -> 
B101: ='BvA Drop (Table)'!A158 -> 0 | C101: ='BvA Drop (Table)'!B158 -> 0 | D101: ='BvA Drop (Table)'!C158 -> 0 | E101: ='BvA Drop (Table)'!D158 -> 0 | F101: ='BvA Drop (Table)'!E158 -> 0 | G101: ='BvA Drop (Table)'!F158 -> 0 | H101: ='BvA Drop (Table)'!G158 -> 0 | I101: ='BvA Drop (Table)'!H158 -> 0 | J101: ='BvA Drop (Table)'!I158 -> 0 | K101: ='BvA Drop (Table)'!J158 -> 0 | L101: ='BvA Drop (Table)'!K158 -> 0 | M101: ='BvA Drop (Table)'!L158 -> 0 | N101: ='BvA Drop (Table)'!M158 -> 0 | O101: ='BvA Drop (Table)'!N158 -> 0 | P101: =VLOOKUP(D101,Mapping!C:G,5,0) -> 
B102: ='BvA Drop (Table)'!A159 -> 0 | C102: ='BvA Drop (Table)'!B159 -> 0 | D102: ='BvA Drop (Table)'!C159 -> 0 | E102: ='BvA Drop (Table)'!D159 -> 0 | F102: ='BvA Drop (Table)'!E159 -> 0 | G102: ='BvA Drop (Table)'!F159 -> 0 | H102: ='BvA Drop (Table)'!G159 -> 0 | I102: ='BvA Drop (Table)'!H159 -> 0 | J102: ='BvA Drop (Table)'!I159 -> 0 | K102: ='BvA Drop (Table)'!J159 -> 0 | L102: ='BvA Drop (Table)'!K159 -> 0 | M102: ='BvA Drop (Table)'!L159 -> 0 | N102: ='BvA Drop (Table)'!M159 -> 0 | O102: ='BvA Drop (Table)'!N159 -> 0 | P102: =VLOOKUP(D102,Mapping!C:G,5,0) -> 
B103: ='BvA Drop (Table)'!A161 -> 0 | C103: ='BvA Drop (Table)'!B161 -> 0 | D103: ='BvA Drop (Table)'!C161 -> 0 | E103: ='BvA Drop (Table)'!D161 -> 0 | F103: ='BvA Drop (Table)'!E161 -> 0 | G103: ='BvA Drop (Table)'!F161 -> 0 | H103: ='BvA Drop (Table)'!G161 -> 0 | I103: ='BvA Drop (Table)'!H161 -> 0 | J103: ='BvA Drop (Table)'!I161 -> 0 | K103: ='BvA Drop (Table)'!J161 -> 0 | L103: ='BvA Drop (Table)'!K161 -> 0 | M103: ='BvA Drop (Table)'!L161 -> 0 | N103: ='BvA Drop (Table)'!M161 -> 0 | O103: ='BvA Drop (Table)'!N161 -> 0 | P103: =VLOOKUP(D103,Mapping!C:G,5,0) -> 
B104: ='BvA Drop (Table)'!A164 -> 0 | C104: ='BvA Drop (Table)'!B164 -> 0 | D104: ='BvA Drop (Table)'!C164 -> 0 | E104: ='BvA Drop (Table)'!D164 -> 0 | F104: ='BvA Drop (Table)'!E164 -> 0 | G104: ='BvA Drop (Table)'!F164 -> 0 | H104: ='BvA Drop (Table)'!G164 -> 0 | I104: ='BvA Drop (Table)'!H164 -> 0 | J104: ='BvA Drop (Table)'!I164 -> 0 | K104: ='BvA Drop (Table)'!J164 -> 0 | L104: ='BvA Drop (Table)'!K164 -> 0 | M104: ='BvA Drop (Table)'!L164 -> 0 | N104: ='BvA Drop (Table)'!M164 -> 0 | O104: ='BvA Drop (Table)'!N164 -> 0 | P104: =VLOOKUP(D104,Mapping!C:G,5,0) -> 
B105: ='BvA Drop (Table)'!A167 -> 0 | C105: ='BvA Drop (Table)'!B167 -> 0 | D105: ='BvA Drop (Table)'!C167 -> 0 | E105: ='BvA Drop (Table)'!D167 -> 0 | F105: ='BvA Drop (Table)'!E167 -> 0 | G105: ='BvA Drop (Table)'!F167 -> 0 | H105: ='BvA Drop (Table)'!G167 -> 0 | I105: ='BvA Drop (Table)'!H167 -> 0 | J105: ='BvA Drop (Table)'!I167 -> 0 | K105: ='BvA Drop (Table)'!J167 -> 0 | L105: ='BvA Drop (Table)'!K167 -> 0 | M105: ='BvA Drop (Table)'!L167 -> 0 | N105: ='BvA Drop (Table)'!M167 -> 0 | O105: ='BvA Drop (Table)'!N167 -> 0 | P105: =VLOOKUP(D105,Mapping!C:G,5,0) -> 
B106: ='BvA Drop (Table)'!A168 -> 0 | C106: ='BvA Drop (Table)'!B168 -> 0 | D106: ='BvA Drop (Table)'!C168 -> 0 | E106: ='BvA Drop (Table)'!D168 -> 0 | F106: ='BvA Drop (Table)'!E168 -> 0 | G106: ='BvA Drop (Table)'!F168 -> 0 | H106: ='BvA Drop (Table)'!G168 -> 0 | I106: ='BvA Drop (Table)'!H168 -> 0 | J106: ='BvA Drop (Table)'!I168 -> 0 | K106: ='BvA Drop (Table)'!J168 -> 0 | L106: ='BvA Drop (Table)'!K168 -> 0 | M106: ='BvA Drop (Table)'!L168 -> 0 | N106: ='BvA Drop (Table)'!M168 -> 0 | O106: ='BvA Drop (Table)'!N168 -> 0 | P106: =VLOOKUP(D106,Mapping!C:G,5,0) -> 
B107: ='BvA Drop (Table)'!A171 -> 0 | C107: ='BvA Drop (Table)'!B171 -> 0 | D107: ='BvA Drop (Table)'!C171 -> 0 | E107: ='BvA Drop (Table)'!D171 -> 0 | F107: ='BvA Drop (Table)'!E171 -> 0 | G107: ='BvA Drop (Table)'!F171 -> 0 | H107: ='BvA Drop (Table)'!G171 -> 0 | I107: ='BvA Drop (Table)'!H171 -> 0 | J107: ='BvA Drop (Table)'!I171 -> 0 | K107: ='BvA Drop (Table)'!J171 -> 0 | L107: ='BvA Drop (Table)'!K171 -> 0 | M107: ='BvA Drop (Table)'!L171 -> 0 | N107: ='BvA Drop (Table)'!M171 -> 0 | O107: ='BvA Drop (Table)'!N171 -> 0 | P107: =VLOOKUP(D107,Mapping!C:G,5,0) -> 
B108: ='BvA Drop (Table)'!A172 -> 0 | C108: ='BvA Drop (Table)'!B172 -> 0 | D108: ='BvA Drop (Table)'!C172 -> 0 | E108: ='BvA Drop (Table)'!D172 -> 0 | F108: ='BvA Drop (Table)'!E172 -> 0 | G108: ='BvA Drop (Table)'!F172 -> 0 | H108: ='BvA Drop (Table)'!G172 -> 0 | I108: ='BvA Drop (Table)'!H172 -> 0 | J108: ='BvA Drop (Table)'!I172 -> 0 | K108: ='BvA Drop (Table)'!J172 -> 0 | L108: ='BvA Drop (Table)'!K172 -> 0 | M108: ='BvA Drop (Table)'!L172 -> 0 | N108: ='BvA Drop (Table)'!M172 -> 0 | O108: ='BvA Drop (Table)'!N172 -> 0 | P108: =VLOOKUP(D108,Mapping!C:G,5,0) -> 
B109: ='BvA Drop (Table)'!A174 -> 0 | C109: ='BvA Drop (Table)'!B174 -> 0 | D109: ='BvA Drop (Table)'!C174 -> 0 | E109: ='BvA Drop (Table)'!D174 -> 0 | F109: ='BvA Drop (Table)'!E174 -> 0 | G109: ='BvA Drop (Table)'!F174 -> 0 | H109: ='BvA Drop (Table)'!G174 -> 0 | I109: ='BvA Drop (Table)'!H174 -> 0 | J109: ='BvA Drop (Table)'!I174 -> 0 | K109: ='BvA Drop (Table)'!J174 -> 0 | L109: ='BvA Drop (Table)'!K174 -> 0 | M109: ='BvA Drop (Table)'!L174 -> 0 | N109: ='BvA Drop (Table)'!M174 -> 0 | O109: ='BvA Drop (Table)'!N174 -> 0 | P109: =VLOOKUP(D109,Mapping!C:G,5,0) -> 
B110: ='BvA Drop (Table)'!A176 -> 0 | C110: ='BvA Drop (Table)'!B176 -> 0 | D110: ='BvA Drop (Table)'!C176 -> 0 | E110: ='BvA Drop (Table)'!D176 -> 0 | F110: ='BvA Drop (Table)'!E176 -> 0 | G110: ='BvA Drop (Table)'!F176 -> 0 | H110: ='BvA Drop (Table)'!G176 -> 0 | I110: ='BvA Drop (Table)'!H176 -> 0 | J110: ='BvA Drop (Table)'!I176 -> 0 | K110: ='BvA Drop (Table)'!J176 -> 0 | L110: ='BvA Drop (Table)'!K176 -> 0 | M110: ='BvA Drop (Table)'!L176 -> 0 | N110: ='BvA Drop (Table)'!M176 -> 0 | O110: ='BvA Drop (Table)'!N176 -> 0 | P110: =VLOOKUP(D110,Mapping!C:G,5,0) -> 
B111: ='BvA Drop (Table)'!A178 -> 0 | C111: ='BvA Drop (Table)'!B178 -> 0 | D111: ='BvA Drop (Table)'!C178 -> 0 | E111: ='BvA Drop (Table)'!D178 -> 0 | F111: ='BvA Drop (Table)'!E178 -> 0 | G111: ='BvA Drop (Table)'!F178 -> 0 | H111: ='BvA Drop (Table)'!G178 -> 0 | I111: ='BvA Drop (Table)'!H178 -> 0 | J111: ='BvA Drop (Table)'!I178 -> 0 | K111: ='BvA Drop (Table)'!J178 -> 0 | L111: ='BvA Drop (Table)'!K178 -> 0 | M111: ='BvA Drop (Table)'!L178 -> 0 | N111: ='BvA Drop (Table)'!M178 -> 0 | O111: ='BvA Drop (Table)'!N178 -> 0 | P111: =VLOOKUP(D111,Mapping!C:G,5,0) -> 
B112: ='BvA Drop (Table)'!A179 -> 0 | C112: ='BvA Drop (Table)'!B179 -> 0 | D112: ='BvA Drop (Table)'!C179 -> 0 | E112: ='BvA Drop (Table)'!D179 -> 0 | F112: ='BvA Drop (Table)'!E179 -> 0 | G112: ='BvA Drop (Table)'!F179 -> 0 | H112: ='BvA Drop (Table)'!G179 -> 0 | I112: ='BvA Drop (Table)'!H179 -> 0 | J112: ='BvA Drop (Table)'!I179 -> 0 | K112: ='BvA Drop (Table)'!J179 -> 0 | L112: ='BvA Drop (Table)'!K179 -> 0 | M112: ='BvA Drop (Table)'!L179 -> 0 | N112: ='BvA Drop (Table)'!M179 -> 0 | O112: ='BvA Drop (Table)'!N179 -> 0 | P112: =VLOOKUP(D112,Mapping!C:G,5,0) -> 
B113: ='BvA Drop (Table)'!A181 -> 0 | C113: ='BvA Drop (Table)'!B181 -> 0 | D113: ='BvA Drop (Table)'!C181 -> 0 | E113: ='BvA Drop (Table)'!D181 -> 0 | F113: ='BvA Drop (Table)'!E181 -> 0 | G113: ='BvA Drop (Table)'!F181 -> 0 | H113: ='BvA Drop (Table)'!G181 -> 0 | I113: ='BvA Drop (Table)'!H181 -> 0 | J113: ='BvA Drop (Table)'!I181 -> 0 | K113: ='BvA Drop (Table)'!J181 -> 0 | L113: ='BvA Drop (Table)'!K181 -> 0 | M113: ='BvA Drop (Table)'!L181 -> 0 | N113: ='BvA Drop (Table)'!M181 -> 0 | O113: ='BvA Drop (Table)'!N181 -> 0 | P113: =VLOOKUP(D113,Mapping!C:G,5,0) -> 
B114: ='BvA Drop (Table)'!A183 -> 0 | C114: ='BvA Drop (Table)'!B183 -> 0 | D114: ='BvA Drop (Table)'!C183 -> 0 | E114: ='BvA Drop (Table)'!D183 -> 0 | F114: ='BvA Drop (Table)'!E183 -> 0 | G114: ='BvA Drop (Table)'!F183 -> 0 | H114: ='BvA Drop (Table)'!G183 -> 0 | I114: ='BvA Drop (Table)'!H183 -> 0 | J114: ='BvA Drop (Table)'!I183 -> 0 | K114: ='BvA Drop (Table)'!J183 -> 0 | L114: ='BvA Drop (Table)'!K183 -> 0 | M114: ='BvA Drop (Table)'!L183 -> 0 | N114: ='BvA Drop (Table)'!M183 -> 0 | O114: ='BvA Drop (Table)'!N183 -> 0 | P114: =VLOOKUP(D114,Mapping!C:G,5,0) -> 
B115: ='BvA Drop (Table)'!A186 -> 0 | C115: ='BvA Drop (Table)'!B186 -> 0 | D115: ='BvA Drop (Table)'!C186 -> 0 | E115: ='BvA Drop (Table)'!D186 -> 0 | F115: ='BvA Drop (Table)'!E186 -> 0 | G115: ='BvA Drop (Table)'!F186 -> 0 | H115: ='BvA Drop (Table)'!G186 -> 0 | I115: ='BvA Drop (Table)'!H186 -> 0 | J115: ='BvA Drop (Table)'!I186 -> 0 | K115: ='BvA Drop (Table)'!J186 -> 0 | L115: ='BvA Drop (Table)'!K186 -> 0 | M115: ='BvA Drop (Table)'!L186 -> 0 | N115: ='BvA Drop (Table)'!M186 -> 0 | O115: ='BvA Drop (Table)'!N186 -> 0 | P115: =VLOOKUP(D115,Mapping!C:G,5,0) -> 
B116: ='BvA Drop (Table)'!A187 -> 0 | C116: ='BvA Drop (Table)'!B187 -> 0 | D116: ='BvA Drop (Table)'!C187 -> 0 | E116: ='BvA Drop (Table)'!D187 -> 0 | F116: ='BvA Drop (Table)'!E187 -> 0 | G116: ='BvA Drop (Table)'!F187 -> 0 | H116: ='BvA Drop (Table)'!G187 -> 0 | I116: ='BvA Drop (Table)'!H187 -> 0 | J116: ='BvA Drop (Table)'!I187 -> 0 | K116: ='BvA Drop (Table)'!J187 -> 0 | L116: ='BvA Drop (Table)'!K187 -> 0 | M116: ='BvA Drop (Table)'!L187 -> 0 | N116: ='BvA Drop (Table)'!M187 -> 0 | O116: ='BvA Drop (Table)'!N187 -> 0 | P116: =VLOOKUP(D116,Mapping!C:G,5,0) -> 
B117: ='BvA Drop (Table)'!A190 -> 0 | C117: ='BvA Drop (Table)'!B190 -> 0 | D117: ='BvA Drop (Table)'!C190 -> 0 | E117: ='BvA Drop (Table)'!D190 -> 0 | F117: ='BvA Drop (Table)'!E190 -> 0 | G117: ='BvA Drop (Table)'!F190 -> 0 | H117: ='BvA Drop (Table)'!G190 -> 0 | I117: ='BvA Drop (Table)'!H190 -> 0 | J117: ='BvA Drop (Table)'!I190 -> 0 | K117: ='BvA Drop (Table)'!J190 -> 0 | L117: ='BvA Drop (Table)'!K190 -> 0 | M117: ='BvA Drop (Table)'!L190 -> 0 | N117: ='BvA Drop (Table)'!M190 -> 0 | O117: ='BvA Drop (Table)'!N190 -> 0 | P117: =VLOOKUP(D117,Mapping!C:G,5,0) -> 
B118: ='BvA Drop (Table)'!A192 -> 0 | C118: ='BvA Drop (Table)'!B192 -> 0 | D118: ='BvA Drop (Table)'!C192 -> 0 | E118: ='BvA Drop (Table)'!D192 -> 0 | F118: ='BvA Drop (Table)'!E192 -> 0 | G118: ='BvA Drop (Table)'!F192 -> 0 | H118: ='BvA Drop (Table)'!G192 -> 0 | I118: ='BvA Drop (Table)'!H192 -> 0 | J118: ='BvA Drop (Table)'!I192 -> 0 | K118: ='BvA Drop (Table)'!J192 -> 0 | L118: ='BvA Drop (Table)'!K192 -> 0 | M118: ='BvA Drop (Table)'!L192 -> 0 | N118: ='BvA Drop (Table)'!M192 -> 0 | O118: ='BvA Drop (Table)'!N192 -> 0 | P118: =VLOOKUP(D118,Mapping!C:G,5,0) -> 
B119: ='BvA Drop (Table)'!A194 -> 0 | C119: ='BvA Drop (Table)'!B194 -> 0 | D119: ='BvA Drop (Table)'!C194 -> 0 | E119: ='BvA Drop (Table)'!D194 -> 0 | F119: ='BvA Drop (Table)'!E194 -> 0 | G119: ='BvA Drop (Table)'!F194 -> 0 | H119: ='BvA Drop (Table)'!G194 -> 0 | I119: ='BvA Drop (Table)'!H194 -> 0 | J119: ='BvA Drop (Table)'!I194 -> 0 | K119: ='BvA Drop (Table)'!J194 -> 0 | L119: ='BvA Drop (Table)'!K194 -> 0 | M119: ='BvA Drop (Table)'!L194 -> 0 | N119: ='BvA Drop (Table)'!M194 -> 0 | O119: ='BvA Drop (Table)'!N194 -> 0 | P119: =VLOOKUP(D119,Mapping!C:G,5,0) -> 
B120: ='BvA Drop (Table)'!A195 -> 0 | C120: ='BvA Drop (Table)'!B195 -> 0 | D120: ='BvA Drop (Table)'!C195 -> 0 | E120: ='BvA Drop (Table)'!D195 -> 0 | F120: ='BvA Drop (Table)'!E195 -> 0 | G120: ='BvA Drop (Table)'!F195 -> 0 | H120: ='BvA Drop (Table)'!G195 -> 0 | I120: ='BvA Drop (Table)'!H195 -> 0 | J120: ='BvA Drop (Table)'!I195 -> 0 | K120: ='BvA Drop (Table)'!J195 -> 0 | L120: ='BvA Drop (Table)'!K195 -> 0 | M120: ='BvA Drop (Table)'!L195 -> 0 | N120: ='BvA Drop (Table)'!M195 -> 0 | O120: ='BvA Drop (Table)'!N195 -> 0 | P120: =VLOOKUP(D120,Mapping!C:G,5,0) -> 
B121: ='BvA Drop (Table)'!A197 -> 0 | C121: ='BvA Drop (Table)'!B197 -> 0 | D121: ='BvA Drop (Table)'!C197 -> 0 | E121: ='BvA Drop (Table)'!D197 -> 0 | F121: ='BvA Drop (Table)'!E197 -> 0 | G121: ='BvA Drop (Table)'!F197 -> 0 | H121: ='BvA Drop (Table)'!G197 -> 0 | I121: ='BvA Drop (Table)'!H197 -> 0 | J121: ='BvA Drop (Table)'!I197 -> 0 | K121: ='BvA Drop (Table)'!J197 -> 0 | L121: ='BvA Drop (Table)'!K197 -> 0 | M121: ='BvA Drop (Table)'!L197 -> 0 | N121: ='BvA Drop (Table)'!M197 -> 0 | O121: ='BvA Drop (Table)'!N197 -> 0 | P121: =VLOOKUP(D121,Mapping!C:G,5,0) -> 
